{"text_format":"3","workbook":"xlsx","n_sheets":2,"sheets":["กำหนดการของชั้นเรียน","รายการชั้นเรียน"],"not_rendered":{"defined_names":17},"read":"whole","date_system":"1900"}

{"sheet":"กำหนดการของชั้นเรียน","index":0,"n_rows":56,"n_cols":9,"rows_kept":56,"merged":[[0,1,1,5],[0,8,1,8]]}
[null,"กำหนดการของชั้นเรียน",{"$nulls":4},"เริ่มต้นกำหนดการ","ระยะเวลา","รายการชั้นเรียน"]
[{"$nulls":6},"08:00:00","15 นาที"]
[null,"เวลา","วันอาทิตย์","วันจันทร์","อังคาร","วันพุธ","วันพฤหัสบดี","วันศุกร์","วันเสาร์"]
[null,{"$f":"เริ่มกำหนดการ","v":"08:00:00"},{"$f":"IFERROR(INDEX(รายการชั้นเรียน[],MATCH(SUMPRODUCT((รายการชั้นเรียน[วัน]=ClassSchedule[[#Headers],[วันอาทิตย์]])*(ROUNDDOWN($B4,10)>=ROUNDDOWN(รายการชั้นเรียน[เวลาเริ่มต้น],10))*($B4<=รายการชั้นเรียน[เวลาสิ้นสุด]),รายการชั้นเรียน[โดดเด่น]),รายการชั้นเรียน[โดดเด่น],0),2),0)","v":0},{"$f":"IFERROR(INDEX(รายการชั้นเรียน[],MATCH(SUMPRODUCT((รายการชั้นเรียน[วัน]=ClassSchedule[[#Headers],[วันจันทร์]])*(ROUNDDOWN($B4,10)>=ROUNDDOWN(รายการชั้นเรียน[เวลาเริ่มต้น],10))*($B4<=รายการชั้นเรียน[เวลาสิ้นสุด]),รายการชั้นเรียน[โดดเด่น]),รายการชั้นเรียน[โดดเด่น],0),2),0)","v":0},{"$f":"IFERROR(INDEX(รายการชั้นเรียน[],MATCH(SUMPRODUCT((รายการชั้นเรียน[วัน]=ClassSchedule[[#Headers],[อังคาร]])*(ROUNDDOWN($B4,10)>=ROUNDDOWN(รายการชั้นเรียน[เวลาเริ่มต้น],10))*($B4<=รายการชั้นเรียน[เวลาสิ้นสุด]),รายการชั้นเรียน[โดดเด่น]),รายการชั้นเรียน[โดดเด่น],0),2),0)","v":0},{"$f":"IFERROR(INDEX(รายการชั้นเรียน[],MATCH(SUMPRODUCT((รายการชั้นเรียน[วัน]=ClassSchedule[[#Headers],[วันพุธ]])*(ROUNDDOWN($B4,10)>=ROUNDDOWN(รายการชั้นเรียน[เวลาเริ่มต้น],10))*($B4<=รายการชั้นเรียน[เวลาสิ้นสุด]),รายการชั้นเรียน[โดดเด่น]),รายการชั้นเรียน[โดดเด่น],0),2),0)","v":0},{"$f":"IFERROR(INDEX(รายการชั้นเรียน[],MATCH(SUMPRODUCT((รายการชั้นเรียน[วัน]=ClassSchedule[[#Headers],[วันพฤหัสบดี]])*(ROUNDDOWN($B4,10)>=ROUNDDOWN(รายการชั้นเรียน[เวลาเริ่มต้น],10))*($B4<=รายการชั้นเรียน[เวลาสิ้นสุด]),รายการชั้นเรียน[โดดเด่น]),รายการชั้นเรียน[โดดเด่น],0),2),0)","v":0},{"$f":"IFERROR(INDEX(รายการชั้นเรียน[],MATCH(SUMPRODUCT((รายการชั้นเรียน[วัน]=ClassSchedule[[#Headers],[วันศุกร์]])*(ROUNDDOWN($B4,10)>=ROUNDDOWN(รายการชั้นเรียน[เวลาเริ่มต้น],10))*($B4<=รายการชั้นเรียน[เวลาสิ้นสุด]),รายการชั้นเรียน[โดดเด่น]),รายการชั้นเรียน[โดดเด่น],0),2),0)","v":0},{"$f":"IFERROR(INDEX(รายการชั้นเรียน[],MATCH(SUMPRODUCT((รายการชั้นเรียน[วัน]=ClassSchedule[[#Headers],[วันเสาร์]])*(ROUNDDOWN($B4,10)>=ROUNDDOWN(รายการชั้นเรียน[เวลาเริ่มต้น],10))*($B4<=รายการชั้นเรียน[เวลาสิ้นสุด]),รายการชั้นเรียน[โดดเด่น]),รายการชั้นเรียน[โดดเด่น],0),2),0)","v":0}]
[null,{"$f":"B4+เพิ่มทีละ","v":"08:15:00"},{"$f":"IFERROR(INDEX(รายการชั้นเรียน[],MATCH(SUMPRODUCT((รายการชั้นเรียน[วัน]=ClassSchedule[[#Headers],[วันอาทิตย์]])*(ROUNDDOWN($B5,10)>=ROUNDDOWN(รายการชั้นเรียน[เวลาเริ่มต้น],10))*($B5<=รายการชั้นเรียน[เวลาสิ้นสุด]),รายการชั้นเรียน[โดดเด่น]),รายการชั้นเรียน[โดดเด่น],0),2),0)","v":0},{"$f":"IFERROR(INDEX(รายการชั้นเรียน[],MATCH(SUMPRODUCT((รายการชั้นเรียน[วัน]=ClassSchedule[[#Headers],[วันจันทร์]])*(ROUNDDOWN($B5,10)>=ROUNDDOWN(รายการชั้นเรียน[เวลาเริ่มต้น],10))*($B5<=รายการชั้นเรียน[เวลาสิ้นสุด]),รายการชั้นเรียน[โดดเด่น]),รายการชั้นเรียน[โดดเด่น],0),2),0)","v":"MTH-113"},{"$f":"IFERROR(INDEX(รายการชั้นเรียน[],MATCH(SUMPRODUCT((รายการชั้นเรียน[วัน]=ClassSchedule[[#Headers],[อังคาร]])*(ROUNDDOWN($B5,10)>=ROUNDDOWN(รายการชั้นเรียน[เวลาเริ่มต้น],10))*($B5<=รายการชั้นเรียน[เวลาสิ้นสุด]),รายการชั้นเรียน[โดดเด่น]),รายการชั้นเรียน[โดดเด่น],0),2),0)","v":0},{"$f":"IFERROR(INDEX(รายการชั้นเรียน[],MATCH(SUMPRODUCT((รายการชั้นเรียน[วัน]=ClassSchedule[[#Headers],[วันพุธ]])*(ROUNDDOWN($B5,10)>=ROUNDDOWN(รายการชั้นเรียน[เวลาเริ่มต้น],10))*($B5<=รายการชั้นเรียน[เวลาสิ้นสุด]),รายการชั้นเรียน[โดดเด่น]),รายการชั้นเรียน[โดดเด่น],0),2),0)","v":"MTH-113"},{"$f":"IFERROR(INDEX(รายการชั้นเรียน[],MATCH(SUMPRODUCT((รายการชั้นเรียน[วัน]=ClassSchedule[[#Headers],[วันพฤหัสบดี]])*(ROUNDDOWN($B5,10)>=ROUNDDOWN(รายการชั้นเรียน[เวลาเริ่มต้น],10))*($B5<=รายการชั้นเรียน[เวลาสิ้นสุด]),รายการชั้นเรียน[โดดเด่น]),รายการชั้นเรียน[โดดเด่น],0),2),0)","v":0},{"$f":"IFERROR(INDEX(รายการชั้นเรียน[],MATCH(SUMPRODUCT((รายการชั้นเรียน[วัน]=ClassSchedule[[#Headers],[วันศุกร์]])*(ROUNDDOWN($B5,10)>=ROUNDDOWN(รายการชั้นเรียน[เวลาเริ่มต้น],10))*($B5<=รายการชั้นเรียน[เวลาสิ้นสุด]),รายการชั้นเรียน[โดดเด่น]),รายการชั้นเรียน[โดดเด่น],0),2),0)","v":"MTH-113"},{"$f":"IFERROR(INDEX(รายการชั้นเรียน[],MATCH(SUMPRODUCT((รายการชั้นเรียน[วัน]=ClassSchedule[[#Headers],[วันเสาร์]])*(ROUNDDOWN($B5,10)>=ROUNDDOWN(รายการชั้นเรียน[เวลาเริ่มต้น],10))*($B5<=รายการชั้นเรียน[เวลาสิ้นสุด]),รายการชั้นเรียน[โดดเด่น]),รายการชั้นเรียน[โดดเด่น],0),2),0)","v":0}]
[null,"08:30:00",{"$f":"IFERROR(INDEX(รายการชั้นเรียน[],MATCH(SUMPRODUCT((รายการชั้นเรียน[วัน]=ClassSchedule[[#Headers],[วันอาทิตย์]])*(ROUNDDOWN($B6,10)>=ROUNDDOWN(รายการชั้นเรียน[เวลาเริ่มต้น],10))*($B6<=รายการชั้นเรียน[เวลาสิ้นสุด]),รายการชั้นเรียน[โดดเด่น]),รายการชั้นเรียน[โดดเด่น],0),2),0)","v":0},{"$f":"IFERROR(INDEX(รายการชั้นเรียน[],MATCH(SUMPRODUCT((รายการชั้นเรียน[วัน]=ClassSchedule[[#Headers],[วันจันทร์]])*(ROUNDDOWN($B6,10)>=ROUNDDOWN(รายการชั้นเรียน[เวลาเริ่มต้น],10))*($B6<=รายการชั้นเรียน[เวลาสิ้นสุด]),รายการชั้นเรียน[โดดเด่น]),รายการชั้นเรียน[โดดเด่น],0),2),0)","v":"MTH-113"},{"$f":"IFERROR(INDEX(รายการชั้นเรียน[],MATCH(SUMPRODUCT((รายการชั้นเรียน[วัน]=ClassSchedule[[#Headers],[อังคาร]])*(ROUNDDOWN($B6,10)>=ROUNDDOWN(รายการชั้นเรียน[เวลาเริ่มต้น],10))*($B6<=รายการชั้นเรียน[เวลาสิ้นสุด]),รายการชั้นเรียน[โดดเด่น]),รายการชั้นเรียน[โดดเด่น],0),2),0)","v":0},{"$f":"IFERROR(INDEX(รายการชั้นเรียน[],MATCH(SUMPRODUCT((รายการชั้นเรียน[วัน]=ClassSchedule[[#Headers],[วันพุธ]])*(ROUNDDOWN($B6,10)>=ROUNDDOWN(รายการชั้นเรียน[เวลาเริ่มต้น],10))*($B6<=รายการชั้นเรียน[เวลาสิ้นสุด]),รายการชั้นเรียน[โดดเด่น]),รายการชั้นเรียน[โดดเด่น],0),2),0)","v":"MTH-113"},{"$f":"IFERROR(INDEX(รายการชั้นเรียน[],MATCH(SUMPRODUCT((รายการชั้นเรียน[วัน]=ClassSchedule[[#Headers],[วันพฤหัสบดี]])*(ROUNDDOWN($B6,10)>=ROUNDDOWN(รายการชั้นเรียน[เวลาเริ่มต้น],10))*($B6<=รายการชั้นเรียน[เวลาสิ้นสุด]),รายการชั้นเรียน[โดดเด่น]),รายการชั้นเรียน[โดดเด่น],0),2),0)","v":0},{"$f":"IFERROR(INDEX(รายการชั้นเรียน[],MATCH(SUMPRODUCT((รายการชั้นเรียน[วัน]=ClassSchedule[[#Headers],[วันศุกร์]])*(ROUNDDOWN($B6,10)>=ROUNDDOWN(รายการชั้นเรียน[เวลาเริ่มต้น],10))*($B6<=รายการชั้นเรียน[เวลาสิ้นสุด]),รายการชั้นเรียน[โดดเด่น]),รายการชั้นเรียน[โดดเด่น],0),2),0)","v":"MTH-113"},{"$f":"IFERROR(INDEX(รายการชั้นเรียน[],MATCH(SUMPRODUCT((รายการชั้นเรียน[วัน]=ClassSchedule[[#Headers],[วันเสาร์]])*(ROUNDDOWN($B6,10)>=ROUNDDOWN(รายการชั้นเรียน[เวลาเริ่มต้น],10))*($B6<=รายการชั้นเรียน[เวลาสิ้นสุด]),รายการชั้นเรียน[โดดเด่น]),รายการชั้นเรียน[โดดเด่น],0),2),0)","v":0}]
[null,"08:45:00",{"$f":"IFERROR(INDEX(รายการชั้นเรียน[],MATCH(SUMPRODUCT((รายการชั้นเรียน[วัน]=ClassSchedule[[#Headers],[วันอาทิตย์]])*(ROUNDDOWN($B7,10)>=ROUNDDOWN(รายการชั้นเรียน[เวลาเริ่มต้น],10))*($B7<=รายการชั้นเรียน[เวลาสิ้นสุด]),รายการชั้นเรียน[โดดเด่น]),รายการชั้นเรียน[โดดเด่น],0),2),0)","v":0},{"$f":"IFERROR(INDEX(รายการชั้นเรียน[],MATCH(SUMPRODUCT((รายการชั้นเรียน[วัน]=ClassSchedule[[#Headers],[วันจันทร์]])*(ROUNDDOWN($B7,10)>=ROUNDDOWN(รายการชั้นเรียน[เวลาเริ่มต้น],10))*($B7<=รายการชั้นเรียน[เวลาสิ้นสุด]),รายการชั้นเรียน[โดดเด่น]),รายการชั้นเรียน[โดดเด่น],0),2),0)","v":"MTH-113"},{"$f":"IFERROR(INDEX(รายการชั้นเรียน[],MATCH(SUMPRODUCT((รายการชั้นเรียน[วัน]=ClassSchedule[[#Headers],[อังคาร]])*(ROUNDDOWN($B7,10)>=ROUNDDOWN(รายการชั้นเรียน[เวลาเริ่มต้น],10))*($B7<=รายการชั้นเรียน[เวลาสิ้นสุด]),รายการชั้นเรียน[โดดเด่น]),รายการชั้นเรียน[โดดเด่น],0),2),0)","v":0},{"$f":"IFERROR(INDEX(รายการชั้นเรียน[],MATCH(SUMPRODUCT((รายการชั้นเรียน[วัน]=ClassSchedule[[#Headers],[วันพุธ]])*(ROUNDDOWN($B7,10)>=ROUNDDOWN(รายการชั้นเรียน[เวลาเริ่มต้น],10))*($B7<=รายการชั้นเรียน[เวลาสิ้นสุด]),รายการชั้นเรียน[โดดเด่น]),รายการชั้นเรียน[โดดเด่น],0),2),0)","v":"MTH-113"},{"$f":"IFERROR(INDEX(รายการชั้นเรียน[],MATCH(SUMPRODUCT((รายการชั้นเรียน[วัน]=ClassSchedule[[#Headers],[วันพฤหัสบดี]])*(ROUNDDOWN($B7,10)>=ROUNDDOWN(รายการชั้นเรียน[เวลาเริ่มต้น],10))*($B7<=รายการชั้นเรียน[เวลาสิ้นสุด]),รายการชั้นเรียน[โดดเด่น]),รายการชั้นเรียน[โดดเด่น],0),2),0)","v":0},{"$f":"IFERROR(INDEX(รายการชั้นเรียน[],MATCH(SUMPRODUCT((รายการชั้นเรียน[วัน]=ClassSchedule[[#Headers],[วันศุกร์]])*(ROUNDDOWN($B7,10)>=ROUNDDOWN(รายการชั้นเรียน[เวลาเริ่มต้น],10))*($B7<=รายการชั้นเรียน[เวลาสิ้นสุด]),รายการชั้นเรียน[โดดเด่น]),รายการชั้นเรียน[โดดเด่น],0),2),0)","v":"MTH-113"},{"$f":"IFERROR(INDEX(รายการชั้นเรียน[],MATCH(SUMPRODUCT((รายการชั้นเรียน[วัน]=ClassSchedule[[#Headers],[วันเสาร์]])*(ROUNDDOWN($B7,10)>=ROUNDDOWN(รายการชั้นเรียน[เวลาเริ่มต้น],10))*($B7<=รายการชั้นเรียน[เวลาสิ้นสุด]),รายการชั้นเรียน[โดดเด่น]),รายการชั้นเรียน[โดดเด่น],0),2),0)","v":0}]
[null,"09:00:00",{"$f":"IFERROR(INDEX(รายการชั้นเรียน[],MATCH(SUMPRODUCT((รายการชั้นเรียน[วัน]=ClassSchedule[[#Headers],[วันอาทิตย์]])*(ROUNDDOWN($B8,10)>=ROUNDDOWN(รายการชั้นเรียน[เวลาเริ่มต้น],10))*($B8<=รายการชั้นเรียน[เวลาสิ้นสุด]),รายการชั้นเรียน[โดดเด่น]),รายการชั้นเรียน[โดดเด่น],0),2),0)","v":0},{"$f":"IFERROR(INDEX(รายการชั้นเรียน[],MATCH(SUMPRODUCT((รายการชั้นเรียน[วัน]=ClassSchedule[[#Headers],[วันจันทร์]])*(ROUNDDOWN($B8,10)>=ROUNDDOWN(รายการชั้นเรียน[เวลาเริ่มต้น],10))*($B8<=รายการชั้นเรียน[เวลาสิ้นสุด]),รายการชั้นเรียน[โดดเด่น]),รายการชั้นเรียน[โดดเด่น],0),2),0)","v":"MTH-113"},{"$f":"IFERROR(INDEX(รายการชั้นเรียน[],MATCH(SUMPRODUCT((รายการชั้นเรียน[วัน]=ClassSchedule[[#Headers],[อังคาร]])*(ROUNDDOWN($B8,10)>=ROUNDDOWN(รายการชั้นเรียน[เวลาเริ่มต้น],10))*($B8<=รายการชั้นเรียน[เวลาสิ้นสุด]),รายการชั้นเรียน[โดดเด่น]),รายการชั้นเรียน[โดดเด่น],0),2),0)","v":0},{"$f":"IFERROR(INDEX(รายการชั้นเรียน[],MATCH(SUMPRODUCT((รายการชั้นเรียน[วัน]=ClassSchedule[[#Headers],[วันพุธ]])*(ROUNDDOWN($B8,10)>=ROUNDDOWN(รายการชั้นเรียน[เวลาเริ่มต้น],10))*($B8<=รายการชั้นเรียน[เวลาสิ้นสุด]),รายการชั้นเรียน[โดดเด่น]),รายการชั้นเรียน[โดดเด่น],0),2),0)","v":"MTH-113"},{"$f":"IFERROR(INDEX(รายการชั้นเรียน[],MATCH(SUMPRODUCT((รายการชั้นเรียน[วัน]=ClassSchedule[[#Headers],[วันพฤหัสบดี]])*(ROUNDDOWN($B8,10)>=ROUNDDOWN(รายการชั้นเรียน[เวลาเริ่มต้น],10))*($B8<=รายการชั้นเรียน[เวลาสิ้นสุด]),รายการชั้นเรียน[โดดเด่น]),รายการชั้นเรียน[โดดเด่น],0),2),0)","v":0},{"$f":"IFERROR(INDEX(รายการชั้นเรียน[],MATCH(SUMPRODUCT((รายการชั้นเรียน[วัน]=ClassSchedule[[#Headers],[วันศุกร์]])*(ROUNDDOWN($B8,10)>=ROUNDDOWN(รายการชั้นเรียน[เวลาเริ่มต้น],10))*($B8<=รายการชั้นเรียน[เวลาสิ้นสุด]),รายการชั้นเรียน[โดดเด่น]),รายการชั้นเรียน[โดดเด่น],0),2),0)","v":"MTH-113"},{"$f":"IFERROR(INDEX(รายการชั้นเรียน[],MATCH(SUMPRODUCT((รายการชั้นเรียน[วัน]=ClassSchedule[[#Headers],[วันเสาร์]])*(ROUNDDOWN($B8,10)>=ROUNDDOWN(รายการชั้นเรียน[เวลาเริ่มต้น],10))*($B8<=รายการชั้นเรียน[เวลาสิ้นสุด]),รายการชั้นเรียน[โดดเด่น]),รายการชั้นเรียน[โดดเด่น],0),2),0)","v":0}]
[null,"09:15:00",{"$f":"IFERROR(INDEX(รายการชั้นเรียน[],MATCH(SUMPRODUCT((รายการชั้นเรียน[วัน]=ClassSchedule[[#Headers],[วันอาทิตย์]])*(ROUNDDOWN($B9,10)>=ROUNDDOWN(รายการชั้นเรียน[เวลาเริ่มต้น],10))*($B9<=รายการชั้นเรียน[เวลาสิ้นสุด]),รายการชั้นเรียน[โดดเด่น]),รายการชั้นเรียน[โดดเด่น],0),2),0)","v":0},{"$f":"IFERROR(INDEX(รายการชั้นเรียน[],MATCH(SUMPRODUCT((รายการชั้นเรียน[วัน]=ClassSchedule[[#Headers],[วันจันทร์]])*(ROUNDDOWN($B9,10)>=ROUNDDOWN(รายการชั้นเรียน[เวลาเริ่มต้น],10))*($B9<=รายการชั้นเรียน[เวลาสิ้นสุด]),รายการชั้นเรียน[โดดเด่น]),รายการชั้นเรียน[โดดเด่น],0),2),0)","v":"MTH-113"},{"$f":"IFERROR(INDEX(รายการชั้นเรียน[],MATCH(SUMPRODUCT((รายการชั้นเรียน[วัน]=ClassSchedule[[#Headers],[อังคาร]])*(ROUNDDOWN($B9,10)>=ROUNDDOWN(รายการชั้นเรียน[เวลาเริ่มต้น],10))*($B9<=รายการชั้นเรียน[เวลาสิ้นสุด]),รายการชั้นเรียน[โดดเด่น]),รายการชั้นเรียน[โดดเด่น],0),2),0)","v":0},{"$f":"IFERROR(INDEX(รายการชั้นเรียน[],MATCH(SUMPRODUCT((รายการชั้นเรียน[วัน]=ClassSchedule[[#Headers],[วันพุธ]])*(ROUNDDOWN($B9,10)>=ROUNDDOWN(รายการชั้นเรียน[เวลาเริ่มต้น],10))*($B9<=รายการชั้นเรียน[เวลาสิ้นสุด]),รายการชั้นเรียน[โดดเด่น]),รายการชั้นเรียน[โดดเด่น],0),2),0)","v":"MTH-113"},{"$f":"IFERROR(INDEX(รายการชั้นเรียน[],MATCH(SUMPRODUCT((รายการชั้นเรียน[วัน]=ClassSchedule[[#Headers],[วันพฤหัสบดี]])*(ROUNDDOWN($B9,10)>=ROUNDDOWN(รายการชั้นเรียน[เวลาเริ่มต้น],10))*($B9<=รายการชั้นเรียน[เวลาสิ้นสุด]),รายการชั้นเรียน[โดดเด่น]),รายการชั้นเรียน[โดดเด่น],0),2),0)","v":0},{"$f":"IFERROR(INDEX(รายการชั้นเรียน[],MATCH(SUMPRODUCT((รายการชั้นเรียน[วัน]=ClassSchedule[[#Headers],[วันศุกร์]])*(ROUNDDOWN($B9,10)>=ROUNDDOWN(รายการชั้นเรียน[เวลาเริ่มต้น],10))*($B9<=รายการชั้นเรียน[เวลาสิ้นสุด]),รายการชั้นเรียน[โดดเด่น]),รายการชั้นเรียน[โดดเด่น],0),2),0)","v":"MTH-113"},{"$f":"IFERROR(INDEX(รายการชั้นเรียน[],MATCH(SUMPRODUCT((รายการชั้นเรียน[วัน]=ClassSchedule[[#Headers],[วันเสาร์]])*(ROUNDDOWN($B9,10)>=ROUNDDOWN(รายการชั้นเรียน[เวลาเริ่มต้น],10))*($B9<=รายการชั้นเรียน[เวลาสิ้นสุด]),รายการชั้นเรียน[โดดเด่น]),รายการชั้นเรียน[โดดเด่น],0),2),0)","v":0}]
[null,"09:30:00",{"$f":"IFERROR(INDEX(รายการชั้นเรียน[],MATCH(SUMPRODUCT((รายการชั้นเรียน[วัน]=ClassSchedule[[#Headers],[วันอาทิตย์]])*(ROUNDDOWN($B10,10)>=ROUNDDOWN(รายการชั้นเรียน[เวลาเริ่มต้น],10))*($B10<=รายการชั้นเรียน[เวลาสิ้นสุด]),รายการชั้นเรียน[โดดเด่น]),รายการชั้นเรียน[โดดเด่น],0),2),0)","v":0},{"$f":"IFERROR(INDEX(รายการชั้นเรียน[],MATCH(SUMPRODUCT((รายการชั้นเรียน[วัน]=ClassSchedule[[#Headers],[วันจันทร์]])*(ROUNDDOWN($B10,10)>=ROUNDDOWN(รายการชั้นเรียน[เวลาเริ่มต้น],10))*($B10<=รายการชั้นเรียน[เวลาสิ้นสุด]),รายการชั้นเรียน[โดดเด่น]),รายการชั้นเรียน[โดดเด่น],0),2),0)","v":0},{"$f":"IFERROR(INDEX(รายการชั้นเรียน[],MATCH(SUMPRODUCT((รายการชั้นเรียน[วัน]=ClassSchedule[[#Headers],[อังคาร]])*(ROUNDDOWN($B10,10)>=ROUNDDOWN(รายการชั้นเรียน[เวลาเริ่มต้น],10))*($B10<=รายการชั้นเรียน[เวลาสิ้นสุด]),รายการชั้นเรียน[โดดเด่น]),รายการชั้นเรียน[โดดเด่น],0),2),0)","v":0},{"$f":"IFERROR(INDEX(รายการชั้นเรียน[],MATCH(SUMPRODUCT((รายการชั้นเรียน[วัน]=ClassSchedule[[#Headers],[วันพุธ]])*(ROUNDDOWN($B10,10)>=ROUNDDOWN(รายการชั้นเรียน[เวลาเริ่มต้น],10))*($B10<=รายการชั้นเรียน[เวลาสิ้นสุด]),รายการชั้นเรียน[โดดเด่น]),รายการชั้นเรียน[โดดเด่น],0),2),0)","v":0},{"$f":"IFERROR(INDEX(รายการชั้นเรียน[],MATCH(SUMPRODUCT((รายการชั้นเรียน[วัน]=ClassSchedule[[#Headers],[วันพฤหัสบดี]])*(ROUNDDOWN($B10,10)>=ROUNDDOWN(รายการชั้นเรียน[เวลาเริ่มต้น],10))*($B10<=รายการชั้นเรียน[เวลาสิ้นสุด]),รายการชั้นเรียน[โดดเด่น]),รายการชั้นเรียน[โดดเด่น],0),2),0)","v":0},{"$f":"IFERROR(INDEX(รายการชั้นเรียน[],MATCH(SUMPRODUCT((รายการชั้นเรียน[วัน]=ClassSchedule[[#Headers],[วันศุกร์]])*(ROUNDDOWN($B10,10)>=ROUNDDOWN(รายการชั้นเรียน[เวลาเริ่มต้น],10))*($B10<=รายการชั้นเรียน[เวลาสิ้นสุด]),รายการชั้นเรียน[โดดเด่น]),รายการชั้นเรียน[โดดเด่น],0),2),0)","v":0},{"$f":"IFERROR(INDEX(รายการชั้นเรียน[],MATCH(SUMPRODUCT((รายการชั้นเรียน[วัน]=ClassSchedule[[#Headers],[วันเสาร์]])*(ROUNDDOWN($B10,10)>=ROUNDDOWN(รายการชั้นเรียน[เวลาเริ่มต้น],10))*($B10<=รายการชั้นเรียน[เวลาสิ้นสุด]),รายการชั้นเรียน[โดดเด่น]),รายการชั้นเรียน[โดดเด่น],0),2),0)","v":0}]
[null,"09:45:00",{"$f":"IFERROR(INDEX(รายการชั้นเรียน[],MATCH(SUMPRODUCT((รายการชั้นเรียน[วัน]=ClassSchedule[[#Headers],[วันอาทิตย์]])*(ROUNDDOWN($B11,10)>=ROUNDDOWN(รายการชั้นเรียน[เวลาเริ่มต้น],10))*($B11<=รายการชั้นเรียน[เวลาสิ้นสุด]),รายการชั้นเรียน[โดดเด่น]),รายการชั้นเรียน[โดดเด่น],0),2),0)","v":0},{"$f":"IFERROR(INDEX(รายการชั้นเรียน[],MATCH(SUMPRODUCT((รายการชั้นเรียน[วัน]=ClassSchedule[[#Headers],[วันจันทร์]])*(ROUNDDOWN($B11,10)>=ROUNDDOWN(รายการชั้นเรียน[เวลาเริ่มต้น],10))*($B11<=รายการชั้นเรียน[เวลาสิ้นสุด]),รายการชั้นเรียน[โดดเด่น]),รายการชั้นเรียน[โดดเด่น],0),2),0)","v":0},{"$f":"IFERROR(INDEX(รายการชั้นเรียน[],MATCH(SUMPRODUCT((รายการชั้นเรียน[วัน]=ClassSchedule[[#Headers],[อังคาร]])*(ROUNDDOWN($B11,10)>=ROUNDDOWN(รายการชั้นเรียน[เวลาเริ่มต้น],10))*($B11<=รายการชั้นเรียน[เวลาสิ้นสุด]),รายการชั้นเรียน[โดดเด่น]),รายการชั้นเรียน[โดดเด่น],0),2),0)","v":0},{"$f":"IFERROR(INDEX(รายการชั้นเรียน[],MATCH(SUMPRODUCT((รายการชั้นเรียน[วัน]=ClassSchedule[[#Headers],[วันพุธ]])*(ROUNDDOWN($B11,10)>=ROUNDDOWN(รายการชั้นเรียน[เวลาเริ่มต้น],10))*($B11<=รายการชั้นเรียน[เวลาสิ้นสุด]),รายการชั้นเรียน[โดดเด่น]),รายการชั้นเรียน[โดดเด่น],0),2),0)","v":0},{"$f":"IFERROR(INDEX(รายการชั้นเรียน[],MATCH(SUMPRODUCT((รายการชั้นเรียน[วัน]=ClassSchedule[[#Headers],[วันพฤหัสบดี]])*(ROUNDDOWN($B11,10)>=ROUNDDOWN(รายการชั้นเรียน[เวลาเริ่มต้น],10))*($B11<=รายการชั้นเรียน[เวลาสิ้นสุด]),รายการชั้นเรียน[โดดเด่น]),รายการชั้นเรียน[โดดเด่น],0),2),0)","v":0},{"$f":"IFERROR(INDEX(รายการชั้นเรียน[],MATCH(SUMPRODUCT((รายการชั้นเรียน[วัน]=ClassSchedule[[#Headers],[วันศุกร์]])*(ROUNDDOWN($B11,10)>=ROUNDDOWN(รายการชั้นเรียน[เวลาเริ่มต้น],10))*($B11<=รายการชั้นเรียน[เวลาสิ้นสุด]),รายการชั้นเรียน[โดดเด่น]),รายการชั้นเรียน[โดดเด่น],0),2),0)","v":0},{"$f":"IFERROR(INDEX(รายการชั้นเรียน[],MATCH(SUMPRODUCT((รายการชั้นเรียน[วัน]=ClassSchedule[[#Headers],[วันเสาร์]])*(ROUNDDOWN($B11,10)>=ROUNDDOWN(รายการชั้นเรียน[เวลาเริ่มต้น],10))*($B11<=รายการชั้นเรียน[เวลาสิ้นสุด]),รายการชั้นเรียน[โดดเด่น]),รายการชั้นเรียน[โดดเด่น],0),2),0)","v":0}]
[null,"10:00:00",{"$f":"IFERROR(INDEX(รายการชั้นเรียน[],MATCH(SUMPRODUCT((รายการชั้นเรียน[วัน]=ClassSchedule[[#Headers],[วันอาทิตย์]])*(ROUNDDOWN($B12,10)>=ROUNDDOWN(รายการชั้นเรียน[เวลาเริ่มต้น],10))*($B12<=รายการชั้นเรียน[เวลาสิ้นสุด]),รายการชั้นเรียน[โดดเด่น]),รายการชั้นเรียน[โดดเด่น],0),2),0)","v":0},{"$f":"IFERROR(INDEX(รายการชั้นเรียน[],MATCH(SUMPRODUCT((รายการชั้นเรียน[วัน]=ClassSchedule[[#Headers],[วันจันทร์]])*(ROUNDDOWN($B12,10)>=ROUNDDOWN(รายการชั้นเรียน[เวลาเริ่มต้น],10))*($B12<=รายการชั้นเรียน[เวลาสิ้นสุด]),รายการชั้นเรียน[โดดเด่น]),รายการชั้นเรียน[โดดเด่น],0),2),0)","v":0},{"$f":"IFERROR(INDEX(รายการชั้นเรียน[],MATCH(SUMPRODUCT((รายการชั้นเรียน[วัน]=ClassSchedule[[#Headers],[อังคาร]])*(ROUNDDOWN($B12,10)>=ROUNDDOWN(รายการชั้นเรียน[เวลาเริ่มต้น],10))*($B12<=รายการชั้นเรียน[เวลาสิ้นสุด]),รายการชั้นเรียน[โดดเด่น]),รายการชั้นเรียน[โดดเด่น],0),2),0)","v":0},{"$f":"IFERROR(INDEX(รายการชั้นเรียน[],MATCH(SUMPRODUCT((รายการชั้นเรียน[วัน]=ClassSchedule[[#Headers],[วันพุธ]])*(ROUNDDOWN($B12,10)>=ROUNDDOWN(รายการชั้นเรียน[เวลาเริ่มต้น],10))*($B12<=รายการชั้นเรียน[เวลาสิ้นสุด]),รายการชั้นเรียน[โดดเด่น]),รายการชั้นเรียน[โดดเด่น],0),2),0)","v":0},{"$f":"IFERROR(INDEX(รายการชั้นเรียน[],MATCH(SUMPRODUCT((รายการชั้นเรียน[วัน]=ClassSchedule[[#Headers],[วันพฤหัสบดี]])*(ROUNDDOWN($B12,10)>=ROUNDDOWN(รายการชั้นเรียน[เวลาเริ่มต้น],10))*($B12<=รายการชั้นเรียน[เวลาสิ้นสุด]),รายการชั้นเรียน[โดดเด่น]),รายการชั้นเรียน[โดดเด่น],0),2),0)","v":0},{"$f":"IFERROR(INDEX(รายการชั้นเรียน[],MATCH(SUMPRODUCT((รายการชั้นเรียน[วัน]=ClassSchedule[[#Headers],[วันศุกร์]])*(ROUNDDOWN($B12,10)>=ROUNDDOWN(รายการชั้นเรียน[เวลาเริ่มต้น],10))*($B12<=รายการชั้นเรียน[เวลาสิ้นสุด]),รายการชั้นเรียน[โดดเด่น]),รายการชั้นเรียน[โดดเด่น],0),2),0)","v":0},{"$f":"IFERROR(INDEX(รายการชั้นเรียน[],MATCH(SUMPRODUCT((รายการชั้นเรียน[วัน]=ClassSchedule[[#Headers],[วันเสาร์]])*(ROUNDDOWN($B12,10)>=ROUNDDOWN(รายการชั้นเรียน[เวลาเริ่มต้น],10))*($B12<=รายการชั้นเรียน[เวลาสิ้นสุด]),รายการชั้นเรียน[โดดเด่น]),รายการชั้นเรียน[โดดเด่น],0),2),0)","v":0}]
[null,"10:15:00",{"$f":"IFERROR(INDEX(รายการชั้นเรียน[],MATCH(SUMPRODUCT((รายการชั้นเรียน[วัน]=ClassSchedule[[#Headers],[วันอาทิตย์]])*(ROUNDDOWN($B13,10)>=ROUNDDOWN(รายการชั้นเรียน[เวลาเริ่มต้น],10))*($B13<=รายการชั้นเรียน[เวลาสิ้นสุด]),รายการชั้นเรียน[โดดเด่น]),รายการชั้นเรียน[โดดเด่น],0),2),0)","v":0},{"$f":"IFERROR(INDEX(รายการชั้นเรียน[],MATCH(SUMPRODUCT((รายการชั้นเรียน[วัน]=ClassSchedule[[#Headers],[วันจันทร์]])*(ROUNDDOWN($B13,10)>=ROUNDDOWN(รายการชั้นเรียน[เวลาเริ่มต้น],10))*($B13<=รายการชั้นเรียน[เวลาสิ้นสุด]),รายการชั้นเรียน[โดดเด่น]),รายการชั้นเรียน[โดดเด่น],0),2),0)","v":0},{"$f":"IFERROR(INDEX(รายการชั้นเรียน[],MATCH(SUMPRODUCT((รายการชั้นเรียน[วัน]=ClassSchedule[[#Headers],[อังคาร]])*(ROUNDDOWN($B13,10)>=ROUNDDOWN(รายการชั้นเรียน[เวลาเริ่มต้น],10))*($B13<=รายการชั้นเรียน[เวลาสิ้นสุด]),รายการชั้นเรียน[โดดเด่น]),รายการชั้นเรียน[โดดเด่น],0),2),0)","v":0},{"$f":"IFERROR(INDEX(รายการชั้นเรียน[],MATCH(SUMPRODUCT((รายการชั้นเรียน[วัน]=ClassSchedule[[#Headers],[วันพุธ]])*(ROUNDDOWN($B13,10)>=ROUNDDOWN(รายการชั้นเรียน[เวลาเริ่มต้น],10))*($B13<=รายการชั้นเรียน[เวลาสิ้นสุด]),รายการชั้นเรียน[โดดเด่น]),รายการชั้นเรียน[โดดเด่น],0),2),0)","v":0},{"$f":"IFERROR(INDEX(รายการชั้นเรียน[],MATCH(SUMPRODUCT((รายการชั้นเรียน[วัน]=ClassSchedule[[#Headers],[วันพฤหัสบดี]])*(ROUNDDOWN($B13,10)>=ROUNDDOWN(รายการชั้นเรียน[เวลาเริ่มต้น],10))*($B13<=รายการชั้นเรียน[เวลาสิ้นสุด]),รายการชั้นเรียน[โดดเด่น]),รายการชั้นเรียน[โดดเด่น],0),2),0)","v":0},{"$f":"IFERROR(INDEX(รายการชั้นเรียน[],MATCH(SUMPRODUCT((รายการชั้นเรียน[วัน]=ClassSchedule[[#Headers],[วันศุกร์]])*(ROUNDDOWN($B13,10)>=ROUNDDOWN(รายการชั้นเรียน[เวลาเริ่มต้น],10))*($B13<=รายการชั้นเรียน[เวลาสิ้นสุด]),รายการชั้นเรียน[โดดเด่น]),รายการชั้นเรียน[โดดเด่น],0),2),0)","v":0},{"$f":"IFERROR(INDEX(รายการชั้นเรียน[],MATCH(SUMPRODUCT((รายการชั้นเรียน[วัน]=ClassSchedule[[#Headers],[วันเสาร์]])*(ROUNDDOWN($B13,10)>=ROUNDDOWN(รายการชั้นเรียน[เวลาเริ่มต้น],10))*($B13<=รายการชั้นเรียน[เวลาสิ้นสุด]),รายการชั้นเรียน[โดดเด่น]),รายการชั้นเรียน[โดดเด่น],0),2),0)","v":0}]
[null,"10:30:00",{"$f":"IFERROR(INDEX(รายการชั้นเรียน[],MATCH(SUMPRODUCT((รายการชั้นเรียน[วัน]=ClassSchedule[[#Headers],[วันอาทิตย์]])*(ROUNDDOWN($B14,10)>=ROUNDDOWN(รายการชั้นเรียน[เวลาเริ่มต้น],10))*($B14<=รายการชั้นเรียน[เวลาสิ้นสุด]),รายการชั้นเรียน[โดดเด่น]),รายการชั้นเรียน[โดดเด่น],0),2),0)","v":0},{"$f":"IFERROR(INDEX(รายการชั้นเรียน[],MATCH(SUMPRODUCT((รายการชั้นเรียน[วัน]=ClassSchedule[[#Headers],[วันจันทร์]])*(ROUNDDOWN($B14,10)>=ROUNDDOWN(รายการชั้นเรียน[เวลาเริ่มต้น],10))*($B14<=รายการชั้นเรียน[เวลาสิ้นสุด]),รายการชั้นเรียน[โดดเด่น]),รายการชั้นเรียน[โดดเด่น],0),2),0)","v":0},{"$f":"IFERROR(INDEX(รายการชั้นเรียน[],MATCH(SUMPRODUCT((รายการชั้นเรียน[วัน]=ClassSchedule[[#Headers],[อังคาร]])*(ROUNDDOWN($B14,10)>=ROUNDDOWN(รายการชั้นเรียน[เวลาเริ่มต้น],10))*($B14<=รายการชั้นเรียน[เวลาสิ้นสุด]),รายการชั้นเรียน[โดดเด่น]),รายการชั้นเรียน[โดดเด่น],0),2),0)","v":0},{"$f":"IFERROR(INDEX(รายการชั้นเรียน[],MATCH(SUMPRODUCT((รายการชั้นเรียน[วัน]=ClassSchedule[[#Headers],[วันพุธ]])*(ROUNDDOWN($B14,10)>=ROUNDDOWN(รายการชั้นเรียน[เวลาเริ่มต้น],10))*($B14<=รายการชั้นเรียน[เวลาสิ้นสุด]),รายการชั้นเรียน[โดดเด่น]),รายการชั้นเรียน[โดดเด่น],0),2),0)","v":0},{"$f":"IFERROR(INDEX(รายการชั้นเรียน[],MATCH(SUMPRODUCT((รายการชั้นเรียน[วัน]=ClassSchedule[[#Headers],[วันพฤหัสบดี]])*(ROUNDDOWN($B14,10)>=ROUNDDOWN(รายการชั้นเรียน[เวลาเริ่มต้น],10))*($B14<=รายการชั้นเรียน[เวลาสิ้นสุด]),รายการชั้นเรียน[โดดเด่น]),รายการชั้นเรียน[โดดเด่น],0),2),0)","v":0},{"$f":"IFERROR(INDEX(รายการชั้นเรียน[],MATCH(SUMPRODUCT((รายการชั้นเรียน[วัน]=ClassSchedule[[#Headers],[วันศุกร์]])*(ROUNDDOWN($B14,10)>=ROUNDDOWN(รายการชั้นเรียน[เวลาเริ่มต้น],10))*($B14<=รายการชั้นเรียน[เวลาสิ้นสุด]),รายการชั้นเรียน[โดดเด่น]),รายการชั้นเรียน[โดดเด่น],0),2),0)","v":0},{"$f":"IFERROR(INDEX(รายการชั้นเรียน[],MATCH(SUMPRODUCT((รายการชั้นเรียน[วัน]=ClassSchedule[[#Headers],[วันเสาร์]])*(ROUNDDOWN($B14,10)>=ROUNDDOWN(รายการชั้นเรียน[เวลาเริ่มต้น],10))*($B14<=รายการชั้นเรียน[เวลาสิ้นสุด]),รายการชั้นเรียน[โดดเด่น]),รายการชั้นเรียน[โดดเด่น],0),2),0)","v":0}]
[null,"10:45:00",{"$f":"IFERROR(INDEX(รายการชั้นเรียน[],MATCH(SUMPRODUCT((รายการชั้นเรียน[วัน]=ClassSchedule[[#Headers],[วันอาทิตย์]])*(ROUNDDOWN($B15,10)>=ROUNDDOWN(รายการชั้นเรียน[เวลาเริ่มต้น],10))*($B15<=รายการชั้นเรียน[เวลาสิ้นสุด]),รายการชั้นเรียน[โดดเด่น]),รายการชั้นเรียน[โดดเด่น],0),2),0)","v":0},{"$f":"IFERROR(INDEX(รายการชั้นเรียน[],MATCH(SUMPRODUCT((รายการชั้นเรียน[วัน]=ClassSchedule[[#Headers],[วันจันทร์]])*(ROUNDDOWN($B15,10)>=ROUNDDOWN(รายการชั้นเรียน[เวลาเริ่มต้น],10))*($B15<=รายการชั้นเรียน[เวลาสิ้นสุด]),รายการชั้นเรียน[โดดเด่น]),รายการชั้นเรียน[โดดเด่น],0),2),0)","v":0},{"$f":"IFERROR(INDEX(รายการชั้นเรียน[],MATCH(SUMPRODUCT((รายการชั้นเรียน[วัน]=ClassSchedule[[#Headers],[อังคาร]])*(ROUNDDOWN($B15,10)>=ROUNDDOWN(รายการชั้นเรียน[เวลาเริ่มต้น],10))*($B15<=รายการชั้นเรียน[เวลาสิ้นสุด]),รายการชั้นเรียน[โดดเด่น]),รายการชั้นเรียน[โดดเด่น],0),2),0)","v":0},{"$f":"IFERROR(INDEX(รายการชั้นเรียน[],MATCH(SUMPRODUCT((รายการชั้นเรียน[วัน]=ClassSchedule[[#Headers],[วันพุธ]])*(ROUNDDOWN($B15,10)>=ROUNDDOWN(รายการชั้นเรียน[เวลาเริ่มต้น],10))*($B15<=รายการชั้นเรียน[เวลาสิ้นสุด]),รายการชั้นเรียน[โดดเด่น]),รายการชั้นเรียน[โดดเด่น],0),2),0)","v":0},{"$f":"IFERROR(INDEX(รายการชั้นเรียน[],MATCH(SUMPRODUCT((รายการชั้นเรียน[วัน]=ClassSchedule[[#Headers],[วันพฤหัสบดี]])*(ROUNDDOWN($B15,10)>=ROUNDDOWN(รายการชั้นเรียน[เวลาเริ่มต้น],10))*($B15<=รายการชั้นเรียน[เวลาสิ้นสุด]),รายการชั้นเรียน[โดดเด่น]),รายการชั้นเรียน[โดดเด่น],0),2),0)","v":0},{"$f":"IFERROR(INDEX(รายการชั้นเรียน[],MATCH(SUMPRODUCT((รายการชั้นเรียน[วัน]=ClassSchedule[[#Headers],[วันศุกร์]])*(ROUNDDOWN($B15,10)>=ROUNDDOWN(รายการชั้นเรียน[เวลาเริ่มต้น],10))*($B15<=รายการชั้นเรียน[เวลาสิ้นสุด]),รายการชั้นเรียน[โดดเด่น]),รายการชั้นเรียน[โดดเด่น],0),2),0)","v":0},{"$f":"IFERROR(INDEX(รายการชั้นเรียน[],MATCH(SUMPRODUCT((รายการชั้นเรียน[วัน]=ClassSchedule[[#Headers],[วันเสาร์]])*(ROUNDDOWN($B15,10)>=ROUNDDOWN(รายการชั้นเรียน[เวลาเริ่มต้น],10))*($B15<=รายการชั้นเรียน[เวลาสิ้นสุด]),รายการชั้นเรียน[โดดเด่น]),รายการชั้นเรียน[โดดเด่น],0),2),0)","v":0}]
[null,"11:00:00",{"$f":"IFERROR(INDEX(รายการชั้นเรียน[],MATCH(SUMPRODUCT((รายการชั้นเรียน[วัน]=ClassSchedule[[#Headers],[วันอาทิตย์]])*(ROUNDDOWN($B16,10)>=ROUNDDOWN(รายการชั้นเรียน[เวลาเริ่มต้น],10))*($B16<=รายการชั้นเรียน[เวลาสิ้นสุด]),รายการชั้นเรียน[โดดเด่น]),รายการชั้นเรียน[โดดเด่น],0),2),0)","v":0},{"$f":"IFERROR(INDEX(รายการชั้นเรียน[],MATCH(SUMPRODUCT((รายการชั้นเรียน[วัน]=ClassSchedule[[#Headers],[วันจันทร์]])*(ROUNDDOWN($B16,10)>=ROUNDDOWN(รายการชั้นเรียน[เวลาเริ่มต้น],10))*($B16<=รายการชั้นเรียน[เวลาสิ้นสุด]),รายการชั้นเรียน[โดดเด่น]),รายการชั้นเรียน[โดดเด่น],0),2),0)","v":0},{"$f":"IFERROR(INDEX(รายการชั้นเรียน[],MATCH(SUMPRODUCT((รายการชั้นเรียน[วัน]=ClassSchedule[[#Headers],[อังคาร]])*(ROUNDDOWN($B16,10)>=ROUNDDOWN(รายการชั้นเรียน[เวลาเริ่มต้น],10))*($B16<=รายการชั้นเรียน[เวลาสิ้นสุด]),รายการชั้นเรียน[โดดเด่น]),รายการชั้นเรียน[โดดเด่น],0),2),0)","v":0},{"$f":"IFERROR(INDEX(รายการชั้นเรียน[],MATCH(SUMPRODUCT((รายการชั้นเรียน[วัน]=ClassSchedule[[#Headers],[วันพุธ]])*(ROUNDDOWN($B16,10)>=ROUNDDOWN(รายการชั้นเรียน[เวลาเริ่มต้น],10))*($B16<=รายการชั้นเรียน[เวลาสิ้นสุด]),รายการชั้นเรียน[โดดเด่น]),รายการชั้นเรียน[โดดเด่น],0),2),0)","v":0},{"$f":"IFERROR(INDEX(รายการชั้นเรียน[],MATCH(SUMPRODUCT((รายการชั้นเรียน[วัน]=ClassSchedule[[#Headers],[วันพฤหัสบดี]])*(ROUNDDOWN($B16,10)>=ROUNDDOWN(รายการชั้นเรียน[เวลาเริ่มต้น],10))*($B16<=รายการชั้นเรียน[เวลาสิ้นสุด]),รายการชั้นเรียน[โดดเด่น]),รายการชั้นเรียน[โดดเด่น],0),2),0)","v":"HPE-295"},{"$f":"IFERROR(INDEX(รายการชั้นเรียน[],MATCH(SUMPRODUCT((รายการชั้นเรียน[วัน]=ClassSchedule[[#Headers],[วันศุกร์]])*(ROUNDDOWN($B16,10)>=ROUNDDOWN(รายการชั้นเรียน[เวลาเริ่มต้น],10))*($B16<=รายการชั้นเรียน[เวลาสิ้นสุด]),รายการชั้นเรียน[โดดเด่น]),รายการชั้นเรียน[โดดเด่น],0),2),0)","v":0},{"$f":"IFERROR(INDEX(รายการชั้นเรียน[],MATCH(SUMPRODUCT((รายการชั้นเรียน[วัน]=ClassSchedule[[#Headers],[วันเสาร์]])*(ROUNDDOWN($B16,10)>=ROUNDDOWN(รายการชั้นเรียน[เวลาเริ่มต้น],10))*($B16<=รายการชั้นเรียน[เวลาสิ้นสุด]),รายการชั้นเรียน[โดดเด่น]),รายการชั้นเรียน[โดดเด่น],0),2),0)","v":0}]
[null,"11:15:00",{"$f":"IFERROR(INDEX(รายการชั้นเรียน[],MATCH(SUMPRODUCT((รายการชั้นเรียน[วัน]=ClassSchedule[[#Headers],[วันอาทิตย์]])*(ROUNDDOWN($B17,10)>=ROUNDDOWN(รายการชั้นเรียน[เวลาเริ่มต้น],10))*($B17<=รายการชั้นเรียน[เวลาสิ้นสุด]),รายการชั้นเรียน[โดดเด่น]),รายการชั้นเรียน[โดดเด่น],0),2),0)","v":0},{"$f":"IFERROR(INDEX(รายการชั้นเรียน[],MATCH(SUMPRODUCT((รายการชั้นเรียน[วัน]=ClassSchedule[[#Headers],[วันจันทร์]])*(ROUNDDOWN($B17,10)>=ROUNDDOWN(รายการชั้นเรียน[เวลาเริ่มต้น],10))*($B17<=รายการชั้นเรียน[เวลาสิ้นสุด]),รายการชั้นเรียน[โดดเด่น]),รายการชั้นเรียน[โดดเด่น],0),2),0)","v":0},{"$f":"IFERROR(INDEX(รายการชั้นเรียน[],MATCH(SUMPRODUCT((รายการชั้นเรียน[วัน]=ClassSchedule[[#Headers],[อังคาร]])*(ROUNDDOWN($B17,10)>=ROUNDDOWN(รายการชั้นเรียน[เวลาเริ่มต้น],10))*($B17<=รายการชั้นเรียน[เวลาสิ้นสุด]),รายการชั้นเรียน[โดดเด่น]),รายการชั้นเรียน[โดดเด่น],0),2),0)","v":0},{"$f":"IFERROR(INDEX(รายการชั้นเรียน[],MATCH(SUMPRODUCT((รายการชั้นเรียน[วัน]=ClassSchedule[[#Headers],[วันพุธ]])*(ROUNDDOWN($B17,10)>=ROUNDDOWN(รายการชั้นเรียน[เวลาเริ่มต้น],10))*($B17<=รายการชั้นเรียน[เวลาสิ้นสุด]),รายการชั้นเรียน[โดดเด่น]),รายการชั้นเรียน[โดดเด่น],0),2),0)","v":0},{"$f":"IFERROR(INDEX(รายการชั้นเรียน[],MATCH(SUMPRODUCT((รายการชั้นเรียน[วัน]=ClassSchedule[[#Headers],[วันพฤหัสบดี]])*(ROUNDDOWN($B17,10)>=ROUNDDOWN(รายการชั้นเรียน[เวลาเริ่มต้น],10))*($B17<=รายการชั้นเรียน[เวลาสิ้นสุด]),รายการชั้นเรียน[โดดเด่น]),รายการชั้นเรียน[โดดเด่น],0),2),0)","v":"HPE-295"},{"$f":"IFERROR(INDEX(รายการชั้นเรียน[],MATCH(SUMPRODUCT((รายการชั้นเรียน[วัน]=ClassSchedule[[#Headers],[วันศุกร์]])*(ROUNDDOWN($B17,10)>=ROUNDDOWN(รายการชั้นเรียน[เวลาเริ่มต้น],10))*($B17<=รายการชั้นเรียน[เวลาสิ้นสุด]),รายการชั้นเรียน[โดดเด่น]),รายการชั้นเรียน[โดดเด่น],0),2),0)","v":0},{"$f":"IFERROR(INDEX(รายการชั้นเรียน[],MATCH(SUMPRODUCT((รายการชั้นเรียน[วัน]=ClassSchedule[[#Headers],[วันเสาร์]])*(ROUNDDOWN($B17,10)>=ROUNDDOWN(รายการชั้นเรียน[เวลาเริ่มต้น],10))*($B17<=รายการชั้นเรียน[เวลาสิ้นสุด]),รายการชั้นเรียน[โดดเด่น]),รายการชั้นเรียน[โดดเด่น],0),2),0)","v":0}]
[null,"11:30:00",{"$f":"IFERROR(INDEX(รายการชั้นเรียน[],MATCH(SUMPRODUCT((รายการชั้นเรียน[วัน]=ClassSchedule[[#Headers],[วันอาทิตย์]])*(ROUNDDOWN($B18,10)>=ROUNDDOWN(รายการชั้นเรียน[เวลาเริ่มต้น],10))*($B18<=รายการชั้นเรียน[เวลาสิ้นสุด]),รายการชั้นเรียน[โดดเด่น]),รายการชั้นเรียน[โดดเด่น],0),2),0)","v":0},{"$f":"IFERROR(INDEX(รายการชั้นเรียน[],MATCH(SUMPRODUCT((รายการชั้นเรียน[วัน]=ClassSchedule[[#Headers],[วันจันทร์]])*(ROUNDDOWN($B18,10)>=ROUNDDOWN(รายการชั้นเรียน[เวลาเริ่มต้น],10))*($B18<=รายการชั้นเรียน[เวลาสิ้นสุด]),รายการชั้นเรียน[โดดเด่น]),รายการชั้นเรียน[โดดเด่น],0),2),0)","v":0},{"$f":"IFERROR(INDEX(รายการชั้นเรียน[],MATCH(SUMPRODUCT((รายการชั้นเรียน[วัน]=ClassSchedule[[#Headers],[อังคาร]])*(ROUNDDOWN($B18,10)>=ROUNDDOWN(รายการชั้นเรียน[เวลาเริ่มต้น],10))*($B18<=รายการชั้นเรียน[เวลาสิ้นสุด]),รายการชั้นเรียน[โดดเด่น]),รายการชั้นเรียน[โดดเด่น],0),2),0)","v":0},{"$f":"IFERROR(INDEX(รายการชั้นเรียน[],MATCH(SUMPRODUCT((รายการชั้นเรียน[วัน]=ClassSchedule[[#Headers],[วันพุธ]])*(ROUNDDOWN($B18,10)>=ROUNDDOWN(รายการชั้นเรียน[เวลาเริ่มต้น],10))*($B18<=รายการชั้นเรียน[เวลาสิ้นสุด]),รายการชั้นเรียน[โดดเด่น]),รายการชั้นเรียน[โดดเด่น],0),2),0)","v":0},{"$f":"IFERROR(INDEX(รายการชั้นเรียน[],MATCH(SUMPRODUCT((รายการชั้นเรียน[วัน]=ClassSchedule[[#Headers],[วันพฤหัสบดี]])*(ROUNDDOWN($B18,10)>=ROUNDDOWN(รายการชั้นเรียน[เวลาเริ่มต้น],10))*($B18<=รายการชั้นเรียน[เวลาสิ้นสุด]),รายการชั้นเรียน[โดดเด่น]),รายการชั้นเรียน[โดดเด่น],0),2),0)","v":"HPE-295"},{"$f":"IFERROR(INDEX(รายการชั้นเรียน[],MATCH(SUMPRODUCT((รายการชั้นเรียน[วัน]=ClassSchedule[[#Headers],[วันศุกร์]])*(ROUNDDOWN($B18,10)>=ROUNDDOWN(รายการชั้นเรียน[เวลาเริ่มต้น],10))*($B18<=รายการชั้นเรียน[เวลาสิ้นสุด]),รายการชั้นเรียน[โดดเด่น]),รายการชั้นเรียน[โดดเด่น],0),2),0)","v":0},{"$f":"IFERROR(INDEX(รายการชั้นเรียน[],MATCH(SUMPRODUCT((รายการชั้นเรียน[วัน]=ClassSchedule[[#Headers],[วันเสาร์]])*(ROUNDDOWN($B18,10)>=ROUNDDOWN(รายการชั้นเรียน[เวลาเริ่มต้น],10))*($B18<=รายการชั้นเรียน[เวลาสิ้นสุด]),รายการชั้นเรียน[โดดเด่น]),รายการชั้นเรียน[โดดเด่น],0),2),0)","v":0}]
[null,"11:45:00",{"$f":"IFERROR(INDEX(รายการชั้นเรียน[],MATCH(SUMPRODUCT((รายการชั้นเรียน[วัน]=ClassSchedule[[#Headers],[วันอาทิตย์]])*(ROUNDDOWN($B19,10)>=ROUNDDOWN(รายการชั้นเรียน[เวลาเริ่มต้น],10))*($B19<=รายการชั้นเรียน[เวลาสิ้นสุด]),รายการชั้นเรียน[โดดเด่น]),รายการชั้นเรียน[โดดเด่น],0),2),0)","v":0},{"$f":"IFERROR(INDEX(รายการชั้นเรียน[],MATCH(SUMPRODUCT((รายการชั้นเรียน[วัน]=ClassSchedule[[#Headers],[วันจันทร์]])*(ROUNDDOWN($B19,10)>=ROUNDDOWN(รายการชั้นเรียน[เวลาเริ่มต้น],10))*($B19<=รายการชั้นเรียน[เวลาสิ้นสุด]),รายการชั้นเรียน[โดดเด่น]),รายการชั้นเรียน[โดดเด่น],0),2),0)","v":0},{"$f":"IFERROR(INDEX(รายการชั้นเรียน[],MATCH(SUMPRODUCT((รายการชั้นเรียน[วัน]=ClassSchedule[[#Headers],[อังคาร]])*(ROUNDDOWN($B19,10)>=ROUNDDOWN(รายการชั้นเรียน[เวลาเริ่มต้น],10))*($B19<=รายการชั้นเรียน[เวลาสิ้นสุด]),รายการชั้นเรียน[โดดเด่น]),รายการชั้นเรียน[โดดเด่น],0),2),0)","v":0},{"$f":"IFERROR(INDEX(รายการชั้นเรียน[],MATCH(SUMPRODUCT((รายการชั้นเรียน[วัน]=ClassSchedule[[#Headers],[วันพุธ]])*(ROUNDDOWN($B19,10)>=ROUNDDOWN(รายการชั้นเรียน[เวลาเริ่มต้น],10))*($B19<=รายการชั้นเรียน[เวลาสิ้นสุด]),รายการชั้นเรียน[โดดเด่น]),รายการชั้นเรียน[โดดเด่น],0),2),0)","v":0},{"$f":"IFERROR(INDEX(รายการชั้นเรียน[],MATCH(SUMPRODUCT((รายการชั้นเรียน[วัน]=ClassSchedule[[#Headers],[วันพฤหัสบดี]])*(ROUNDDOWN($B19,10)>=ROUNDDOWN(รายการชั้นเรียน[เวลาเริ่มต้น],10))*($B19<=รายการชั้นเรียน[เวลาสิ้นสุด]),รายการชั้นเรียน[โดดเด่น]),รายการชั้นเรียน[โดดเด่น],0),2),0)","v":"HPE-295"},{"$f":"IFERROR(INDEX(รายการชั้นเรียน[],MATCH(SUMPRODUCT((รายการชั้นเรียน[วัน]=ClassSchedule[[#Headers],[วันศุกร์]])*(ROUNDDOWN($B19,10)>=ROUNDDOWN(รายการชั้นเรียน[เวลาเริ่มต้น],10))*($B19<=รายการชั้นเรียน[เวลาสิ้นสุด]),รายการชั้นเรียน[โดดเด่น]),รายการชั้นเรียน[โดดเด่น],0),2),0)","v":0},{"$f":"IFERROR(INDEX(รายการชั้นเรียน[],MATCH(SUMPRODUCT((รายการชั้นเรียน[วัน]=ClassSchedule[[#Headers],[วันเสาร์]])*(ROUNDDOWN($B19,10)>=ROUNDDOWN(รายการชั้นเรียน[เวลาเริ่มต้น],10))*($B19<=รายการชั้นเรียน[เวลาสิ้นสุด]),รายการชั้นเรียน[โดดเด่น]),รายการชั้นเรียน[โดดเด่น],0),2),0)","v":0}]
[null,"12:00:00",{"$f":"IFERROR(INDEX(รายการชั้นเรียน[],MATCH(SUMPRODUCT((รายการชั้นเรียน[วัน]=ClassSchedule[[#Headers],[วันอาทิตย์]])*(ROUNDDOWN($B20,10)>=ROUNDDOWN(รายการชั้นเรียน[เวลาเริ่มต้น],10))*($B20<=รายการชั้นเรียน[เวลาสิ้นสุด]),รายการชั้นเรียน[โดดเด่น]),รายการชั้นเรียน[โดดเด่น],0),2),0)","v":0},{"$f":"IFERROR(INDEX(รายการชั้นเรียน[],MATCH(SUMPRODUCT((รายการชั้นเรียน[วัน]=ClassSchedule[[#Headers],[วันจันทร์]])*(ROUNDDOWN($B20,10)>=ROUNDDOWN(รายการชั้นเรียน[เวลาเริ่มต้น],10))*($B20<=รายการชั้นเรียน[เวลาสิ้นสุด]),รายการชั้นเรียน[โดดเด่น]),รายการชั้นเรียน[โดดเด่น],0),2),0)","v":0},{"$f":"IFERROR(INDEX(รายการชั้นเรียน[],MATCH(SUMPRODUCT((รายการชั้นเรียน[วัน]=ClassSchedule[[#Headers],[อังคาร]])*(ROUNDDOWN($B20,10)>=ROUNDDOWN(รายการชั้นเรียน[เวลาเริ่มต้น],10))*($B20<=รายการชั้นเรียน[เวลาสิ้นสุด]),รายการชั้นเรียน[โดดเด่น]),รายการชั้นเรียน[โดดเด่น],0),2),0)","v":0},{"$f":"IFERROR(INDEX(รายการชั้นเรียน[],MATCH(SUMPRODUCT((รายการชั้นเรียน[วัน]=ClassSchedule[[#Headers],[วันพุธ]])*(ROUNDDOWN($B20,10)>=ROUNDDOWN(รายการชั้นเรียน[เวลาเริ่มต้น],10))*($B20<=รายการชั้นเรียน[เวลาสิ้นสุด]),รายการชั้นเรียน[โดดเด่น]),รายการชั้นเรียน[โดดเด่น],0),2),0)","v":0},{"$f":"IFERROR(INDEX(รายการชั้นเรียน[],MATCH(SUMPRODUCT((รายการชั้นเรียน[วัน]=ClassSchedule[[#Headers],[วันพฤหัสบดี]])*(ROUNDDOWN($B20,10)>=ROUNDDOWN(รายการชั้นเรียน[เวลาเริ่มต้น],10))*($B20<=รายการชั้นเรียน[เวลาสิ้นสุด]),รายการชั้นเรียน[โดดเด่น]),รายการชั้นเรียน[โดดเด่น],0),2),0)","v":"HPE-295"},{"$f":"IFERROR(INDEX(รายการชั้นเรียน[],MATCH(SUMPRODUCT((รายการชั้นเรียน[วัน]=ClassSchedule[[#Headers],[วันศุกร์]])*(ROUNDDOWN($B20,10)>=ROUNDDOWN(รายการชั้นเรียน[เวลาเริ่มต้น],10))*($B20<=รายการชั้นเรียน[เวลาสิ้นสุด]),รายการชั้นเรียน[โดดเด่น]),รายการชั้นเรียน[โดดเด่น],0),2),0)","v":0},{"$f":"IFERROR(INDEX(รายการชั้นเรียน[],MATCH(SUMPRODUCT((รายการชั้นเรียน[วัน]=ClassSchedule[[#Headers],[วันเสาร์]])*(ROUNDDOWN($B20,10)>=ROUNDDOWN(รายการชั้นเรียน[เวลาเริ่มต้น],10))*($B20<=รายการชั้นเรียน[เวลาสิ้นสุด]),รายการชั้นเรียน[โดดเด่น]),รายการชั้นเรียน[โดดเด่น],0),2),0)","v":0}]
[null,"12:15:00",{"$f":"IFERROR(INDEX(รายการชั้นเรียน[],MATCH(SUMPRODUCT((รายการชั้นเรียน[วัน]=ClassSchedule[[#Headers],[วันอาทิตย์]])*(ROUNDDOWN($B21,10)>=ROUNDDOWN(รายการชั้นเรียน[เวลาเริ่มต้น],10))*($B21<=รายการชั้นเรียน[เวลาสิ้นสุด]),รายการชั้นเรียน[โดดเด่น]),รายการชั้นเรียน[โดดเด่น],0),2),0)","v":0},{"$f":"IFERROR(INDEX(รายการชั้นเรียน[],MATCH(SUMPRODUCT((รายการชั้นเรียน[วัน]=ClassSchedule[[#Headers],[วันจันทร์]])*(ROUNDDOWN($B21,10)>=ROUNDDOWN(รายการชั้นเรียน[เวลาเริ่มต้น],10))*($B21<=รายการชั้นเรียน[เวลาสิ้นสุด]),รายการชั้นเรียน[โดดเด่น]),รายการชั้นเรียน[โดดเด่น],0),2),0)","v":0},{"$f":"IFERROR(INDEX(รายการชั้นเรียน[],MATCH(SUMPRODUCT((รายการชั้นเรียน[วัน]=ClassSchedule[[#Headers],[อังคาร]])*(ROUNDDOWN($B21,10)>=ROUNDDOWN(รายการชั้นเรียน[เวลาเริ่มต้น],10))*($B21<=รายการชั้นเรียน[เวลาสิ้นสุด]),รายการชั้นเรียน[โดดเด่น]),รายการชั้นเรียน[โดดเด่น],0),2),0)","v":0},{"$f":"IFERROR(INDEX(รายการชั้นเรียน[],MATCH(SUMPRODUCT((รายการชั้นเรียน[วัน]=ClassSchedule[[#Headers],[วันพุธ]])*(ROUNDDOWN($B21,10)>=ROUNDDOWN(รายการชั้นเรียน[เวลาเริ่มต้น],10))*($B21<=รายการชั้นเรียน[เวลาสิ้นสุด]),รายการชั้นเรียน[โดดเด่น]),รายการชั้นเรียน[โดดเด่น],0),2),0)","v":0},{"$f":"IFERROR(INDEX(รายการชั้นเรียน[],MATCH(SUMPRODUCT((รายการชั้นเรียน[วัน]=ClassSchedule[[#Headers],[วันพฤหัสบดี]])*(ROUNDDOWN($B21,10)>=ROUNDDOWN(รายการชั้นเรียน[เวลาเริ่มต้น],10))*($B21<=รายการชั้นเรียน[เวลาสิ้นสุด]),รายการชั้นเรียน[โดดเด่น]),รายการชั้นเรียน[โดดเด่น],0),2),0)","v":0},{"$f":"IFERROR(INDEX(รายการชั้นเรียน[],MATCH(SUMPRODUCT((รายการชั้นเรียน[วัน]=ClassSchedule[[#Headers],[วันศุกร์]])*(ROUNDDOWN($B21,10)>=ROUNDDOWN(รายการชั้นเรียน[เวลาเริ่มต้น],10))*($B21<=รายการชั้นเรียน[เวลาสิ้นสุด]),รายการชั้นเรียน[โดดเด่น]),รายการชั้นเรียน[โดดเด่น],0),2),0)","v":0},{"$f":"IFERROR(INDEX(รายการชั้นเรียน[],MATCH(SUMPRODUCT((รายการชั้นเรียน[วัน]=ClassSchedule[[#Headers],[วันเสาร์]])*(ROUNDDOWN($B21,10)>=ROUNDDOWN(รายการชั้นเรียน[เวลาเริ่มต้น],10))*($B21<=รายการชั้นเรียน[เวลาสิ้นสุด]),รายการชั้นเรียน[โดดเด่น]),รายการชั้นเรียน[โดดเด่น],0),2),0)","v":0}]
[null,"12:30:00",{"$f":"IFERROR(INDEX(รายการชั้นเรียน[],MATCH(SUMPRODUCT((รายการชั้นเรียน[วัน]=ClassSchedule[[#Headers],[วันอาทิตย์]])*(ROUNDDOWN($B22,10)>=ROUNDDOWN(รายการชั้นเรียน[เวลาเริ่มต้น],10))*($B22<=รายการชั้นเรียน[เวลาสิ้นสุด]),รายการชั้นเรียน[โดดเด่น]),รายการชั้นเรียน[โดดเด่น],0),2),0)","v":0},{"$f":"IFERROR(INDEX(รายการชั้นเรียน[],MATCH(SUMPRODUCT((รายการชั้นเรียน[วัน]=ClassSchedule[[#Headers],[วันจันทร์]])*(ROUNDDOWN($B22,10)>=ROUNDDOWN(รายการชั้นเรียน[เวลาเริ่มต้น],10))*($B22<=รายการชั้นเรียน[เวลาสิ้นสุด]),รายการชั้นเรียน[โดดเด่น]),รายการชั้นเรียน[โดดเด่น],0),2),0)","v":0},{"$f":"IFERROR(INDEX(รายการชั้นเรียน[],MATCH(SUMPRODUCT((รายการชั้นเรียน[วัน]=ClassSchedule[[#Headers],[อังคาร]])*(ROUNDDOWN($B22,10)>=ROUNDDOWN(รายการชั้นเรียน[เวลาเริ่มต้น],10))*($B22<=รายการชั้นเรียน[เวลาสิ้นสุด]),รายการชั้นเรียน[โดดเด่น]),รายการชั้นเรียน[โดดเด่น],0),2),0)","v":0},{"$f":"IFERROR(INDEX(รายการชั้นเรียน[],MATCH(SUMPRODUCT((รายการชั้นเรียน[วัน]=ClassSchedule[[#Headers],[วันพุธ]])*(ROUNDDOWN($B22,10)>=ROUNDDOWN(รายการชั้นเรียน[เวลาเริ่มต้น],10))*($B22<=รายการชั้นเรียน[เวลาสิ้นสุด]),รายการชั้นเรียน[โดดเด่น]),รายการชั้นเรียน[โดดเด่น],0),2),0)","v":0},{"$f":"IFERROR(INDEX(รายการชั้นเรียน[],MATCH(SUMPRODUCT((รายการชั้นเรียน[วัน]=ClassSchedule[[#Headers],[วันพฤหัสบดี]])*(ROUNDDOWN($B22,10)>=ROUNDDOWN(รายการชั้นเรียน[เวลาเริ่มต้น],10))*($B22<=รายการชั้นเรียน[เวลาสิ้นสุด]),รายการชั้นเรียน[โดดเด่น]),รายการชั้นเรียน[โดดเด่น],0),2),0)","v":0},{"$f":"IFERROR(INDEX(รายการชั้นเรียน[],MATCH(SUMPRODUCT((รายการชั้นเรียน[วัน]=ClassSchedule[[#Headers],[วันศุกร์]])*(ROUNDDOWN($B22,10)>=ROUNDDOWN(รายการชั้นเรียน[เวลาเริ่มต้น],10))*($B22<=รายการชั้นเรียน[เวลาสิ้นสุด]),รายการชั้นเรียน[โดดเด่น]),รายการชั้นเรียน[โดดเด่น],0),2),0)","v":0},{"$f":"IFERROR(INDEX(รายการชั้นเรียน[],MATCH(SUMPRODUCT((รายการชั้นเรียน[วัน]=ClassSchedule[[#Headers],[วันเสาร์]])*(ROUNDDOWN($B22,10)>=ROUNDDOWN(รายการชั้นเรียน[เวลาเริ่มต้น],10))*($B22<=รายการชั้นเรียน[เวลาสิ้นสุด]),รายการชั้นเรียน[โดดเด่น]),รายการชั้นเรียน[โดดเด่น],0),2),0)","v":0}]
[null,"12:45:00",{"$f":"IFERROR(INDEX(รายการชั้นเรียน[],MATCH(SUMPRODUCT((รายการชั้นเรียน[วัน]=ClassSchedule[[#Headers],[วันอาทิตย์]])*(ROUNDDOWN($B23,10)>=ROUNDDOWN(รายการชั้นเรียน[เวลาเริ่มต้น],10))*($B23<=รายการชั้นเรียน[เวลาสิ้นสุด]),รายการชั้นเรียน[โดดเด่น]),รายการชั้นเรียน[โดดเด่น],0),2),0)","v":0},{"$f":"IFERROR(INDEX(รายการชั้นเรียน[],MATCH(SUMPRODUCT((รายการชั้นเรียน[วัน]=ClassSchedule[[#Headers],[วันจันทร์]])*(ROUNDDOWN($B23,10)>=ROUNDDOWN(รายการชั้นเรียน[เวลาเริ่มต้น],10))*($B23<=รายการชั้นเรียน[เวลาสิ้นสุด]),รายการชั้นเรียน[โดดเด่น]),รายการชั้นเรียน[โดดเด่น],0),2),0)","v":0},{"$f":"IFERROR(INDEX(รายการชั้นเรียน[],MATCH(SUMPRODUCT((รายการชั้นเรียน[วัน]=ClassSchedule[[#Headers],[อังคาร]])*(ROUNDDOWN($B23,10)>=ROUNDDOWN(รายการชั้นเรียน[เวลาเริ่มต้น],10))*($B23<=รายการชั้นเรียน[เวลาสิ้นสุด]),รายการชั้นเรียน[โดดเด่น]),รายการชั้นเรียน[โดดเด่น],0),2),0)","v":0},{"$f":"IFERROR(INDEX(รายการชั้นเรียน[],MATCH(SUMPRODUCT((รายการชั้นเรียน[วัน]=ClassSchedule[[#Headers],[วันพุธ]])*(ROUNDDOWN($B23,10)>=ROUNDDOWN(รายการชั้นเรียน[เวลาเริ่มต้น],10))*($B23<=รายการชั้นเรียน[เวลาสิ้นสุด]),รายการชั้นเรียน[โดดเด่น]),รายการชั้นเรียน[โดดเด่น],0),2),0)","v":0},{"$f":"IFERROR(INDEX(รายการชั้นเรียน[],MATCH(SUMPRODUCT((รายการชั้นเรียน[วัน]=ClassSchedule[[#Headers],[วันพฤหัสบดี]])*(ROUNDDOWN($B23,10)>=ROUNDDOWN(รายการชั้นเรียน[เวลาเริ่มต้น],10))*($B23<=รายการชั้นเรียน[เวลาสิ้นสุด]),รายการชั้นเรียน[โดดเด่น]),รายการชั้นเรียน[โดดเด่น],0),2),0)","v":0},{"$f":"IFERROR(INDEX(รายการชั้นเรียน[],MATCH(SUMPRODUCT((รายการชั้นเรียน[วัน]=ClassSchedule[[#Headers],[วันศุกร์]])*(ROUNDDOWN($B23,10)>=ROUNDDOWN(รายการชั้นเรียน[เวลาเริ่มต้น],10))*($B23<=รายการชั้นเรียน[เวลาสิ้นสุด]),รายการชั้นเรียน[โดดเด่น]),รายการชั้นเรียน[โดดเด่น],0),2),0)","v":0},{"$f":"IFERROR(INDEX(รายการชั้นเรียน[],MATCH(SUMPRODUCT((รายการชั้นเรียน[วัน]=ClassSchedule[[#Headers],[วันเสาร์]])*(ROUNDDOWN($B23,10)>=ROUNDDOWN(รายการชั้นเรียน[เวลาเริ่มต้น],10))*($B23<=รายการชั้นเรียน[เวลาสิ้นสุด]),รายการชั้นเรียน[โดดเด่น]),รายการชั้นเรียน[โดดเด่น],0),2),0)","v":0}]
[null,"13:00:00",{"$f":"IFERROR(INDEX(รายการชั้นเรียน[],MATCH(SUMPRODUCT((รายการชั้นเรียน[วัน]=ClassSchedule[[#Headers],[วันอาทิตย์]])*(ROUNDDOWN($B24,10)>=ROUNDDOWN(รายการชั้นเรียน[เวลาเริ่มต้น],10))*($B24<=รายการชั้นเรียน[เวลาสิ้นสุด]),รายการชั้นเรียน[โดดเด่น]),รายการชั้นเรียน[โดดเด่น],0),2),0)","v":0},{"$f":"IFERROR(INDEX(รายการชั้นเรียน[],MATCH(SUMPRODUCT((รายการชั้นเรียน[วัน]=ClassSchedule[[#Headers],[วันจันทร์]])*(ROUNDDOWN($B24,10)>=ROUNDDOWN(รายการชั้นเรียน[เวลาเริ่มต้น],10))*($B24<=รายการชั้นเรียน[เวลาสิ้นสุด]),รายการชั้นเรียน[โดดเด่น]),รายการชั้นเรียน[โดดเด่น],0),2),0)","v":"WR-121"},{"$f":"IFERROR(INDEX(รายการชั้นเรียน[],MATCH(SUMPRODUCT((รายการชั้นเรียน[วัน]=ClassSchedule[[#Headers],[อังคาร]])*(ROUNDDOWN($B24,10)>=ROUNDDOWN(รายการชั้นเรียน[เวลาเริ่มต้น],10))*($B24<=รายการชั้นเรียน[เวลาสิ้นสุด]),รายการชั้นเรียน[โดดเด่น]),รายการชั้นเรียน[โดดเด่น],0),2),0)","v":0},{"$f":"IFERROR(INDEX(รายการชั้นเรียน[],MATCH(SUMPRODUCT((รายการชั้นเรียน[วัน]=ClassSchedule[[#Headers],[วันพุธ]])*(ROUNDDOWN($B24,10)>=ROUNDDOWN(รายการชั้นเรียน[เวลาเริ่มต้น],10))*($B24<=รายการชั้นเรียน[เวลาสิ้นสุด]),รายการชั้นเรียน[โดดเด่น]),รายการชั้นเรียน[โดดเด่น],0),2),0)","v":"WR-121"},{"$f":"IFERROR(INDEX(รายการชั้นเรียน[],MATCH(SUMPRODUCT((รายการชั้นเรียน[วัน]=ClassSchedule[[#Headers],[วันพฤหัสบดี]])*(ROUNDDOWN($B24,10)>=ROUNDDOWN(รายการชั้นเรียน[เวลาเริ่มต้น],10))*($B24<=รายการชั้นเรียน[เวลาสิ้นสุด]),รายการชั้นเรียน[โดดเด่น]),รายการชั้นเรียน[โดดเด่น],0),2),0)","v":0},{"$f":"IFERROR(INDEX(รายการชั้นเรียน[],MATCH(SUMPRODUCT((รายการชั้นเรียน[วัน]=ClassSchedule[[#Headers],[วันศุกร์]])*(ROUNDDOWN($B24,10)>=ROUNDDOWN(รายการชั้นเรียน[เวลาเริ่มต้น],10))*($B24<=รายการชั้นเรียน[เวลาสิ้นสุด]),รายการชั้นเรียน[โดดเด่น]),รายการชั้นเรียน[โดดเด่น],0),2),0)","v":0},{"$f":"IFERROR(INDEX(รายการชั้นเรียน[],MATCH(SUMPRODUCT((รายการชั้นเรียน[วัน]=ClassSchedule[[#Headers],[วันเสาร์]])*(ROUNDDOWN($B24,10)>=ROUNDDOWN(รายการชั้นเรียน[เวลาเริ่มต้น],10))*($B24<=รายการชั้นเรียน[เวลาสิ้นสุด]),รายการชั้นเรียน[โดดเด่น]),รายการชั้นเรียน[โดดเด่น],0),2),0)","v":0}]
[null,"13:15:00",{"$f":"IFERROR(INDEX(รายการชั้นเรียน[],MATCH(SUMPRODUCT((รายการชั้นเรียน[วัน]=ClassSchedule[[#Headers],[วันอาทิตย์]])*(ROUNDDOWN($B25,10)>=ROUNDDOWN(รายการชั้นเรียน[เวลาเริ่มต้น],10))*($B25<=รายการชั้นเรียน[เวลาสิ้นสุด]),รายการชั้นเรียน[โดดเด่น]),รายการชั้นเรียน[โดดเด่น],0),2),0)","v":0},{"$f":"IFERROR(INDEX(รายการชั้นเรียน[],MATCH(SUMPRODUCT((รายการชั้นเรียน[วัน]=ClassSchedule[[#Headers],[วันจันทร์]])*(ROUNDDOWN($B25,10)>=ROUNDDOWN(รายการชั้นเรียน[เวลาเริ่มต้น],10))*($B25<=รายการชั้นเรียน[เวลาสิ้นสุด]),รายการชั้นเรียน[โดดเด่น]),รายการชั้นเรียน[โดดเด่น],0),2),0)","v":"WR-121"},{"$f":"IFERROR(INDEX(รายการชั้นเรียน[],MATCH(SUMPRODUCT((รายการชั้นเรียน[วัน]=ClassSchedule[[#Headers],[อังคาร]])*(ROUNDDOWN($B25,10)>=ROUNDDOWN(รายการชั้นเรียน[เวลาเริ่มต้น],10))*($B25<=รายการชั้นเรียน[เวลาสิ้นสุด]),รายการชั้นเรียน[โดดเด่น]),รายการชั้นเรียน[โดดเด่น],0),2),0)","v":0},{"$f":"IFERROR(INDEX(รายการชั้นเรียน[],MATCH(SUMPRODUCT((รายการชั้นเรียน[วัน]=ClassSchedule[[#Headers],[วันพุธ]])*(ROUNDDOWN($B25,10)>=ROUNDDOWN(รายการชั้นเรียน[เวลาเริ่มต้น],10))*($B25<=รายการชั้นเรียน[เวลาสิ้นสุด]),รายการชั้นเรียน[โดดเด่น]),รายการชั้นเรียน[โดดเด่น],0),2),0)","v":"WR-121"},{"$f":"IFERROR(INDEX(รายการชั้นเรียน[],MATCH(SUMPRODUCT((รายการชั้นเรียน[วัน]=ClassSchedule[[#Headers],[วันพฤหัสบดี]])*(ROUNDDOWN($B25,10)>=ROUNDDOWN(รายการชั้นเรียน[เวลาเริ่มต้น],10))*($B25<=รายการชั้นเรียน[เวลาสิ้นสุด]),รายการชั้นเรียน[โดดเด่น]),รายการชั้นเรียน[โดดเด่น],0),2),0)","v":0},{"$f":"IFERROR(INDEX(รายการชั้นเรียน[],MATCH(SUMPRODUCT((รายการชั้นเรียน[วัน]=ClassSchedule[[#Headers],[วันศุกร์]])*(ROUNDDOWN($B25,10)>=ROUNDDOWN(รายการชั้นเรียน[เวลาเริ่มต้น],10))*($B25<=รายการชั้นเรียน[เวลาสิ้นสุด]),รายการชั้นเรียน[โดดเด่น]),รายการชั้นเรียน[โดดเด่น],0),2),0)","v":0},{"$f":"IFERROR(INDEX(รายการชั้นเรียน[],MATCH(SUMPRODUCT((รายการชั้นเรียน[วัน]=ClassSchedule[[#Headers],[วันเสาร์]])*(ROUNDDOWN($B25,10)>=ROUNDDOWN(รายการชั้นเรียน[เวลาเริ่มต้น],10))*($B25<=รายการชั้นเรียน[เวลาสิ้นสุด]),รายการชั้นเรียน[โดดเด่น]),รายการชั้นเรียน[โดดเด่น],0),2),0)","v":0}]
[null,"13:30:00",{"$f":"IFERROR(INDEX(รายการชั้นเรียน[],MATCH(SUMPRODUCT((รายการชั้นเรียน[วัน]=ClassSchedule[[#Headers],[วันอาทิตย์]])*(ROUNDDOWN($B26,10)>=ROUNDDOWN(รายการชั้นเรียน[เวลาเริ่มต้น],10))*($B26<=รายการชั้นเรียน[เวลาสิ้นสุด]),รายการชั้นเรียน[โดดเด่น]),รายการชั้นเรียน[โดดเด่น],0),2),0)","v":0},{"$f":"IFERROR(INDEX(รายการชั้นเรียน[],MATCH(SUMPRODUCT((รายการชั้นเรียน[วัน]=ClassSchedule[[#Headers],[วันจันทร์]])*(ROUNDDOWN($B26,10)>=ROUNDDOWN(รายการชั้นเรียน[เวลาเริ่มต้น],10))*($B26<=รายการชั้นเรียน[เวลาสิ้นสุด]),รายการชั้นเรียน[โดดเด่น]),รายการชั้นเรียน[โดดเด่น],0),2),0)","v":"WR-121"},{"$f":"IFERROR(INDEX(รายการชั้นเรียน[],MATCH(SUMPRODUCT((รายการชั้นเรียน[วัน]=ClassSchedule[[#Headers],[อังคาร]])*(ROUNDDOWN($B26,10)>=ROUNDDOWN(รายการชั้นเรียน[เวลาเริ่มต้น],10))*($B26<=รายการชั้นเรียน[เวลาสิ้นสุด]),รายการชั้นเรียน[โดดเด่น]),รายการชั้นเรียน[โดดเด่น],0),2),0)","v":0},{"$f":"IFERROR(INDEX(รายการชั้นเรียน[],MATCH(SUMPRODUCT((รายการชั้นเรียน[วัน]=ClassSchedule[[#Headers],[วันพุธ]])*(ROUNDDOWN($B26,10)>=ROUNDDOWN(รายการชั้นเรียน[เวลาเริ่มต้น],10))*($B26<=รายการชั้นเรียน[เวลาสิ้นสุด]),รายการชั้นเรียน[โดดเด่น]),รายการชั้นเรียน[โดดเด่น],0),2),0)","v":"WR-121"},{"$f":"IFERROR(INDEX(รายการชั้นเรียน[],MATCH(SUMPRODUCT((รายการชั้นเรียน[วัน]=ClassSchedule[[#Headers],[วันพฤหัสบดี]])*(ROUNDDOWN($B26,10)>=ROUNDDOWN(รายการชั้นเรียน[เวลาเริ่มต้น],10))*($B26<=รายการชั้นเรียน[เวลาสิ้นสุด]),รายการชั้นเรียน[โดดเด่น]),รายการชั้นเรียน[โดดเด่น],0),2),0)","v":0},{"$f":"IFERROR(INDEX(รายการชั้นเรียน[],MATCH(SUMPRODUCT((รายการชั้นเรียน[วัน]=ClassSchedule[[#Headers],[วันศุกร์]])*(ROUNDDOWN($B26,10)>=ROUNDDOWN(รายการชั้นเรียน[เวลาเริ่มต้น],10))*($B26<=รายการชั้นเรียน[เวลาสิ้นสุด]),รายการชั้นเรียน[โดดเด่น]),รายการชั้นเรียน[โดดเด่น],0),2),0)","v":0},{"$f":"IFERROR(INDEX(รายการชั้นเรียน[],MATCH(SUMPRODUCT((รายการชั้นเรียน[วัน]=ClassSchedule[[#Headers],[วันเสาร์]])*(ROUNDDOWN($B26,10)>=ROUNDDOWN(รายการชั้นเรียน[เวลาเริ่มต้น],10))*($B26<=รายการชั้นเรียน[เวลาสิ้นสุด]),รายการชั้นเรียน[โดดเด่น]),รายการชั้นเรียน[โดดเด่น],0),2),0)","v":0}]
[null,"13:45:00",{"$f":"IFERROR(INDEX(รายการชั้นเรียน[],MATCH(SUMPRODUCT((รายการชั้นเรียน[วัน]=ClassSchedule[[#Headers],[วันอาทิตย์]])*(ROUNDDOWN($B27,10)>=ROUNDDOWN(รายการชั้นเรียน[เวลาเริ่มต้น],10))*($B27<=รายการชั้นเรียน[เวลาสิ้นสุด]),รายการชั้นเรียน[โดดเด่น]),รายการชั้นเรียน[โดดเด่น],0),2),0)","v":0},{"$f":"IFERROR(INDEX(รายการชั้นเรียน[],MATCH(SUMPRODUCT((รายการชั้นเรียน[วัน]=ClassSchedule[[#Headers],[วันจันทร์]])*(ROUNDDOWN($B27,10)>=ROUNDDOWN(รายการชั้นเรียน[เวลาเริ่มต้น],10))*($B27<=รายการชั้นเรียน[เวลาสิ้นสุด]),รายการชั้นเรียน[โดดเด่น]),รายการชั้นเรียน[โดดเด่น],0),2),0)","v":"WR-121"},{"$f":"IFERROR(INDEX(รายการชั้นเรียน[],MATCH(SUMPRODUCT((รายการชั้นเรียน[วัน]=ClassSchedule[[#Headers],[อังคาร]])*(ROUNDDOWN($B27,10)>=ROUNDDOWN(รายการชั้นเรียน[เวลาเริ่มต้น],10))*($B27<=รายการชั้นเรียน[เวลาสิ้นสุด]),รายการชั้นเรียน[โดดเด่น]),รายการชั้นเรียน[โดดเด่น],0),2),0)","v":0},{"$f":"IFERROR(INDEX(รายการชั้นเรียน[],MATCH(SUMPRODUCT((รายการชั้นเรียน[วัน]=ClassSchedule[[#Headers],[วันพุธ]])*(ROUNDDOWN($B27,10)>=ROUNDDOWN(รายการชั้นเรียน[เวลาเริ่มต้น],10))*($B27<=รายการชั้นเรียน[เวลาสิ้นสุด]),รายการชั้นเรียน[โดดเด่น]),รายการชั้นเรียน[โดดเด่น],0),2),0)","v":"WR-121"},{"$f":"IFERROR(INDEX(รายการชั้นเรียน[],MATCH(SUMPRODUCT((รายการชั้นเรียน[วัน]=ClassSchedule[[#Headers],[วันพฤหัสบดี]])*(ROUNDDOWN($B27,10)>=ROUNDDOWN(รายการชั้นเรียน[เวลาเริ่มต้น],10))*($B27<=รายการชั้นเรียน[เวลาสิ้นสุด]),รายการชั้นเรียน[โดดเด่น]),รายการชั้นเรียน[โดดเด่น],0),2),0)","v":0},{"$f":"IFERROR(INDEX(รายการชั้นเรียน[],MATCH(SUMPRODUCT((รายการชั้นเรียน[วัน]=ClassSchedule[[#Headers],[วันศุกร์]])*(ROUNDDOWN($B27,10)>=ROUNDDOWN(รายการชั้นเรียน[เวลาเริ่มต้น],10))*($B27<=รายการชั้นเรียน[เวลาสิ้นสุด]),รายการชั้นเรียน[โดดเด่น]),รายการชั้นเรียน[โดดเด่น],0),2),0)","v":0},{"$f":"IFERROR(INDEX(รายการชั้นเรียน[],MATCH(SUMPRODUCT((รายการชั้นเรียน[วัน]=ClassSchedule[[#Headers],[วันเสาร์]])*(ROUNDDOWN($B27,10)>=ROUNDDOWN(รายการชั้นเรียน[เวลาเริ่มต้น],10))*($B27<=รายการชั้นเรียน[เวลาสิ้นสุด]),รายการชั้นเรียน[โดดเด่น]),รายการชั้นเรียน[โดดเด่น],0),2),0)","v":0}]
[null,"14:00:00",{"$f":"IFERROR(INDEX(รายการชั้นเรียน[],MATCH(SUMPRODUCT((รายการชั้นเรียน[วัน]=ClassSchedule[[#Headers],[วันอาทิตย์]])*(ROUNDDOWN($B28,10)>=ROUNDDOWN(รายการชั้นเรียน[เวลาเริ่มต้น],10))*($B28<=รายการชั้นเรียน[เวลาสิ้นสุด]),รายการชั้นเรียน[โดดเด่น]),รายการชั้นเรียน[โดดเด่น],0),2),0)","v":0},{"$f":"IFERROR(INDEX(รายการชั้นเรียน[],MATCH(SUMPRODUCT((รายการชั้นเรียน[วัน]=ClassSchedule[[#Headers],[วันจันทร์]])*(ROUNDDOWN($B28,10)>=ROUNDDOWN(รายการชั้นเรียน[เวลาเริ่มต้น],10))*($B28<=รายการชั้นเรียน[เวลาสิ้นสุด]),รายการชั้นเรียน[โดดเด่น]),รายการชั้นเรียน[โดดเด่น],0),2),0)","v":"WR-121"},{"$f":"IFERROR(INDEX(รายการชั้นเรียน[],MATCH(SUMPRODUCT((รายการชั้นเรียน[วัน]=ClassSchedule[[#Headers],[อังคาร]])*(ROUNDDOWN($B28,10)>=ROUNDDOWN(รายการชั้นเรียน[เวลาเริ่มต้น],10))*($B28<=รายการชั้นเรียน[เวลาสิ้นสุด]),รายการชั้นเรียน[โดดเด่น]),รายการชั้นเรียน[โดดเด่น],0),2),0)","v":0},{"$f":"IFERROR(INDEX(รายการชั้นเรียน[],MATCH(SUMPRODUCT((รายการชั้นเรียน[วัน]=ClassSchedule[[#Headers],[วันพุธ]])*(ROUNDDOWN($B28,10)>=ROUNDDOWN(รายการชั้นเรียน[เวลาเริ่มต้น],10))*($B28<=รายการชั้นเรียน[เวลาสิ้นสุด]),รายการชั้นเรียน[โดดเด่น]),รายการชั้นเรียน[โดดเด่น],0),2),0)","v":"WR-121"},{"$f":"IFERROR(INDEX(รายการชั้นเรียน[],MATCH(SUMPRODUCT((รายการชั้นเรียน[วัน]=ClassSchedule[[#Headers],[วันพฤหัสบดี]])*(ROUNDDOWN($B28,10)>=ROUNDDOWN(รายการชั้นเรียน[เวลาเริ่มต้น],10))*($B28<=รายการชั้นเรียน[เวลาสิ้นสุด]),รายการชั้นเรียน[โดดเด่น]),รายการชั้นเรียน[โดดเด่น],0),2),0)","v":0},{"$f":"IFERROR(INDEX(รายการชั้นเรียน[],MATCH(SUMPRODUCT((รายการชั้นเรียน[วัน]=ClassSchedule[[#Headers],[วันศุกร์]])*(ROUNDDOWN($B28,10)>=ROUNDDOWN(รายการชั้นเรียน[เวลาเริ่มต้น],10))*($B28<=รายการชั้นเรียน[เวลาสิ้นสุด]),รายการชั้นเรียน[โดดเด่น]),รายการชั้นเรียน[โดดเด่น],0),2),0)","v":0},{"$f":"IFERROR(INDEX(รายการชั้นเรียน[],MATCH(SUMPRODUCT((รายการชั้นเรียน[วัน]=ClassSchedule[[#Headers],[วันเสาร์]])*(ROUNDDOWN($B28,10)>=ROUNDDOWN(รายการชั้นเรียน[เวลาเริ่มต้น],10))*($B28<=รายการชั้นเรียน[เวลาสิ้นสุด]),รายการชั้นเรียน[โดดเด่น]),รายการชั้นเรียน[โดดเด่น],0),2),0)","v":0}]
[null,"14:15:00",{"$f":"IFERROR(INDEX(รายการชั้นเรียน[],MATCH(SUMPRODUCT((รายการชั้นเรียน[วัน]=ClassSchedule[[#Headers],[วันอาทิตย์]])*(ROUNDDOWN($B29,10)>=ROUNDDOWN(รายการชั้นเรียน[เวลาเริ่มต้น],10))*($B29<=รายการชั้นเรียน[เวลาสิ้นสุด]),รายการชั้นเรียน[โดดเด่น]),รายการชั้นเรียน[โดดเด่น],0),2),0)","v":0},{"$f":"IFERROR(INDEX(รายการชั้นเรียน[],MATCH(SUMPRODUCT((รายการชั้นเรียน[วัน]=ClassSchedule[[#Headers],[วันจันทร์]])*(ROUNDDOWN($B29,10)>=ROUNDDOWN(รายการชั้นเรียน[เวลาเริ่มต้น],10))*($B29<=รายการชั้นเรียน[เวลาสิ้นสุด]),รายการชั้นเรียน[โดดเด่น]),รายการชั้นเรียน[โดดเด่น],0),2),0)","v":0},{"$f":"IFERROR(INDEX(รายการชั้นเรียน[],MATCH(SUMPRODUCT((รายการชั้นเรียน[วัน]=ClassSchedule[[#Headers],[อังคาร]])*(ROUNDDOWN($B29,10)>=ROUNDDOWN(รายการชั้นเรียน[เวลาเริ่มต้น],10))*($B29<=รายการชั้นเรียน[เวลาสิ้นสุด]),รายการชั้นเรียน[โดดเด่น]),รายการชั้นเรียน[โดดเด่น],0),2),0)","v":0},{"$f":"IFERROR(INDEX(รายการชั้นเรียน[],MATCH(SUMPRODUCT((รายการชั้นเรียน[วัน]=ClassSchedule[[#Headers],[วันพุธ]])*(ROUNDDOWN($B29,10)>=ROUNDDOWN(รายการชั้นเรียน[เวลาเริ่มต้น],10))*($B29<=รายการชั้นเรียน[เวลาสิ้นสุด]),รายการชั้นเรียน[โดดเด่น]),รายการชั้นเรียน[โดดเด่น],0),2),0)","v":0},{"$f":"IFERROR(INDEX(รายการชั้นเรียน[],MATCH(SUMPRODUCT((รายการชั้นเรียน[วัน]=ClassSchedule[[#Headers],[วันพฤหัสบดี]])*(ROUNDDOWN($B29,10)>=ROUNDDOWN(รายการชั้นเรียน[เวลาเริ่มต้น],10))*($B29<=รายการชั้นเรียน[เวลาสิ้นสุด]),รายการชั้นเรียน[โดดเด่น]),รายการชั้นเรียน[โดดเด่น],0),2),0)","v":0},{"$f":"IFERROR(INDEX(รายการชั้นเรียน[],MATCH(SUMPRODUCT((รายการชั้นเรียน[วัน]=ClassSchedule[[#Headers],[วันศุกร์]])*(ROUNDDOWN($B29,10)>=ROUNDDOWN(รายการชั้นเรียน[เวลาเริ่มต้น],10))*($B29<=รายการชั้นเรียน[เวลาสิ้นสุด]),รายการชั้นเรียน[โดดเด่น]),รายการชั้นเรียน[โดดเด่น],0),2),0)","v":0},{"$f":"IFERROR(INDEX(รายการชั้นเรียน[],MATCH(SUMPRODUCT((รายการชั้นเรียน[วัน]=ClassSchedule[[#Headers],[วันเสาร์]])*(ROUNDDOWN($B29,10)>=ROUNDDOWN(รายการชั้นเรียน[เวลาเริ่มต้น],10))*($B29<=รายการชั้นเรียน[เวลาสิ้นสุด]),รายการชั้นเรียน[โดดเด่น]),รายการชั้นเรียน[โดดเด่น],0),2),0)","v":0}]
[null,"14:30:00",{"$f":"IFERROR(INDEX(รายการชั้นเรียน[],MATCH(SUMPRODUCT((รายการชั้นเรียน[วัน]=ClassSchedule[[#Headers],[วันอาทิตย์]])*(ROUNDDOWN($B30,10)>=ROUNDDOWN(รายการชั้นเรียน[เวลาเริ่มต้น],10))*($B30<=รายการชั้นเรียน[เวลาสิ้นสุด]),รายการชั้นเรียน[โดดเด่น]),รายการชั้นเรียน[โดดเด่น],0),2),0)","v":0},{"$f":"IFERROR(INDEX(รายการชั้นเรียน[],MATCH(SUMPRODUCT((รายการชั้นเรียน[วัน]=ClassSchedule[[#Headers],[วันจันทร์]])*(ROUNDDOWN($B30,10)>=ROUNDDOWN(รายการชั้นเรียน[เวลาเริ่มต้น],10))*($B30<=รายการชั้นเรียน[เวลาสิ้นสุด]),รายการชั้นเรียน[โดดเด่น]),รายการชั้นเรียน[โดดเด่น],0),2),0)","v":0},{"$f":"IFERROR(INDEX(รายการชั้นเรียน[],MATCH(SUMPRODUCT((รายการชั้นเรียน[วัน]=ClassSchedule[[#Headers],[อังคาร]])*(ROUNDDOWN($B30,10)>=ROUNDDOWN(รายการชั้นเรียน[เวลาเริ่มต้น],10))*($B30<=รายการชั้นเรียน[เวลาสิ้นสุด]),รายการชั้นเรียน[โดดเด่น]),รายการชั้นเรียน[โดดเด่น],0),2),0)","v":0},{"$f":"IFERROR(INDEX(รายการชั้นเรียน[],MATCH(SUMPRODUCT((รายการชั้นเรียน[วัน]=ClassSchedule[[#Headers],[วันพุธ]])*(ROUNDDOWN($B30,10)>=ROUNDDOWN(รายการชั้นเรียน[เวลาเริ่มต้น],10))*($B30<=รายการชั้นเรียน[เวลาสิ้นสุด]),รายการชั้นเรียน[โดดเด่น]),รายการชั้นเรียน[โดดเด่น],0),2),0)","v":0},{"$f":"IFERROR(INDEX(รายการชั้นเรียน[],MATCH(SUMPRODUCT((รายการชั้นเรียน[วัน]=ClassSchedule[[#Headers],[วันพฤหัสบดี]])*(ROUNDDOWN($B30,10)>=ROUNDDOWN(รายการชั้นเรียน[เวลาเริ่มต้น],10))*($B30<=รายการชั้นเรียน[เวลาสิ้นสุด]),รายการชั้นเรียน[โดดเด่น]),รายการชั้นเรียน[โดดเด่น],0),2),0)","v":0},{"$f":"IFERROR(INDEX(รายการชั้นเรียน[],MATCH(SUMPRODUCT((รายการชั้นเรียน[วัน]=ClassSchedule[[#Headers],[วันศุกร์]])*(ROUNDDOWN($B30,10)>=ROUNDDOWN(รายการชั้นเรียน[เวลาเริ่มต้น],10))*($B30<=รายการชั้นเรียน[เวลาสิ้นสุด]),รายการชั้นเรียน[โดดเด่น]),รายการชั้นเรียน[โดดเด่น],0),2),0)","v":0},{"$f":"IFERROR(INDEX(รายการชั้นเรียน[],MATCH(SUMPRODUCT((รายการชั้นเรียน[วัน]=ClassSchedule[[#Headers],[วันเสาร์]])*(ROUNDDOWN($B30,10)>=ROUNDDOWN(รายการชั้นเรียน[เวลาเริ่มต้น],10))*($B30<=รายการชั้นเรียน[เวลาสิ้นสุด]),รายการชั้นเรียน[โดดเด่น]),รายการชั้นเรียน[โดดเด่น],0),2),0)","v":0}]
[null,"14:45:00",{"$f":"IFERROR(INDEX(รายการชั้นเรียน[],MATCH(SUMPRODUCT((รายการชั้นเรียน[วัน]=ClassSchedule[[#Headers],[วันอาทิตย์]])*(ROUNDDOWN($B31,10)>=ROUNDDOWN(รายการชั้นเรียน[เวลาเริ่มต้น],10))*($B31<=รายการชั้นเรียน[เวลาสิ้นสุด]),รายการชั้นเรียน[โดดเด่น]),รายการชั้นเรียน[โดดเด่น],0),2),0)","v":0},{"$f":"IFERROR(INDEX(รายการชั้นเรียน[],MATCH(SUMPRODUCT((รายการชั้นเรียน[วัน]=ClassSchedule[[#Headers],[วันจันทร์]])*(ROUNDDOWN($B31,10)>=ROUNDDOWN(รายการชั้นเรียน[เวลาเริ่มต้น],10))*($B31<=รายการชั้นเรียน[เวลาสิ้นสุด]),รายการชั้นเรียน[โดดเด่น]),รายการชั้นเรียน[โดดเด่น],0),2),0)","v":0},{"$f":"IFERROR(INDEX(รายการชั้นเรียน[],MATCH(SUMPRODUCT((รายการชั้นเรียน[วัน]=ClassSchedule[[#Headers],[อังคาร]])*(ROUNDDOWN($B31,10)>=ROUNDDOWN(รายการชั้นเรียน[เวลาเริ่มต้น],10))*($B31<=รายการชั้นเรียน[เวลาสิ้นสุด]),รายการชั้นเรียน[โดดเด่น]),รายการชั้นเรียน[โดดเด่น],0),2),0)","v":0},{"$f":"IFERROR(INDEX(รายการชั้นเรียน[],MATCH(SUMPRODUCT((รายการชั้นเรียน[วัน]=ClassSchedule[[#Headers],[วันพุธ]])*(ROUNDDOWN($B31,10)>=ROUNDDOWN(รายการชั้นเรียน[เวลาเริ่มต้น],10))*($B31<=รายการชั้นเรียน[เวลาสิ้นสุด]),รายการชั้นเรียน[โดดเด่น]),รายการชั้นเรียน[โดดเด่น],0),2),0)","v":0},{"$f":"IFERROR(INDEX(รายการชั้นเรียน[],MATCH(SUMPRODUCT((รายการชั้นเรียน[วัน]=ClassSchedule[[#Headers],[วันพฤหัสบดี]])*(ROUNDDOWN($B31,10)>=ROUNDDOWN(รายการชั้นเรียน[เวลาเริ่มต้น],10))*($B31<=รายการชั้นเรียน[เวลาสิ้นสุด]),รายการชั้นเรียน[โดดเด่น]),รายการชั้นเรียน[โดดเด่น],0),2),0)","v":0},{"$f":"IFERROR(INDEX(รายการชั้นเรียน[],MATCH(SUMPRODUCT((รายการชั้นเรียน[วัน]=ClassSchedule[[#Headers],[วันศุกร์]])*(ROUNDDOWN($B31,10)>=ROUNDDOWN(รายการชั้นเรียน[เวลาเริ่มต้น],10))*($B31<=รายการชั้นเรียน[เวลาสิ้นสุด]),รายการชั้นเรียน[โดดเด่น]),รายการชั้นเรียน[โดดเด่น],0),2),0)","v":0},{"$f":"IFERROR(INDEX(รายการชั้นเรียน[],MATCH(SUMPRODUCT((รายการชั้นเรียน[วัน]=ClassSchedule[[#Headers],[วันเสาร์]])*(ROUNDDOWN($B31,10)>=ROUNDDOWN(รายการชั้นเรียน[เวลาเริ่มต้น],10))*($B31<=รายการชั้นเรียน[เวลาสิ้นสุด]),รายการชั้นเรียน[โดดเด่น]),รายการชั้นเรียน[โดดเด่น],0),2),0)","v":0}]
[null,"15:00:00",{"$f":"IFERROR(INDEX(รายการชั้นเรียน[],MATCH(SUMPRODUCT((รายการชั้นเรียน[วัน]=ClassSchedule[[#Headers],[วันอาทิตย์]])*(ROUNDDOWN($B32,10)>=ROUNDDOWN(รายการชั้นเรียน[เวลาเริ่มต้น],10))*($B32<=รายการชั้นเรียน[เวลาสิ้นสุด]),รายการชั้นเรียน[โดดเด่น]),รายการชั้นเรียน[โดดเด่น],0),2),0)","v":0},{"$f":"IFERROR(INDEX(รายการชั้นเรียน[],MATCH(SUMPRODUCT((รายการชั้นเรียน[วัน]=ClassSchedule[[#Headers],[วันจันทร์]])*(ROUNDDOWN($B32,10)>=ROUNDDOWN(รายการชั้นเรียน[เวลาเริ่มต้น],10))*($B32<=รายการชั้นเรียน[เวลาสิ้นสุด]),รายการชั้นเรียน[โดดเด่น]),รายการชั้นเรียน[โดดเด่น],0),2),0)","v":0},{"$f":"IFERROR(INDEX(รายการชั้นเรียน[],MATCH(SUMPRODUCT((รายการชั้นเรียน[วัน]=ClassSchedule[[#Headers],[อังคาร]])*(ROUNDDOWN($B32,10)>=ROUNDDOWN(รายการชั้นเรียน[เวลาเริ่มต้น],10))*($B32<=รายการชั้นเรียน[เวลาสิ้นสุด]),รายการชั้นเรียน[โดดเด่น]),รายการชั้นเรียน[โดดเด่น],0),2),0)","v":0},{"$f":"IFERROR(INDEX(รายการชั้นเรียน[],MATCH(SUMPRODUCT((รายการชั้นเรียน[วัน]=ClassSchedule[[#Headers],[วันพุธ]])*(ROUNDDOWN($B32,10)>=ROUNDDOWN(รายการชั้นเรียน[เวลาเริ่มต้น],10))*($B32<=รายการชั้นเรียน[เวลาสิ้นสุด]),รายการชั้นเรียน[โดดเด่น]),รายการชั้นเรียน[โดดเด่น],0),2),0)","v":0},{"$f":"IFERROR(INDEX(รายการชั้นเรียน[],MATCH(SUMPRODUCT((รายการชั้นเรียน[วัน]=ClassSchedule[[#Headers],[วันพฤหัสบดี]])*(ROUNDDOWN($B32,10)>=ROUNDDOWN(รายการชั้นเรียน[เวลาเริ่มต้น],10))*($B32<=รายการชั้นเรียน[เวลาสิ้นสุด]),รายการชั้นเรียน[โดดเด่น]),รายการชั้นเรียน[โดดเด่น],0),2),0)","v":0},{"$f":"IFERROR(INDEX(รายการชั้นเรียน[],MATCH(SUMPRODUCT((รายการชั้นเรียน[วัน]=ClassSchedule[[#Headers],[วันศุกร์]])*(ROUNDDOWN($B32,10)>=ROUNDDOWN(รายการชั้นเรียน[เวลาเริ่มต้น],10))*($B32<=รายการชั้นเรียน[เวลาสิ้นสุด]),รายการชั้นเรียน[โดดเด่น]),รายการชั้นเรียน[โดดเด่น],0),2),0)","v":0},{"$f":"IFERROR(INDEX(รายการชั้นเรียน[],MATCH(SUMPRODUCT((รายการชั้นเรียน[วัน]=ClassSchedule[[#Headers],[วันเสาร์]])*(ROUNDDOWN($B32,10)>=ROUNDDOWN(รายการชั้นเรียน[เวลาเริ่มต้น],10))*($B32<=รายการชั้นเรียน[เวลาสิ้นสุด]),รายการชั้นเรียน[โดดเด่น]),รายการชั้นเรียน[โดดเด่น],0),2),0)","v":0}]
[null,"15:15:00",{"$f":"IFERROR(INDEX(รายการชั้นเรียน[],MATCH(SUMPRODUCT((รายการชั้นเรียน[วัน]=ClassSchedule[[#Headers],[วันอาทิตย์]])*(ROUNDDOWN($B33,10)>=ROUNDDOWN(รายการชั้นเรียน[เวลาเริ่มต้น],10))*($B33<=รายการชั้นเรียน[เวลาสิ้นสุด]),รายการชั้นเรียน[โดดเด่น]),รายการชั้นเรียน[โดดเด่น],0),2),0)","v":0},{"$f":"IFERROR(INDEX(รายการชั้นเรียน[],MATCH(SUMPRODUCT((รายการชั้นเรียน[วัน]=ClassSchedule[[#Headers],[วันจันทร์]])*(ROUNDDOWN($B33,10)>=ROUNDDOWN(รายการชั้นเรียน[เวลาเริ่มต้น],10))*($B33<=รายการชั้นเรียน[เวลาสิ้นสุด]),รายการชั้นเรียน[โดดเด่น]),รายการชั้นเรียน[โดดเด่น],0),2),0)","v":0},{"$f":"IFERROR(INDEX(รายการชั้นเรียน[],MATCH(SUMPRODUCT((รายการชั้นเรียน[วัน]=ClassSchedule[[#Headers],[อังคาร]])*(ROUNDDOWN($B33,10)>=ROUNDDOWN(รายการชั้นเรียน[เวลาเริ่มต้น],10))*($B33<=รายการชั้นเรียน[เวลาสิ้นสุด]),รายการชั้นเรียน[โดดเด่น]),รายการชั้นเรียน[โดดเด่น],0),2),0)","v":0},{"$f":"IFERROR(INDEX(รายการชั้นเรียน[],MATCH(SUMPRODUCT((รายการชั้นเรียน[วัน]=ClassSchedule[[#Headers],[วันพุธ]])*(ROUNDDOWN($B33,10)>=ROUNDDOWN(รายการชั้นเรียน[เวลาเริ่มต้น],10))*($B33<=รายการชั้นเรียน[เวลาสิ้นสุด]),รายการชั้นเรียน[โดดเด่น]),รายการชั้นเรียน[โดดเด่น],0),2),0)","v":0},{"$f":"IFERROR(INDEX(รายการชั้นเรียน[],MATCH(SUMPRODUCT((รายการชั้นเรียน[วัน]=ClassSchedule[[#Headers],[วันพฤหัสบดี]])*(ROUNDDOWN($B33,10)>=ROUNDDOWN(รายการชั้นเรียน[เวลาเริ่มต้น],10))*($B33<=รายการชั้นเรียน[เวลาสิ้นสุด]),รายการชั้นเรียน[โดดเด่น]),รายการชั้นเรียน[โดดเด่น],0),2),0)","v":0},{"$f":"IFERROR(INDEX(รายการชั้นเรียน[],MATCH(SUMPRODUCT((รายการชั้นเรียน[วัน]=ClassSchedule[[#Headers],[วันศุกร์]])*(ROUNDDOWN($B33,10)>=ROUNDDOWN(รายการชั้นเรียน[เวลาเริ่มต้น],10))*($B33<=รายการชั้นเรียน[เวลาสิ้นสุด]),รายการชั้นเรียน[โดดเด่น]),รายการชั้นเรียน[โดดเด่น],0),2),0)","v":0},{"$f":"IFERROR(INDEX(รายการชั้นเรียน[],MATCH(SUMPRODUCT((รายการชั้นเรียน[วัน]=ClassSchedule[[#Headers],[วันเสาร์]])*(ROUNDDOWN($B33,10)>=ROUNDDOWN(รายการชั้นเรียน[เวลาเริ่มต้น],10))*($B33<=รายการชั้นเรียน[เวลาสิ้นสุด]),รายการชั้นเรียน[โดดเด่น]),รายการชั้นเรียน[โดดเด่น],0),2),0)","v":0}]
[null,"15:30:00",{"$f":"IFERROR(INDEX(รายการชั้นเรียน[],MATCH(SUMPRODUCT((รายการชั้นเรียน[วัน]=ClassSchedule[[#Headers],[วันอาทิตย์]])*(ROUNDDOWN($B34,10)>=ROUNDDOWN(รายการชั้นเรียน[เวลาเริ่มต้น],10))*($B34<=รายการชั้นเรียน[เวลาสิ้นสุด]),รายการชั้นเรียน[โดดเด่น]),รายการชั้นเรียน[โดดเด่น],0),2),0)","v":0},{"$f":"IFERROR(INDEX(รายการชั้นเรียน[],MATCH(SUMPRODUCT((รายการชั้นเรียน[วัน]=ClassSchedule[[#Headers],[วันจันทร์]])*(ROUNDDOWN($B34,10)>=ROUNDDOWN(รายการชั้นเรียน[เวลาเริ่มต้น],10))*($B34<=รายการชั้นเรียน[เวลาสิ้นสุด]),รายการชั้นเรียน[โดดเด่น]),รายการชั้นเรียน[โดดเด่น],0),2),0)","v":0},{"$f":"IFERROR(INDEX(รายการชั้นเรียน[],MATCH(SUMPRODUCT((รายการชั้นเรียน[วัน]=ClassSchedule[[#Headers],[อังคาร]])*(ROUNDDOWN($B34,10)>=ROUNDDOWN(รายการชั้นเรียน[เวลาเริ่มต้น],10))*($B34<=รายการชั้นเรียน[เวลาสิ้นสุด]),รายการชั้นเรียน[โดดเด่น]),รายการชั้นเรียน[โดดเด่น],0),2),0)","v":0},{"$f":"IFERROR(INDEX(รายการชั้นเรียน[],MATCH(SUMPRODUCT((รายการชั้นเรียน[วัน]=ClassSchedule[[#Headers],[วันพุธ]])*(ROUNDDOWN($B34,10)>=ROUNDDOWN(รายการชั้นเรียน[เวลาเริ่มต้น],10))*($B34<=รายการชั้นเรียน[เวลาสิ้นสุด]),รายการชั้นเรียน[โดดเด่น]),รายการชั้นเรียน[โดดเด่น],0),2),0)","v":0},{"$f":"IFERROR(INDEX(รายการชั้นเรียน[],MATCH(SUMPRODUCT((รายการชั้นเรียน[วัน]=ClassSchedule[[#Headers],[วันพฤหัสบดี]])*(ROUNDDOWN($B34,10)>=ROUNDDOWN(รายการชั้นเรียน[เวลาเริ่มต้น],10))*($B34<=รายการชั้นเรียน[เวลาสิ้นสุด]),รายการชั้นเรียน[โดดเด่น]),รายการชั้นเรียน[โดดเด่น],0),2),0)","v":0},{"$f":"IFERROR(INDEX(รายการชั้นเรียน[],MATCH(SUMPRODUCT((รายการชั้นเรียน[วัน]=ClassSchedule[[#Headers],[วันศุกร์]])*(ROUNDDOWN($B34,10)>=ROUNDDOWN(รายการชั้นเรียน[เวลาเริ่มต้น],10))*($B34<=รายการชั้นเรียน[เวลาสิ้นสุด]),รายการชั้นเรียน[โดดเด่น]),รายการชั้นเรียน[โดดเด่น],0),2),0)","v":0},{"$f":"IFERROR(INDEX(รายการชั้นเรียน[],MATCH(SUMPRODUCT((รายการชั้นเรียน[วัน]=ClassSchedule[[#Headers],[วันเสาร์]])*(ROUNDDOWN($B34,10)>=ROUNDDOWN(รายการชั้นเรียน[เวลาเริ่มต้น],10))*($B34<=รายการชั้นเรียน[เวลาสิ้นสุด]),รายการชั้นเรียน[โดดเด่น]),รายการชั้นเรียน[โดดเด่น],0),2),0)","v":0}]
[null,"15:45:00",{"$f":"IFERROR(INDEX(รายการชั้นเรียน[],MATCH(SUMPRODUCT((รายการชั้นเรียน[วัน]=ClassSchedule[[#Headers],[วันอาทิตย์]])*(ROUNDDOWN($B35,10)>=ROUNDDOWN(รายการชั้นเรียน[เวลาเริ่มต้น],10))*($B35<=รายการชั้นเรียน[เวลาสิ้นสุด]),รายการชั้นเรียน[โดดเด่น]),รายการชั้นเรียน[โดดเด่น],0),2),0)","v":0},{"$f":"IFERROR(INDEX(รายการชั้นเรียน[],MATCH(SUMPRODUCT((รายการชั้นเรียน[วัน]=ClassSchedule[[#Headers],[วันจันทร์]])*(ROUNDDOWN($B35,10)>=ROUNDDOWN(รายการชั้นเรียน[เวลาเริ่มต้น],10))*($B35<=รายการชั้นเรียน[เวลาสิ้นสุด]),รายการชั้นเรียน[โดดเด่น]),รายการชั้นเรียน[โดดเด่น],0),2),0)","v":0},{"$f":"IFERROR(INDEX(รายการชั้นเรียน[],MATCH(SUMPRODUCT((รายการชั้นเรียน[วัน]=ClassSchedule[[#Headers],[อังคาร]])*(ROUNDDOWN($B35,10)>=ROUNDDOWN(รายการชั้นเรียน[เวลาเริ่มต้น],10))*($B35<=รายการชั้นเรียน[เวลาสิ้นสุด]),รายการชั้นเรียน[โดดเด่น]),รายการชั้นเรียน[โดดเด่น],0),2),0)","v":0},{"$f":"IFERROR(INDEX(รายการชั้นเรียน[],MATCH(SUMPRODUCT((รายการชั้นเรียน[วัน]=ClassSchedule[[#Headers],[วันพุธ]])*(ROUNDDOWN($B35,10)>=ROUNDDOWN(รายการชั้นเรียน[เวลาเริ่มต้น],10))*($B35<=รายการชั้นเรียน[เวลาสิ้นสุด]),รายการชั้นเรียน[โดดเด่น]),รายการชั้นเรียน[โดดเด่น],0),2),0)","v":0},{"$f":"IFERROR(INDEX(รายการชั้นเรียน[],MATCH(SUMPRODUCT((รายการชั้นเรียน[วัน]=ClassSchedule[[#Headers],[วันพฤหัสบดี]])*(ROUNDDOWN($B35,10)>=ROUNDDOWN(รายการชั้นเรียน[เวลาเริ่มต้น],10))*($B35<=รายการชั้นเรียน[เวลาสิ้นสุด]),รายการชั้นเรียน[โดดเด่น]),รายการชั้นเรียน[โดดเด่น],0),2),0)","v":0},{"$f":"IFERROR(INDEX(รายการชั้นเรียน[],MATCH(SUMPRODUCT((รายการชั้นเรียน[วัน]=ClassSchedule[[#Headers],[วันศุกร์]])*(ROUNDDOWN($B35,10)>=ROUNDDOWN(รายการชั้นเรียน[เวลาเริ่มต้น],10))*($B35<=รายการชั้นเรียน[เวลาสิ้นสุด]),รายการชั้นเรียน[โดดเด่น]),รายการชั้นเรียน[โดดเด่น],0),2),0)","v":0},{"$f":"IFERROR(INDEX(รายการชั้นเรียน[],MATCH(SUMPRODUCT((รายการชั้นเรียน[วัน]=ClassSchedule[[#Headers],[วันเสาร์]])*(ROUNDDOWN($B35,10)>=ROUNDDOWN(รายการชั้นเรียน[เวลาเริ่มต้น],10))*($B35<=รายการชั้นเรียน[เวลาสิ้นสุด]),รายการชั้นเรียน[โดดเด่น]),รายการชั้นเรียน[โดดเด่น],0),2),0)","v":0}]
[null,"16:00:00",{"$f":"IFERROR(INDEX(รายการชั้นเรียน[],MATCH(SUMPRODUCT((รายการชั้นเรียน[วัน]=ClassSchedule[[#Headers],[วันอาทิตย์]])*(ROUNDDOWN($B36,10)>=ROUNDDOWN(รายการชั้นเรียน[เวลาเริ่มต้น],10))*($B36<=รายการชั้นเรียน[เวลาสิ้นสุด]),รายการชั้นเรียน[โดดเด่น]),รายการชั้นเรียน[โดดเด่น],0),2),0)","v":0},{"$f":"IFERROR(INDEX(รายการชั้นเรียน[],MATCH(SUMPRODUCT((รายการชั้นเรียน[วัน]=ClassSchedule[[#Headers],[วันจันทร์]])*(ROUNDDOWN($B36,10)>=ROUNDDOWN(รายการชั้นเรียน[เวลาเริ่มต้น],10))*($B36<=รายการชั้นเรียน[เวลาสิ้นสุด]),รายการชั้นเรียน[โดดเด่น]),รายการชั้นเรียน[โดดเด่น],0),2),0)","v":"SP-111"},{"$f":"IFERROR(INDEX(รายการชั้นเรียน[],MATCH(SUMPRODUCT((รายการชั้นเรียน[วัน]=ClassSchedule[[#Headers],[อังคาร]])*(ROUNDDOWN($B36,10)>=ROUNDDOWN(รายการชั้นเรียน[เวลาเริ่มต้น],10))*($B36<=รายการชั้นเรียน[เวลาสิ้นสุด]),รายการชั้นเรียน[โดดเด่น]),รายการชั้นเรียน[โดดเด่น],0),2),0)","v":0},{"$f":"IFERROR(INDEX(รายการชั้นเรียน[],MATCH(SUMPRODUCT((รายการชั้นเรียน[วัน]=ClassSchedule[[#Headers],[วันพุธ]])*(ROUNDDOWN($B36,10)>=ROUNDDOWN(รายการชั้นเรียน[เวลาเริ่มต้น],10))*($B36<=รายการชั้นเรียน[เวลาสิ้นสุด]),รายการชั้นเรียน[โดดเด่น]),รายการชั้นเรียน[โดดเด่น],0),2),0)","v":0},{"$f":"IFERROR(INDEX(รายการชั้นเรียน[],MATCH(SUMPRODUCT((รายการชั้นเรียน[วัน]=ClassSchedule[[#Headers],[วันพฤหัสบดี]])*(ROUNDDOWN($B36,10)>=ROUNDDOWN(รายการชั้นเรียน[เวลาเริ่มต้น],10))*($B36<=รายการชั้นเรียน[เวลาสิ้นสุด]),รายการชั้นเรียน[โดดเด่น]),รายการชั้นเรียน[โดดเด่น],0),2),0)","v":0},{"$f":"IFERROR(INDEX(รายการชั้นเรียน[],MATCH(SUMPRODUCT((รายการชั้นเรียน[วัน]=ClassSchedule[[#Headers],[วันศุกร์]])*(ROUNDDOWN($B36,10)>=ROUNDDOWN(รายการชั้นเรียน[เวลาเริ่มต้น],10))*($B36<=รายการชั้นเรียน[เวลาสิ้นสุด]),รายการชั้นเรียน[โดดเด่น]),รายการชั้นเรียน[โดดเด่น],0),2),0)","v":0},{"$f":"IFERROR(INDEX(รายการชั้นเรียน[],MATCH(SUMPRODUCT((รายการชั้นเรียน[วัน]=ClassSchedule[[#Headers],[วันเสาร์]])*(ROUNDDOWN($B36,10)>=ROUNDDOWN(รายการชั้นเรียน[เวลาเริ่มต้น],10))*($B36<=รายการชั้นเรียน[เวลาสิ้นสุด]),รายการชั้นเรียน[โดดเด่น]),รายการชั้นเรียน[โดดเด่น],0),2),0)","v":0}]
[null,"16:15:00",{"$f":"IFERROR(INDEX(รายการชั้นเรียน[],MATCH(SUMPRODUCT((รายการชั้นเรียน[วัน]=ClassSchedule[[#Headers],[วันอาทิตย์]])*(ROUNDDOWN($B37,10)>=ROUNDDOWN(รายการชั้นเรียน[เวลาเริ่มต้น],10))*($B37<=รายการชั้นเรียน[เวลาสิ้นสุด]),รายการชั้นเรียน[โดดเด่น]),รายการชั้นเรียน[โดดเด่น],0),2),0)","v":0},{"$f":"IFERROR(INDEX(รายการชั้นเรียน[],MATCH(SUMPRODUCT((รายการชั้นเรียน[วัน]=ClassSchedule[[#Headers],[วันจันทร์]])*(ROUNDDOWN($B37,10)>=ROUNDDOWN(รายการชั้นเรียน[เวลาเริ่มต้น],10))*($B37<=รายการชั้นเรียน[เวลาสิ้นสุด]),รายการชั้นเรียน[โดดเด่น]),รายการชั้นเรียน[โดดเด่น],0),2),0)","v":"SP-111"},{"$f":"IFERROR(INDEX(รายการชั้นเรียน[],MATCH(SUMPRODUCT((รายการชั้นเรียน[วัน]=ClassSchedule[[#Headers],[อังคาร]])*(ROUNDDOWN($B37,10)>=ROUNDDOWN(รายการชั้นเรียน[เวลาเริ่มต้น],10))*($B37<=รายการชั้นเรียน[เวลาสิ้นสุด]),รายการชั้นเรียน[โดดเด่น]),รายการชั้นเรียน[โดดเด่น],0),2),0)","v":0},{"$f":"IFERROR(INDEX(รายการชั้นเรียน[],MATCH(SUMPRODUCT((รายการชั้นเรียน[วัน]=ClassSchedule[[#Headers],[วันพุธ]])*(ROUNDDOWN($B37,10)>=ROUNDDOWN(รายการชั้นเรียน[เวลาเริ่มต้น],10))*($B37<=รายการชั้นเรียน[เวลาสิ้นสุด]),รายการชั้นเรียน[โดดเด่น]),รายการชั้นเรียน[โดดเด่น],0),2),0)","v":0},{"$f":"IFERROR(INDEX(รายการชั้นเรียน[],MATCH(SUMPRODUCT((รายการชั้นเรียน[วัน]=ClassSchedule[[#Headers],[วันพฤหัสบดี]])*(ROUNDDOWN($B37,10)>=ROUNDDOWN(รายการชั้นเรียน[เวลาเริ่มต้น],10))*($B37<=รายการชั้นเรียน[เวลาสิ้นสุด]),รายการชั้นเรียน[โดดเด่น]),รายการชั้นเรียน[โดดเด่น],0),2),0)","v":0},{"$f":"IFERROR(INDEX(รายการชั้นเรียน[],MATCH(SUMPRODUCT((รายการชั้นเรียน[วัน]=ClassSchedule[[#Headers],[วันศุกร์]])*(ROUNDDOWN($B37,10)>=ROUNDDOWN(รายการชั้นเรียน[เวลาเริ่มต้น],10))*($B37<=รายการชั้นเรียน[เวลาสิ้นสุด]),รายการชั้นเรียน[โดดเด่น]),รายการชั้นเรียน[โดดเด่น],0),2),0)","v":0},{"$f":"IFERROR(INDEX(รายการชั้นเรียน[],MATCH(SUMPRODUCT((รายการชั้นเรียน[วัน]=ClassSchedule[[#Headers],[วันเสาร์]])*(ROUNDDOWN($B37,10)>=ROUNDDOWN(รายการชั้นเรียน[เวลาเริ่มต้น],10))*($B37<=รายการชั้นเรียน[เวลาสิ้นสุด]),รายการชั้นเรียน[โดดเด่น]),รายการชั้นเรียน[โดดเด่น],0),2),0)","v":0}]
[null,"16:30:00",{"$f":"IFERROR(INDEX(รายการชั้นเรียน[],MATCH(SUMPRODUCT((รายการชั้นเรียน[วัน]=ClassSchedule[[#Headers],[วันอาทิตย์]])*(ROUNDDOWN($B38,10)>=ROUNDDOWN(รายการชั้นเรียน[เวลาเริ่มต้น],10))*($B38<=รายการชั้นเรียน[เวลาสิ้นสุด]),รายการชั้นเรียน[โดดเด่น]),รายการชั้นเรียน[โดดเด่น],0),2),0)","v":0},{"$f":"IFERROR(INDEX(รายการชั้นเรียน[],MATCH(SUMPRODUCT((รายการชั้นเรียน[วัน]=ClassSchedule[[#Headers],[วันจันทร์]])*(ROUNDDOWN($B38,10)>=ROUNDDOWN(รายการชั้นเรียน[เวลาเริ่มต้น],10))*($B38<=รายการชั้นเรียน[เวลาสิ้นสุด]),รายการชั้นเรียน[โดดเด่น]),รายการชั้นเรียน[โดดเด่น],0),2),0)","v":"SP-111"},{"$f":"IFERROR(INDEX(รายการชั้นเรียน[],MATCH(SUMPRODUCT((รายการชั้นเรียน[วัน]=ClassSchedule[[#Headers],[อังคาร]])*(ROUNDDOWN($B38,10)>=ROUNDDOWN(รายการชั้นเรียน[เวลาเริ่มต้น],10))*($B38<=รายการชั้นเรียน[เวลาสิ้นสุด]),รายการชั้นเรียน[โดดเด่น]),รายการชั้นเรียน[โดดเด่น],0),2),0)","v":0},{"$f":"IFERROR(INDEX(รายการชั้นเรียน[],MATCH(SUMPRODUCT((รายการชั้นเรียน[วัน]=ClassSchedule[[#Headers],[วันพุธ]])*(ROUNDDOWN($B38,10)>=ROUNDDOWN(รายการชั้นเรียน[เวลาเริ่มต้น],10))*($B38<=รายการชั้นเรียน[เวลาสิ้นสุด]),รายการชั้นเรียน[โดดเด่น]),รายการชั้นเรียน[โดดเด่น],0),2),0)","v":0},{"$f":"IFERROR(INDEX(รายการชั้นเรียน[],MATCH(SUMPRODUCT((รายการชั้นเรียน[วัน]=ClassSchedule[[#Headers],[วันพฤหัสบดี]])*(ROUNDDOWN($B38,10)>=ROUNDDOWN(รายการชั้นเรียน[เวลาเริ่มต้น],10))*($B38<=รายการชั้นเรียน[เวลาสิ้นสุด]),รายการชั้นเรียน[โดดเด่น]),รายการชั้นเรียน[โดดเด่น],0),2),0)","v":0},{"$f":"IFERROR(INDEX(รายการชั้นเรียน[],MATCH(SUMPRODUCT((รายการชั้นเรียน[วัน]=ClassSchedule[[#Headers],[วันศุกร์]])*(ROUNDDOWN($B38,10)>=ROUNDDOWN(รายการชั้นเรียน[เวลาเริ่มต้น],10))*($B38<=รายการชั้นเรียน[เวลาสิ้นสุด]),รายการชั้นเรียน[โดดเด่น]),รายการชั้นเรียน[โดดเด่น],0),2),0)","v":0},{"$f":"IFERROR(INDEX(รายการชั้นเรียน[],MATCH(SUMPRODUCT((รายการชั้นเรียน[วัน]=ClassSchedule[[#Headers],[วันเสาร์]])*(ROUNDDOWN($B38,10)>=ROUNDDOWN(รายการชั้นเรียน[เวลาเริ่มต้น],10))*($B38<=รายการชั้นเรียน[เวลาสิ้นสุด]),รายการชั้นเรียน[โดดเด่น]),รายการชั้นเรียน[โดดเด่น],0),2),0)","v":0}]
[null,"16:45:00",{"$f":"IFERROR(INDEX(รายการชั้นเรียน[],MATCH(SUMPRODUCT((รายการชั้นเรียน[วัน]=ClassSchedule[[#Headers],[วันอาทิตย์]])*(ROUNDDOWN($B39,10)>=ROUNDDOWN(รายการชั้นเรียน[เวลาเริ่มต้น],10))*($B39<=รายการชั้นเรียน[เวลาสิ้นสุด]),รายการชั้นเรียน[โดดเด่น]),รายการชั้นเรียน[โดดเด่น],0),2),0)","v":0},{"$f":"IFERROR(INDEX(รายการชั้นเรียน[],MATCH(SUMPRODUCT((รายการชั้นเรียน[วัน]=ClassSchedule[[#Headers],[วันจันทร์]])*(ROUNDDOWN($B39,10)>=ROUNDDOWN(รายการชั้นเรียน[เวลาเริ่มต้น],10))*($B39<=รายการชั้นเรียน[เวลาสิ้นสุด]),รายการชั้นเรียน[โดดเด่น]),รายการชั้นเรียน[โดดเด่น],0),2),0)","v":"SP-111"},{"$f":"IFERROR(INDEX(รายการชั้นเรียน[],MATCH(SUMPRODUCT((รายการชั้นเรียน[วัน]=ClassSchedule[[#Headers],[อังคาร]])*(ROUNDDOWN($B39,10)>=ROUNDDOWN(รายการชั้นเรียน[เวลาเริ่มต้น],10))*($B39<=รายการชั้นเรียน[เวลาสิ้นสุด]),รายการชั้นเรียน[โดดเด่น]),รายการชั้นเรียน[โดดเด่น],0),2),0)","v":0},{"$f":"IFERROR(INDEX(รายการชั้นเรียน[],MATCH(SUMPRODUCT((รายการชั้นเรียน[วัน]=ClassSchedule[[#Headers],[วันพุธ]])*(ROUNDDOWN($B39,10)>=ROUNDDOWN(รายการชั้นเรียน[เวลาเริ่มต้น],10))*($B39<=รายการชั้นเรียน[เวลาสิ้นสุด]),รายการชั้นเรียน[โดดเด่น]),รายการชั้นเรียน[โดดเด่น],0),2),0)","v":0},{"$f":"IFERROR(INDEX(รายการชั้นเรียน[],MATCH(SUMPRODUCT((รายการชั้นเรียน[วัน]=ClassSchedule[[#Headers],[วันพฤหัสบดี]])*(ROUNDDOWN($B39,10)>=ROUNDDOWN(รายการชั้นเรียน[เวลาเริ่มต้น],10))*($B39<=รายการชั้นเรียน[เวลาสิ้นสุด]),รายการชั้นเรียน[โดดเด่น]),รายการชั้นเรียน[โดดเด่น],0),2),0)","v":0},{"$f":"IFERROR(INDEX(รายการชั้นเรียน[],MATCH(SUMPRODUCT((รายการชั้นเรียน[วัน]=ClassSchedule[[#Headers],[วันศุกร์]])*(ROUNDDOWN($B39,10)>=ROUNDDOWN(รายการชั้นเรียน[เวลาเริ่มต้น],10))*($B39<=รายการชั้นเรียน[เวลาสิ้นสุด]),รายการชั้นเรียน[โดดเด่น]),รายการชั้นเรียน[โดดเด่น],0),2),0)","v":0},{"$f":"IFERROR(INDEX(รายการชั้นเรียน[],MATCH(SUMPRODUCT((รายการชั้นเรียน[วัน]=ClassSchedule[[#Headers],[วันเสาร์]])*(ROUNDDOWN($B39,10)>=ROUNDDOWN(รายการชั้นเรียน[เวลาเริ่มต้น],10))*($B39<=รายการชั้นเรียน[เวลาสิ้นสุด]),รายการชั้นเรียน[โดดเด่น]),รายการชั้นเรียน[โดดเด่น],0),2),0)","v":0}]
[null,"17:00:00",{"$f":"IFERROR(INDEX(รายการชั้นเรียน[],MATCH(SUMPRODUCT((รายการชั้นเรียน[วัน]=ClassSchedule[[#Headers],[วันอาทิตย์]])*(ROUNDDOWN($B40,10)>=ROUNDDOWN(รายการชั้นเรียน[เวลาเริ่มต้น],10))*($B40<=รายการชั้นเรียน[เวลาสิ้นสุด]),รายการชั้นเรียน[โดดเด่น]),รายการชั้นเรียน[โดดเด่น],0),2),0)","v":0},{"$f":"IFERROR(INDEX(รายการชั้นเรียน[],MATCH(SUMPRODUCT((รายการชั้นเรียน[วัน]=ClassSchedule[[#Headers],[วันจันทร์]])*(ROUNDDOWN($B40,10)>=ROUNDDOWN(รายการชั้นเรียน[เวลาเริ่มต้น],10))*($B40<=รายการชั้นเรียน[เวลาสิ้นสุด]),รายการชั้นเรียน[โดดเด่น]),รายการชั้นเรียน[โดดเด่น],0),2),0)","v":"SP-111"},{"$f":"IFERROR(INDEX(รายการชั้นเรียน[],MATCH(SUMPRODUCT((รายการชั้นเรียน[วัน]=ClassSchedule[[#Headers],[อังคาร]])*(ROUNDDOWN($B40,10)>=ROUNDDOWN(รายการชั้นเรียน[เวลาเริ่มต้น],10))*($B40<=รายการชั้นเรียน[เวลาสิ้นสุด]),รายการชั้นเรียน[โดดเด่น]),รายการชั้นเรียน[โดดเด่น],0),2),0)","v":0},{"$f":"IFERROR(INDEX(รายการชั้นเรียน[],MATCH(SUMPRODUCT((รายการชั้นเรียน[วัน]=ClassSchedule[[#Headers],[วันพุธ]])*(ROUNDDOWN($B40,10)>=ROUNDDOWN(รายการชั้นเรียน[เวลาเริ่มต้น],10))*($B40<=รายการชั้นเรียน[เวลาสิ้นสุด]),รายการชั้นเรียน[โดดเด่น]),รายการชั้นเรียน[โดดเด่น],0),2),0)","v":0},{"$f":"IFERROR(INDEX(รายการชั้นเรียน[],MATCH(SUMPRODUCT((รายการชั้นเรียน[วัน]=ClassSchedule[[#Headers],[วันพฤหัสบดี]])*(ROUNDDOWN($B40,10)>=ROUNDDOWN(รายการชั้นเรียน[เวลาเริ่มต้น],10))*($B40<=รายการชั้นเรียน[เวลาสิ้นสุด]),รายการชั้นเรียน[โดดเด่น]),รายการชั้นเรียน[โดดเด่น],0),2),0)","v":0},{"$f":"IFERROR(INDEX(รายการชั้นเรียน[],MATCH(SUMPRODUCT((รายการชั้นเรียน[วัน]=ClassSchedule[[#Headers],[วันศุกร์]])*(ROUNDDOWN($B40,10)>=ROUNDDOWN(รายการชั้นเรียน[เวลาเริ่มต้น],10))*($B40<=รายการชั้นเรียน[เวลาสิ้นสุด]),รายการชั้นเรียน[โดดเด่น]),รายการชั้นเรียน[โดดเด่น],0),2),0)","v":0},{"$f":"IFERROR(INDEX(รายการชั้นเรียน[],MATCH(SUMPRODUCT((รายการชั้นเรียน[วัน]=ClassSchedule[[#Headers],[วันเสาร์]])*(ROUNDDOWN($B40,10)>=ROUNDDOWN(รายการชั้นเรียน[เวลาเริ่มต้น],10))*($B40<=รายการชั้นเรียน[เวลาสิ้นสุด]),รายการชั้นเรียน[โดดเด่น]),รายการชั้นเรียน[โดดเด่น],0),2),0)","v":0}]
[null,"17:15:00",{"$f":"IFERROR(INDEX(รายการชั้นเรียน[],MATCH(SUMPRODUCT((รายการชั้นเรียน[วัน]=ClassSchedule[[#Headers],[วันอาทิตย์]])*(ROUNDDOWN($B41,10)>=ROUNDDOWN(รายการชั้นเรียน[เวลาเริ่มต้น],10))*($B41<=รายการชั้นเรียน[เวลาสิ้นสุด]),รายการชั้นเรียน[โดดเด่น]),รายการชั้นเรียน[โดดเด่น],0),2),0)","v":0},{"$f":"IFERROR(INDEX(รายการชั้นเรียน[],MATCH(SUMPRODUCT((รายการชั้นเรียน[วัน]=ClassSchedule[[#Headers],[วันจันทร์]])*(ROUNDDOWN($B41,10)>=ROUNDDOWN(รายการชั้นเรียน[เวลาเริ่มต้น],10))*($B41<=รายการชั้นเรียน[เวลาสิ้นสุด]),รายการชั้นเรียน[โดดเด่น]),รายการชั้นเรียน[โดดเด่น],0),2),0)","v":0},{"$f":"IFERROR(INDEX(รายการชั้นเรียน[],MATCH(SUMPRODUCT((รายการชั้นเรียน[วัน]=ClassSchedule[[#Headers],[อังคาร]])*(ROUNDDOWN($B41,10)>=ROUNDDOWN(รายการชั้นเรียน[เวลาเริ่มต้น],10))*($B41<=รายการชั้นเรียน[เวลาสิ้นสุด]),รายการชั้นเรียน[โดดเด่น]),รายการชั้นเรียน[โดดเด่น],0),2),0)","v":0},{"$f":"IFERROR(INDEX(รายการชั้นเรียน[],MATCH(SUMPRODUCT((รายการชั้นเรียน[วัน]=ClassSchedule[[#Headers],[วันพุธ]])*(ROUNDDOWN($B41,10)>=ROUNDDOWN(รายการชั้นเรียน[เวลาเริ่มต้น],10))*($B41<=รายการชั้นเรียน[เวลาสิ้นสุด]),รายการชั้นเรียน[โดดเด่น]),รายการชั้นเรียน[โดดเด่น],0),2),0)","v":0},{"$f":"IFERROR(INDEX(รายการชั้นเรียน[],MATCH(SUMPRODUCT((รายการชั้นเรียน[วัน]=ClassSchedule[[#Headers],[วันพฤหัสบดี]])*(ROUNDDOWN($B41,10)>=ROUNDDOWN(รายการชั้นเรียน[เวลาเริ่มต้น],10))*($B41<=รายการชั้นเรียน[เวลาสิ้นสุด]),รายการชั้นเรียน[โดดเด่น]),รายการชั้นเรียน[โดดเด่น],0),2),0)","v":0},{"$f":"IFERROR(INDEX(รายการชั้นเรียน[],MATCH(SUMPRODUCT((รายการชั้นเรียน[วัน]=ClassSchedule[[#Headers],[วันศุกร์]])*(ROUNDDOWN($B41,10)>=ROUNDDOWN(รายการชั้นเรียน[เวลาเริ่มต้น],10))*($B41<=รายการชั้นเรียน[เวลาสิ้นสุด]),รายการชั้นเรียน[โดดเด่น]),รายการชั้นเรียน[โดดเด่น],0),2),0)","v":0},{"$f":"IFERROR(INDEX(รายการชั้นเรียน[],MATCH(SUMPRODUCT((รายการชั้นเรียน[วัน]=ClassSchedule[[#Headers],[วันเสาร์]])*(ROUNDDOWN($B41,10)>=ROUNDDOWN(รายการชั้นเรียน[เวลาเริ่มต้น],10))*($B41<=รายการชั้นเรียน[เวลาสิ้นสุด]),รายการชั้นเรียน[โดดเด่น]),รายการชั้นเรียน[โดดเด่น],0),2),0)","v":0}]
[null,"17:30:00",{"$f":"IFERROR(INDEX(รายการชั้นเรียน[],MATCH(SUMPRODUCT((รายการชั้นเรียน[วัน]=ClassSchedule[[#Headers],[วันอาทิตย์]])*(ROUNDDOWN($B42,10)>=ROUNDDOWN(รายการชั้นเรียน[เวลาเริ่มต้น],10))*($B42<=รายการชั้นเรียน[เวลาสิ้นสุด]),รายการชั้นเรียน[โดดเด่น]),รายการชั้นเรียน[โดดเด่น],0),2),0)","v":0},{"$f":"IFERROR(INDEX(รายการชั้นเรียน[],MATCH(SUMPRODUCT((รายการชั้นเรียน[วัน]=ClassSchedule[[#Headers],[วันจันทร์]])*(ROUNDDOWN($B42,10)>=ROUNDDOWN(รายการชั้นเรียน[เวลาเริ่มต้น],10))*($B42<=รายการชั้นเรียน[เวลาสิ้นสุด]),รายการชั้นเรียน[โดดเด่น]),รายการชั้นเรียน[โดดเด่น],0),2),0)","v":0},{"$f":"IFERROR(INDEX(รายการชั้นเรียน[],MATCH(SUMPRODUCT((รายการชั้นเรียน[วัน]=ClassSchedule[[#Headers],[อังคาร]])*(ROUNDDOWN($B42,10)>=ROUNDDOWN(รายการชั้นเรียน[เวลาเริ่มต้น],10))*($B42<=รายการชั้นเรียน[เวลาสิ้นสุด]),รายการชั้นเรียน[โดดเด่น]),รายการชั้นเรียน[โดดเด่น],0),2),0)","v":0},{"$f":"IFERROR(INDEX(รายการชั้นเรียน[],MATCH(SUMPRODUCT((รายการชั้นเรียน[วัน]=ClassSchedule[[#Headers],[วันพุธ]])*(ROUNDDOWN($B42,10)>=ROUNDDOWN(รายการชั้นเรียน[เวลาเริ่มต้น],10))*($B42<=รายการชั้นเรียน[เวลาสิ้นสุด]),รายการชั้นเรียน[โดดเด่น]),รายการชั้นเรียน[โดดเด่น],0),2),0)","v":0},{"$f":"IFERROR(INDEX(รายการชั้นเรียน[],MATCH(SUMPRODUCT((รายการชั้นเรียน[วัน]=ClassSchedule[[#Headers],[วันพฤหัสบดี]])*(ROUNDDOWN($B42,10)>=ROUNDDOWN(รายการชั้นเรียน[เวลาเริ่มต้น],10))*($B42<=รายการชั้นเรียน[เวลาสิ้นสุด]),รายการชั้นเรียน[โดดเด่น]),รายการชั้นเรียน[โดดเด่น],0),2),0)","v":0},{"$f":"IFERROR(INDEX(รายการชั้นเรียน[],MATCH(SUMPRODUCT((รายการชั้นเรียน[วัน]=ClassSchedule[[#Headers],[วันศุกร์]])*(ROUNDDOWN($B42,10)>=ROUNDDOWN(รายการชั้นเรียน[เวลาเริ่มต้น],10))*($B42<=รายการชั้นเรียน[เวลาสิ้นสุด]),รายการชั้นเรียน[โดดเด่น]),รายการชั้นเรียน[โดดเด่น],0),2),0)","v":0},{"$f":"IFERROR(INDEX(รายการชั้นเรียน[],MATCH(SUMPRODUCT((รายการชั้นเรียน[วัน]=ClassSchedule[[#Headers],[วันเสาร์]])*(ROUNDDOWN($B42,10)>=ROUNDDOWN(รายการชั้นเรียน[เวลาเริ่มต้น],10))*($B42<=รายการชั้นเรียน[เวลาสิ้นสุด]),รายการชั้นเรียน[โดดเด่น]),รายการชั้นเรียน[โดดเด่น],0),2),0)","v":0}]
[null,"17:45:00",{"$f":"IFERROR(INDEX(รายการชั้นเรียน[],MATCH(SUMPRODUCT((รายการชั้นเรียน[วัน]=ClassSchedule[[#Headers],[วันอาทิตย์]])*(ROUNDDOWN($B43,10)>=ROUNDDOWN(รายการชั้นเรียน[เวลาเริ่มต้น],10))*($B43<=รายการชั้นเรียน[เวลาสิ้นสุด]),รายการชั้นเรียน[โดดเด่น]),รายการชั้นเรียน[โดดเด่น],0),2),0)","v":0},{"$f":"IFERROR(INDEX(รายการชั้นเรียน[],MATCH(SUMPRODUCT((รายการชั้นเรียน[วัน]=ClassSchedule[[#Headers],[วันจันทร์]])*(ROUNDDOWN($B43,10)>=ROUNDDOWN(รายการชั้นเรียน[เวลาเริ่มต้น],10))*($B43<=รายการชั้นเรียน[เวลาสิ้นสุด]),รายการชั้นเรียน[โดดเด่น]),รายการชั้นเรียน[โดดเด่น],0),2),0)","v":0},{"$f":"IFERROR(INDEX(รายการชั้นเรียน[],MATCH(SUMPRODUCT((รายการชั้นเรียน[วัน]=ClassSchedule[[#Headers],[อังคาร]])*(ROUNDDOWN($B43,10)>=ROUNDDOWN(รายการชั้นเรียน[เวลาเริ่มต้น],10))*($B43<=รายการชั้นเรียน[เวลาสิ้นสุด]),รายการชั้นเรียน[โดดเด่น]),รายการชั้นเรียน[โดดเด่น],0),2),0)","v":0},{"$f":"IFERROR(INDEX(รายการชั้นเรียน[],MATCH(SUMPRODUCT((รายการชั้นเรียน[วัน]=ClassSchedule[[#Headers],[วันพุธ]])*(ROUNDDOWN($B43,10)>=ROUNDDOWN(รายการชั้นเรียน[เวลาเริ่มต้น],10))*($B43<=รายการชั้นเรียน[เวลาสิ้นสุด]),รายการชั้นเรียน[โดดเด่น]),รายการชั้นเรียน[โดดเด่น],0),2),0)","v":0},{"$f":"IFERROR(INDEX(รายการชั้นเรียน[],MATCH(SUMPRODUCT((รายการชั้นเรียน[วัน]=ClassSchedule[[#Headers],[วันพฤหัสบดี]])*(ROUNDDOWN($B43,10)>=ROUNDDOWN(รายการชั้นเรียน[เวลาเริ่มต้น],10))*($B43<=รายการชั้นเรียน[เวลาสิ้นสุด]),รายการชั้นเรียน[โดดเด่น]),รายการชั้นเรียน[โดดเด่น],0),2),0)","v":0},{"$f":"IFERROR(INDEX(รายการชั้นเรียน[],MATCH(SUMPRODUCT((รายการชั้นเรียน[วัน]=ClassSchedule[[#Headers],[วันศุกร์]])*(ROUNDDOWN($B43,10)>=ROUNDDOWN(รายการชั้นเรียน[เวลาเริ่มต้น],10))*($B43<=รายการชั้นเรียน[เวลาสิ้นสุด]),รายการชั้นเรียน[โดดเด่น]),รายการชั้นเรียน[โดดเด่น],0),2),0)","v":0},{"$f":"IFERROR(INDEX(รายการชั้นเรียน[],MATCH(SUMPRODUCT((รายการชั้นเรียน[วัน]=ClassSchedule[[#Headers],[วันเสาร์]])*(ROUNDDOWN($B43,10)>=ROUNDDOWN(รายการชั้นเรียน[เวลาเริ่มต้น],10))*($B43<=รายการชั้นเรียน[เวลาสิ้นสุด]),รายการชั้นเรียน[โดดเด่น]),รายการชั้นเรียน[โดดเด่น],0),2),0)","v":0}]
[null,"18:00:00",{"$f":"IFERROR(INDEX(รายการชั้นเรียน[],MATCH(SUMPRODUCT((รายการชั้นเรียน[วัน]=ClassSchedule[[#Headers],[วันอาทิตย์]])*(ROUNDDOWN($B44,10)>=ROUNDDOWN(รายการชั้นเรียน[เวลาเริ่มต้น],10))*($B44<=รายการชั้นเรียน[เวลาสิ้นสุด]),รายการชั้นเรียน[โดดเด่น]),รายการชั้นเรียน[โดดเด่น],0),2),0)","v":0},{"$f":"IFERROR(INDEX(รายการชั้นเรียน[],MATCH(SUMPRODUCT((รายการชั้นเรียน[วัน]=ClassSchedule[[#Headers],[วันจันทร์]])*(ROUNDDOWN($B44,10)>=ROUNDDOWN(รายการชั้นเรียน[เวลาเริ่มต้น],10))*($B44<=รายการชั้นเรียน[เวลาสิ้นสุด]),รายการชั้นเรียน[โดดเด่น]),รายการชั้นเรียน[โดดเด่น],0),2),0)","v":0},{"$f":"IFERROR(INDEX(รายการชั้นเรียน[],MATCH(SUMPRODUCT((รายการชั้นเรียน[วัน]=ClassSchedule[[#Headers],[อังคาร]])*(ROUNDDOWN($B44,10)>=ROUNDDOWN(รายการชั้นเรียน[เวลาเริ่มต้น],10))*($B44<=รายการชั้นเรียน[เวลาสิ้นสุด]),รายการชั้นเรียน[โดดเด่น]),รายการชั้นเรียน[โดดเด่น],0),2),0)","v":0},{"$f":"IFERROR(INDEX(รายการชั้นเรียน[],MATCH(SUMPRODUCT((รายการชั้นเรียน[วัน]=ClassSchedule[[#Headers],[วันพุธ]])*(ROUNDDOWN($B44,10)>=ROUNDDOWN(รายการชั้นเรียน[เวลาเริ่มต้น],10))*($B44<=รายการชั้นเรียน[เวลาสิ้นสุด]),รายการชั้นเรียน[โดดเด่น]),รายการชั้นเรียน[โดดเด่น],0),2),0)","v":0},{"$f":"IFERROR(INDEX(รายการชั้นเรียน[],MATCH(SUMPRODUCT((รายการชั้นเรียน[วัน]=ClassSchedule[[#Headers],[วันพฤหัสบดี]])*(ROUNDDOWN($B44,10)>=ROUNDDOWN(รายการชั้นเรียน[เวลาเริ่มต้น],10))*($B44<=รายการชั้นเรียน[เวลาสิ้นสุด]),รายการชั้นเรียน[โดดเด่น]),รายการชั้นเรียน[โดดเด่น],0),2),0)","v":0},{"$f":"IFERROR(INDEX(รายการชั้นเรียน[],MATCH(SUMPRODUCT((รายการชั้นเรียน[วัน]=ClassSchedule[[#Headers],[วันศุกร์]])*(ROUNDDOWN($B44,10)>=ROUNDDOWN(รายการชั้นเรียน[เวลาเริ่มต้น],10))*($B44<=รายการชั้นเรียน[เวลาสิ้นสุด]),รายการชั้นเรียน[โดดเด่น]),รายการชั้นเรียน[โดดเด่น],0),2),0)","v":0},{"$f":"IFERROR(INDEX(รายการชั้นเรียน[],MATCH(SUMPRODUCT((รายการชั้นเรียน[วัน]=ClassSchedule[[#Headers],[วันเสาร์]])*(ROUNDDOWN($B44,10)>=ROUNDDOWN(รายการชั้นเรียน[เวลาเริ่มต้น],10))*($B44<=รายการชั้นเรียน[เวลาสิ้นสุด]),รายการชั้นเรียน[โดดเด่น]),รายการชั้นเรียน[โดดเด่น],0),2),0)","v":0}]
[null,"18:15:00",{"$f":"IFERROR(INDEX(รายการชั้นเรียน[],MATCH(SUMPRODUCT((รายการชั้นเรียน[วัน]=ClassSchedule[[#Headers],[วันอาทิตย์]])*(ROUNDDOWN($B45,10)>=ROUNDDOWN(รายการชั้นเรียน[เวลาเริ่มต้น],10))*($B45<=รายการชั้นเรียน[เวลาสิ้นสุด]),รายการชั้นเรียน[โดดเด่น]),รายการชั้นเรียน[โดดเด่น],0),2),0)","v":0},{"$f":"IFERROR(INDEX(รายการชั้นเรียน[],MATCH(SUMPRODUCT((รายการชั้นเรียน[วัน]=ClassSchedule[[#Headers],[วันจันทร์]])*(ROUNDDOWN($B45,10)>=ROUNDDOWN(รายการชั้นเรียน[เวลาเริ่มต้น],10))*($B45<=รายการชั้นเรียน[เวลาสิ้นสุด]),รายการชั้นเรียน[โดดเด่น]),รายการชั้นเรียน[โดดเด่น],0),2),0)","v":0},{"$f":"IFERROR(INDEX(รายการชั้นเรียน[],MATCH(SUMPRODUCT((รายการชั้นเรียน[วัน]=ClassSchedule[[#Headers],[อังคาร]])*(ROUNDDOWN($B45,10)>=ROUNDDOWN(รายการชั้นเรียน[เวลาเริ่มต้น],10))*($B45<=รายการชั้นเรียน[เวลาสิ้นสุด]),รายการชั้นเรียน[โดดเด่น]),รายการชั้นเรียน[โดดเด่น],0),2),0)","v":0},{"$f":"IFERROR(INDEX(รายการชั้นเรียน[],MATCH(SUMPRODUCT((รายการชั้นเรียน[วัน]=ClassSchedule[[#Headers],[วันพุธ]])*(ROUNDDOWN($B45,10)>=ROUNDDOWN(รายการชั้นเรียน[เวลาเริ่มต้น],10))*($B45<=รายการชั้นเรียน[เวลาสิ้นสุด]),รายการชั้นเรียน[โดดเด่น]),รายการชั้นเรียน[โดดเด่น],0),2),0)","v":0},{"$f":"IFERROR(INDEX(รายการชั้นเรียน[],MATCH(SUMPRODUCT((รายการชั้นเรียน[วัน]=ClassSchedule[[#Headers],[วันพฤหัสบดี]])*(ROUNDDOWN($B45,10)>=ROUNDDOWN(รายการชั้นเรียน[เวลาเริ่มต้น],10))*($B45<=รายการชั้นเรียน[เวลาสิ้นสุด]),รายการชั้นเรียน[โดดเด่น]),รายการชั้นเรียน[โดดเด่น],0),2),0)","v":0},{"$f":"IFERROR(INDEX(รายการชั้นเรียน[],MATCH(SUMPRODUCT((รายการชั้นเรียน[วัน]=ClassSchedule[[#Headers],[วันศุกร์]])*(ROUNDDOWN($B45,10)>=ROUNDDOWN(รายการชั้นเรียน[เวลาเริ่มต้น],10))*($B45<=รายการชั้นเรียน[เวลาสิ้นสุด]),รายการชั้นเรียน[โดดเด่น]),รายการชั้นเรียน[โดดเด่น],0),2),0)","v":0},{"$f":"IFERROR(INDEX(รายการชั้นเรียน[],MATCH(SUMPRODUCT((รายการชั้นเรียน[วัน]=ClassSchedule[[#Headers],[วันเสาร์]])*(ROUNDDOWN($B45,10)>=ROUNDDOWN(รายการชั้นเรียน[เวลาเริ่มต้น],10))*($B45<=รายการชั้นเรียน[เวลาสิ้นสุด]),รายการชั้นเรียน[โดดเด่น]),รายการชั้นเรียน[โดดเด่น],0),2),0)","v":0}]
[null,"18:30:00",{"$f":"IFERROR(INDEX(รายการชั้นเรียน[],MATCH(SUMPRODUCT((รายการชั้นเรียน[วัน]=ClassSchedule[[#Headers],[วันอาทิตย์]])*(ROUNDDOWN($B46,10)>=ROUNDDOWN(รายการชั้นเรียน[เวลาเริ่มต้น],10))*($B46<=รายการชั้นเรียน[เวลาสิ้นสุด]),รายการชั้นเรียน[โดดเด่น]),รายการชั้นเรียน[โดดเด่น],0),2),0)","v":0},{"$f":"IFERROR(INDEX(รายการชั้นเรียน[],MATCH(SUMPRODUCT((รายการชั้นเรียน[วัน]=ClassSchedule[[#Headers],[วันจันทร์]])*(ROUNDDOWN($B46,10)>=ROUNDDOWN(รายการชั้นเรียน[เวลาเริ่มต้น],10))*($B46<=รายการชั้นเรียน[เวลาสิ้นสุด]),รายการชั้นเรียน[โดดเด่น]),รายการชั้นเรียน[โดดเด่น],0),2),0)","v":0},{"$f":"IFERROR(INDEX(รายการชั้นเรียน[],MATCH(SUMPRODUCT((รายการชั้นเรียน[วัน]=ClassSchedule[[#Headers],[อังคาร]])*(ROUNDDOWN($B46,10)>=ROUNDDOWN(รายการชั้นเรียน[เวลาเริ่มต้น],10))*($B46<=รายการชั้นเรียน[เวลาสิ้นสุด]),รายการชั้นเรียน[โดดเด่น]),รายการชั้นเรียน[โดดเด่น],0),2),0)","v":0},{"$f":"IFERROR(INDEX(รายการชั้นเรียน[],MATCH(SUMPRODUCT((รายการชั้นเรียน[วัน]=ClassSchedule[[#Headers],[วันพุธ]])*(ROUNDDOWN($B46,10)>=ROUNDDOWN(รายการชั้นเรียน[เวลาเริ่มต้น],10))*($B46<=รายการชั้นเรียน[เวลาสิ้นสุด]),รายการชั้นเรียน[โดดเด่น]),รายการชั้นเรียน[โดดเด่น],0),2),0)","v":0},{"$f":"IFERROR(INDEX(รายการชั้นเรียน[],MATCH(SUMPRODUCT((รายการชั้นเรียน[วัน]=ClassSchedule[[#Headers],[วันพฤหัสบดี]])*(ROUNDDOWN($B46,10)>=ROUNDDOWN(รายการชั้นเรียน[เวลาเริ่มต้น],10))*($B46<=รายการชั้นเรียน[เวลาสิ้นสุด]),รายการชั้นเรียน[โดดเด่น]),รายการชั้นเรียน[โดดเด่น],0),2),0)","v":0},{"$f":"IFERROR(INDEX(รายการชั้นเรียน[],MATCH(SUMPRODUCT((รายการชั้นเรียน[วัน]=ClassSchedule[[#Headers],[วันศุกร์]])*(ROUNDDOWN($B46,10)>=ROUNDDOWN(รายการชั้นเรียน[เวลาเริ่มต้น],10))*($B46<=รายการชั้นเรียน[เวลาสิ้นสุด]),รายการชั้นเรียน[โดดเด่น]),รายการชั้นเรียน[โดดเด่น],0),2),0)","v":0},{"$f":"IFERROR(INDEX(รายการชั้นเรียน[],MATCH(SUMPRODUCT((รายการชั้นเรียน[วัน]=ClassSchedule[[#Headers],[วันเสาร์]])*(ROUNDDOWN($B46,10)>=ROUNDDOWN(รายการชั้นเรียน[เวลาเริ่มต้น],10))*($B46<=รายการชั้นเรียน[เวลาสิ้นสุด]),รายการชั้นเรียน[โดดเด่น]),รายการชั้นเรียน[โดดเด่น],0),2),0)","v":0}]
[null,"18:45:00",{"$f":"IFERROR(INDEX(รายการชั้นเรียน[],MATCH(SUMPRODUCT((รายการชั้นเรียน[วัน]=ClassSchedule[[#Headers],[วันอาทิตย์]])*(ROUNDDOWN($B47,10)>=ROUNDDOWN(รายการชั้นเรียน[เวลาเริ่มต้น],10))*($B47<=รายการชั้นเรียน[เวลาสิ้นสุด]),รายการชั้นเรียน[โดดเด่น]),รายการชั้นเรียน[โดดเด่น],0),2),0)","v":0},{"$f":"IFERROR(INDEX(รายการชั้นเรียน[],MATCH(SUMPRODUCT((รายการชั้นเรียน[วัน]=ClassSchedule[[#Headers],[วันจันทร์]])*(ROUNDDOWN($B47,10)>=ROUNDDOWN(รายการชั้นเรียน[เวลาเริ่มต้น],10))*($B47<=รายการชั้นเรียน[เวลาสิ้นสุด]),รายการชั้นเรียน[โดดเด่น]),รายการชั้นเรียน[โดดเด่น],0),2),0)","v":0},{"$f":"IFERROR(INDEX(รายการชั้นเรียน[],MATCH(SUMPRODUCT((รายการชั้นเรียน[วัน]=ClassSchedule[[#Headers],[อังคาร]])*(ROUNDDOWN($B47,10)>=ROUNDDOWN(รายการชั้นเรียน[เวลาเริ่มต้น],10))*($B47<=รายการชั้นเรียน[เวลาสิ้นสุด]),รายการชั้นเรียน[โดดเด่น]),รายการชั้นเรียน[โดดเด่น],0),2),0)","v":0},{"$f":"IFERROR(INDEX(รายการชั้นเรียน[],MATCH(SUMPRODUCT((รายการชั้นเรียน[วัน]=ClassSchedule[[#Headers],[วันพุธ]])*(ROUNDDOWN($B47,10)>=ROUNDDOWN(รายการชั้นเรียน[เวลาเริ่มต้น],10))*($B47<=รายการชั้นเรียน[เวลาสิ้นสุด]),รายการชั้นเรียน[โดดเด่น]),รายการชั้นเรียน[โดดเด่น],0),2),0)","v":0},{"$f":"IFERROR(INDEX(รายการชั้นเรียน[],MATCH(SUMPRODUCT((รายการชั้นเรียน[วัน]=ClassSchedule[[#Headers],[วันพฤหัสบดี]])*(ROUNDDOWN($B47,10)>=ROUNDDOWN(รายการชั้นเรียน[เวลาเริ่มต้น],10))*($B47<=รายการชั้นเรียน[เวลาสิ้นสุด]),รายการชั้นเรียน[โดดเด่น]),รายการชั้นเรียน[โดดเด่น],0),2),0)","v":0},{"$f":"IFERROR(INDEX(รายการชั้นเรียน[],MATCH(SUMPRODUCT((รายการชั้นเรียน[วัน]=ClassSchedule[[#Headers],[วันศุกร์]])*(ROUNDDOWN($B47,10)>=ROUNDDOWN(รายการชั้นเรียน[เวลาเริ่มต้น],10))*($B47<=รายการชั้นเรียน[เวลาสิ้นสุด]),รายการชั้นเรียน[โดดเด่น]),รายการชั้นเรียน[โดดเด่น],0),2),0)","v":0},{"$f":"IFERROR(INDEX(รายการชั้นเรียน[],MATCH(SUMPRODUCT((รายการชั้นเรียน[วัน]=ClassSchedule[[#Headers],[วันเสาร์]])*(ROUNDDOWN($B47,10)>=ROUNDDOWN(รายการชั้นเรียน[เวลาเริ่มต้น],10))*($B47<=รายการชั้นเรียน[เวลาสิ้นสุด]),รายการชั้นเรียน[โดดเด่น]),รายการชั้นเรียน[โดดเด่น],0),2),0)","v":0}]
[null,"19:00:00",{"$f":"IFERROR(INDEX(รายการชั้นเรียน[],MATCH(SUMPRODUCT((รายการชั้นเรียน[วัน]=ClassSchedule[[#Headers],[วันอาทิตย์]])*(ROUNDDOWN($B48,10)>=ROUNDDOWN(รายการชั้นเรียน[เวลาเริ่มต้น],10))*($B48<=รายการชั้นเรียน[เวลาสิ้นสุด]),รายการชั้นเรียน[โดดเด่น]),รายการชั้นเรียน[โดดเด่น],0),2),0)","v":0},{"$f":"IFERROR(INDEX(รายการชั้นเรียน[],MATCH(SUMPRODUCT((รายการชั้นเรียน[วัน]=ClassSchedule[[#Headers],[วันจันทร์]])*(ROUNDDOWN($B48,10)>=ROUNDDOWN(รายการชั้นเรียน[เวลาเริ่มต้น],10))*($B48<=รายการชั้นเรียน[เวลาสิ้นสุด]),รายการชั้นเรียน[โดดเด่น]),รายการชั้นเรียน[โดดเด่น],0),2),0)","v":0},{"$f":"IFERROR(INDEX(รายการชั้นเรียน[],MATCH(SUMPRODUCT((รายการชั้นเรียน[วัน]=ClassSchedule[[#Headers],[อังคาร]])*(ROUNDDOWN($B48,10)>=ROUNDDOWN(รายการชั้นเรียน[เวลาเริ่มต้น],10))*($B48<=รายการชั้นเรียน[เวลาสิ้นสุด]),รายการชั้นเรียน[โดดเด่น]),รายการชั้นเรียน[โดดเด่น],0),2),0)","v":0},{"$f":"IFERROR(INDEX(รายการชั้นเรียน[],MATCH(SUMPRODUCT((รายการชั้นเรียน[วัน]=ClassSchedule[[#Headers],[วันพุธ]])*(ROUNDDOWN($B48,10)>=ROUNDDOWN(รายการชั้นเรียน[เวลาเริ่มต้น],10))*($B48<=รายการชั้นเรียน[เวลาสิ้นสุด]),รายการชั้นเรียน[โดดเด่น]),รายการชั้นเรียน[โดดเด่น],0),2),0)","v":0},{"$f":"IFERROR(INDEX(รายการชั้นเรียน[],MATCH(SUMPRODUCT((รายการชั้นเรียน[วัน]=ClassSchedule[[#Headers],[วันพฤหัสบดี]])*(ROUNDDOWN($B48,10)>=ROUNDDOWN(รายการชั้นเรียน[เวลาเริ่มต้น],10))*($B48<=รายการชั้นเรียน[เวลาสิ้นสุด]),รายการชั้นเรียน[โดดเด่น]),รายการชั้นเรียน[โดดเด่น],0),2),0)","v":0},{"$f":"IFERROR(INDEX(รายการชั้นเรียน[],MATCH(SUMPRODUCT((รายการชั้นเรียน[วัน]=ClassSchedule[[#Headers],[วันศุกร์]])*(ROUNDDOWN($B48,10)>=ROUNDDOWN(รายการชั้นเรียน[เวลาเริ่มต้น],10))*($B48<=รายการชั้นเรียน[เวลาสิ้นสุด]),รายการชั้นเรียน[โดดเด่น]),รายการชั้นเรียน[โดดเด่น],0),2),0)","v":0},{"$f":"IFERROR(INDEX(รายการชั้นเรียน[],MATCH(SUMPRODUCT((รายการชั้นเรียน[วัน]=ClassSchedule[[#Headers],[วันเสาร์]])*(ROUNDDOWN($B48,10)>=ROUNDDOWN(รายการชั้นเรียน[เวลาเริ่มต้น],10))*($B48<=รายการชั้นเรียน[เวลาสิ้นสุด]),รายการชั้นเรียน[โดดเด่น]),รายการชั้นเรียน[โดดเด่น],0),2),0)","v":0}]
[null,"19:15:00",{"$f":"IFERROR(INDEX(รายการชั้นเรียน[],MATCH(SUMPRODUCT((รายการชั้นเรียน[วัน]=ClassSchedule[[#Headers],[วันอาทิตย์]])*(ROUNDDOWN($B49,10)>=ROUNDDOWN(รายการชั้นเรียน[เวลาเริ่มต้น],10))*($B49<=รายการชั้นเรียน[เวลาสิ้นสุด]),รายการชั้นเรียน[โดดเด่น]),รายการชั้นเรียน[โดดเด่น],0),2),0)","v":0},{"$f":"IFERROR(INDEX(รายการชั้นเรียน[],MATCH(SUMPRODUCT((รายการชั้นเรียน[วัน]=ClassSchedule[[#Headers],[วันจันทร์]])*(ROUNDDOWN($B49,10)>=ROUNDDOWN(รายการชั้นเรียน[เวลาเริ่มต้น],10))*($B49<=รายการชั้นเรียน[เวลาสิ้นสุด]),รายการชั้นเรียน[โดดเด่น]),รายการชั้นเรียน[โดดเด่น],0),2),0)","v":0},{"$f":"IFERROR(INDEX(รายการชั้นเรียน[],MATCH(SUMPRODUCT((รายการชั้นเรียน[วัน]=ClassSchedule[[#Headers],[อังคาร]])*(ROUNDDOWN($B49,10)>=ROUNDDOWN(รายการชั้นเรียน[เวลาเริ่มต้น],10))*($B49<=รายการชั้นเรียน[เวลาสิ้นสุด]),รายการชั้นเรียน[โดดเด่น]),รายการชั้นเรียน[โดดเด่น],0),2),0)","v":0},{"$f":"IFERROR(INDEX(รายการชั้นเรียน[],MATCH(SUMPRODUCT((รายการชั้นเรียน[วัน]=ClassSchedule[[#Headers],[วันพุธ]])*(ROUNDDOWN($B49,10)>=ROUNDDOWN(รายการชั้นเรียน[เวลาเริ่มต้น],10))*($B49<=รายการชั้นเรียน[เวลาสิ้นสุด]),รายการชั้นเรียน[โดดเด่น]),รายการชั้นเรียน[โดดเด่น],0),2),0)","v":0},{"$f":"IFERROR(INDEX(รายการชั้นเรียน[],MATCH(SUMPRODUCT((รายการชั้นเรียน[วัน]=ClassSchedule[[#Headers],[วันพฤหัสบดี]])*(ROUNDDOWN($B49,10)>=ROUNDDOWN(รายการชั้นเรียน[เวลาเริ่มต้น],10))*($B49<=รายการชั้นเรียน[เวลาสิ้นสุด]),รายการชั้นเรียน[โดดเด่น]),รายการชั้นเรียน[โดดเด่น],0),2),0)","v":0},{"$f":"IFERROR(INDEX(รายการชั้นเรียน[],MATCH(SUMPRODUCT((รายการชั้นเรียน[วัน]=ClassSchedule[[#Headers],[วันศุกร์]])*(ROUNDDOWN($B49,10)>=ROUNDDOWN(รายการชั้นเรียน[เวลาเริ่มต้น],10))*($B49<=รายการชั้นเรียน[เวลาสิ้นสุด]),รายการชั้นเรียน[โดดเด่น]),รายการชั้นเรียน[โดดเด่น],0),2),0)","v":0},{"$f":"IFERROR(INDEX(รายการชั้นเรียน[],MATCH(SUMPRODUCT((รายการชั้นเรียน[วัน]=ClassSchedule[[#Headers],[วันเสาร์]])*(ROUNDDOWN($B49,10)>=ROUNDDOWN(รายการชั้นเรียน[เวลาเริ่มต้น],10))*($B49<=รายการชั้นเรียน[เวลาสิ้นสุด]),รายการชั้นเรียน[โดดเด่น]),รายการชั้นเรียน[โดดเด่น],0),2),0)","v":0}]
[null,"19:30:00",{"$f":"IFERROR(INDEX(รายการชั้นเรียน[],MATCH(SUMPRODUCT((รายการชั้นเรียน[วัน]=ClassSchedule[[#Headers],[วันอาทิตย์]])*(ROUNDDOWN($B50,10)>=ROUNDDOWN(รายการชั้นเรียน[เวลาเริ่มต้น],10))*($B50<=รายการชั้นเรียน[เวลาสิ้นสุด]),รายการชั้นเรียน[โดดเด่น]),รายการชั้นเรียน[โดดเด่น],0),2),0)","v":0},{"$f":"IFERROR(INDEX(รายการชั้นเรียน[],MATCH(SUMPRODUCT((รายการชั้นเรียน[วัน]=ClassSchedule[[#Headers],[วันจันทร์]])*(ROUNDDOWN($B50,10)>=ROUNDDOWN(รายการชั้นเรียน[เวลาเริ่มต้น],10))*($B50<=รายการชั้นเรียน[เวลาสิ้นสุด]),รายการชั้นเรียน[โดดเด่น]),รายการชั้นเรียน[โดดเด่น],0),2),0)","v":0},{"$f":"IFERROR(INDEX(รายการชั้นเรียน[],MATCH(SUMPRODUCT((รายการชั้นเรียน[วัน]=ClassSchedule[[#Headers],[อังคาร]])*(ROUNDDOWN($B50,10)>=ROUNDDOWN(รายการชั้นเรียน[เวลาเริ่มต้น],10))*($B50<=รายการชั้นเรียน[เวลาสิ้นสุด]),รายการชั้นเรียน[โดดเด่น]),รายการชั้นเรียน[โดดเด่น],0),2),0)","v":0},{"$f":"IFERROR(INDEX(รายการชั้นเรียน[],MATCH(SUMPRODUCT((รายการชั้นเรียน[วัน]=ClassSchedule[[#Headers],[วันพุธ]])*(ROUNDDOWN($B50,10)>=ROUNDDOWN(รายการชั้นเรียน[เวลาเริ่มต้น],10))*($B50<=รายการชั้นเรียน[เวลาสิ้นสุด]),รายการชั้นเรียน[โดดเด่น]),รายการชั้นเรียน[โดดเด่น],0),2),0)","v":0},{"$f":"IFERROR(INDEX(รายการชั้นเรียน[],MATCH(SUMPRODUCT((รายการชั้นเรียน[วัน]=ClassSchedule[[#Headers],[วันพฤหัสบดี]])*(ROUNDDOWN($B50,10)>=ROUNDDOWN(รายการชั้นเรียน[เวลาเริ่มต้น],10))*($B50<=รายการชั้นเรียน[เวลาสิ้นสุด]),รายการชั้นเรียน[โดดเด่น]),รายการชั้นเรียน[โดดเด่น],0),2),0)","v":0},{"$f":"IFERROR(INDEX(รายการชั้นเรียน[],MATCH(SUMPRODUCT((รายการชั้นเรียน[วัน]=ClassSchedule[[#Headers],[วันศุกร์]])*(ROUNDDOWN($B50,10)>=ROUNDDOWN(รายการชั้นเรียน[เวลาเริ่มต้น],10))*($B50<=รายการชั้นเรียน[เวลาสิ้นสุด]),รายการชั้นเรียน[โดดเด่น]),รายการชั้นเรียน[โดดเด่น],0),2),0)","v":0},{"$f":"IFERROR(INDEX(รายการชั้นเรียน[],MATCH(SUMPRODUCT((รายการชั้นเรียน[วัน]=ClassSchedule[[#Headers],[วันเสาร์]])*(ROUNDDOWN($B50,10)>=ROUNDDOWN(รายการชั้นเรียน[เวลาเริ่มต้น],10))*($B50<=รายการชั้นเรียน[เวลาสิ้นสุด]),รายการชั้นเรียน[โดดเด่น]),รายการชั้นเรียน[โดดเด่น],0),2),0)","v":0}]
[null,"19:45:00",{"$f":"IFERROR(INDEX(รายการชั้นเรียน[],MATCH(SUMPRODUCT((รายการชั้นเรียน[วัน]=ClassSchedule[[#Headers],[วันอาทิตย์]])*(ROUNDDOWN($B51,10)>=ROUNDDOWN(รายการชั้นเรียน[เวลาเริ่มต้น],10))*($B51<=รายการชั้นเรียน[เวลาสิ้นสุด]),รายการชั้นเรียน[โดดเด่น]),รายการชั้นเรียน[โดดเด่น],0),2),0)","v":0},{"$f":"IFERROR(INDEX(รายการชั้นเรียน[],MATCH(SUMPRODUCT((รายการชั้นเรียน[วัน]=ClassSchedule[[#Headers],[วันจันทร์]])*(ROUNDDOWN($B51,10)>=ROUNDDOWN(รายการชั้นเรียน[เวลาเริ่มต้น],10))*($B51<=รายการชั้นเรียน[เวลาสิ้นสุด]),รายการชั้นเรียน[โดดเด่น]),รายการชั้นเรียน[โดดเด่น],0),2),0)","v":0},{"$f":"IFERROR(INDEX(รายการชั้นเรียน[],MATCH(SUMPRODUCT((รายการชั้นเรียน[วัน]=ClassSchedule[[#Headers],[อังคาร]])*(ROUNDDOWN($B51,10)>=ROUNDDOWN(รายการชั้นเรียน[เวลาเริ่มต้น],10))*($B51<=รายการชั้นเรียน[เวลาสิ้นสุด]),รายการชั้นเรียน[โดดเด่น]),รายการชั้นเรียน[โดดเด่น],0),2),0)","v":0},{"$f":"IFERROR(INDEX(รายการชั้นเรียน[],MATCH(SUMPRODUCT((รายการชั้นเรียน[วัน]=ClassSchedule[[#Headers],[วันพุธ]])*(ROUNDDOWN($B51,10)>=ROUNDDOWN(รายการชั้นเรียน[เวลาเริ่มต้น],10))*($B51<=รายการชั้นเรียน[เวลาสิ้นสุด]),รายการชั้นเรียน[โดดเด่น]),รายการชั้นเรียน[โดดเด่น],0),2),0)","v":0},{"$f":"IFERROR(INDEX(รายการชั้นเรียน[],MATCH(SUMPRODUCT((รายการชั้นเรียน[วัน]=ClassSchedule[[#Headers],[วันพฤหัสบดี]])*(ROUNDDOWN($B51,10)>=ROUNDDOWN(รายการชั้นเรียน[เวลาเริ่มต้น],10))*($B51<=รายการชั้นเรียน[เวลาสิ้นสุด]),รายการชั้นเรียน[โดดเด่น]),รายการชั้นเรียน[โดดเด่น],0),2),0)","v":0},{"$f":"IFERROR(INDEX(รายการชั้นเรียน[],MATCH(SUMPRODUCT((รายการชั้นเรียน[วัน]=ClassSchedule[[#Headers],[วันศุกร์]])*(ROUNDDOWN($B51,10)>=ROUNDDOWN(รายการชั้นเรียน[เวลาเริ่มต้น],10))*($B51<=รายการชั้นเรียน[เวลาสิ้นสุด]),รายการชั้นเรียน[โดดเด่น]),รายการชั้นเรียน[โดดเด่น],0),2),0)","v":0},{"$f":"IFERROR(INDEX(รายการชั้นเรียน[],MATCH(SUMPRODUCT((รายการชั้นเรียน[วัน]=ClassSchedule[[#Headers],[วันเสาร์]])*(ROUNDDOWN($B51,10)>=ROUNDDOWN(รายการชั้นเรียน[เวลาเริ่มต้น],10))*($B51<=รายการชั้นเรียน[เวลาสิ้นสุด]),รายการชั้นเรียน[โดดเด่น]),รายการชั้นเรียน[โดดเด่น],0),2),0)","v":0}]
[null,"20:00:00",{"$f":"IFERROR(INDEX(รายการชั้นเรียน[],MATCH(SUMPRODUCT((รายการชั้นเรียน[วัน]=ClassSchedule[[#Headers],[วันอาทิตย์]])*(ROUNDDOWN($B52,10)>=ROUNDDOWN(รายการชั้นเรียน[เวลาเริ่มต้น],10))*($B52<=รายการชั้นเรียน[เวลาสิ้นสุด]),รายการชั้นเรียน[โดดเด่น]),รายการชั้นเรียน[โดดเด่น],0),2),0)","v":0},{"$f":"IFERROR(INDEX(รายการชั้นเรียน[],MATCH(SUMPRODUCT((รายการชั้นเรียน[วัน]=ClassSchedule[[#Headers],[วันจันทร์]])*(ROUNDDOWN($B52,10)>=ROUNDDOWN(รายการชั้นเรียน[เวลาเริ่มต้น],10))*($B52<=รายการชั้นเรียน[เวลาสิ้นสุด]),รายการชั้นเรียน[โดดเด่น]),รายการชั้นเรียน[โดดเด่น],0),2),0)","v":0},{"$f":"IFERROR(INDEX(รายการชั้นเรียน[],MATCH(SUMPRODUCT((รายการชั้นเรียน[วัน]=ClassSchedule[[#Headers],[อังคาร]])*(ROUNDDOWN($B52,10)>=ROUNDDOWN(รายการชั้นเรียน[เวลาเริ่มต้น],10))*($B52<=รายการชั้นเรียน[เวลาสิ้นสุด]),รายการชั้นเรียน[โดดเด่น]),รายการชั้นเรียน[โดดเด่น],0),2),0)","v":0},{"$f":"IFERROR(INDEX(รายการชั้นเรียน[],MATCH(SUMPRODUCT((รายการชั้นเรียน[วัน]=ClassSchedule[[#Headers],[วันพุธ]])*(ROUNDDOWN($B52,10)>=ROUNDDOWN(รายการชั้นเรียน[เวลาเริ่มต้น],10))*($B52<=รายการชั้นเรียน[เวลาสิ้นสุด]),รายการชั้นเรียน[โดดเด่น]),รายการชั้นเรียน[โดดเด่น],0),2),0)","v":0},{"$f":"IFERROR(INDEX(รายการชั้นเรียน[],MATCH(SUMPRODUCT((รายการชั้นเรียน[วัน]=ClassSchedule[[#Headers],[วันพฤหัสบดี]])*(ROUNDDOWN($B52,10)>=ROUNDDOWN(รายการชั้นเรียน[เวลาเริ่มต้น],10))*($B52<=รายการชั้นเรียน[เวลาสิ้นสุด]),รายการชั้นเรียน[โดดเด่น]),รายการชั้นเรียน[โดดเด่น],0),2),0)","v":0},{"$f":"IFERROR(INDEX(รายการชั้นเรียน[],MATCH(SUMPRODUCT((รายการชั้นเรียน[วัน]=ClassSchedule[[#Headers],[วันศุกร์]])*(ROUNDDOWN($B52,10)>=ROUNDDOWN(รายการชั้นเรียน[เวลาเริ่มต้น],10))*($B52<=รายการชั้นเรียน[เวลาสิ้นสุด]),รายการชั้นเรียน[โดดเด่น]),รายการชั้นเรียน[โดดเด่น],0),2),0)","v":0},{"$f":"IFERROR(INDEX(รายการชั้นเรียน[],MATCH(SUMPRODUCT((รายการชั้นเรียน[วัน]=ClassSchedule[[#Headers],[วันเสาร์]])*(ROUNDDOWN($B52,10)>=ROUNDDOWN(รายการชั้นเรียน[เวลาเริ่มต้น],10))*($B52<=รายการชั้นเรียน[เวลาสิ้นสุด]),รายการชั้นเรียน[โดดเด่น]),รายการชั้นเรียน[โดดเด่น],0),2),0)","v":0}]
[null,"20:15:00",{"$f":"IFERROR(INDEX(รายการชั้นเรียน[],MATCH(SUMPRODUCT((รายการชั้นเรียน[วัน]=ClassSchedule[[#Headers],[วันอาทิตย์]])*(ROUNDDOWN($B53,10)>=ROUNDDOWN(รายการชั้นเรียน[เวลาเริ่มต้น],10))*($B53<=รายการชั้นเรียน[เวลาสิ้นสุด]),รายการชั้นเรียน[โดดเด่น]),รายการชั้นเรียน[โดดเด่น],0),2),0)","v":0},{"$f":"IFERROR(INDEX(รายการชั้นเรียน[],MATCH(SUMPRODUCT((รายการชั้นเรียน[วัน]=ClassSchedule[[#Headers],[วันจันทร์]])*(ROUNDDOWN($B53,10)>=ROUNDDOWN(รายการชั้นเรียน[เวลาเริ่มต้น],10))*($B53<=รายการชั้นเรียน[เวลาสิ้นสุด]),รายการชั้นเรียน[โดดเด่น]),รายการชั้นเรียน[โดดเด่น],0),2),0)","v":0},{"$f":"IFERROR(INDEX(รายการชั้นเรียน[],MATCH(SUMPRODUCT((รายการชั้นเรียน[วัน]=ClassSchedule[[#Headers],[อังคาร]])*(ROUNDDOWN($B53,10)>=ROUNDDOWN(รายการชั้นเรียน[เวลาเริ่มต้น],10))*($B53<=รายการชั้นเรียน[เวลาสิ้นสุด]),รายการชั้นเรียน[โดดเด่น]),รายการชั้นเรียน[โดดเด่น],0),2),0)","v":0},{"$f":"IFERROR(INDEX(รายการชั้นเรียน[],MATCH(SUMPRODUCT((รายการชั้นเรียน[วัน]=ClassSchedule[[#Headers],[วันพุธ]])*(ROUNDDOWN($B53,10)>=ROUNDDOWN(รายการชั้นเรียน[เวลาเริ่มต้น],10))*($B53<=รายการชั้นเรียน[เวลาสิ้นสุด]),รายการชั้นเรียน[โดดเด่น]),รายการชั้นเรียน[โดดเด่น],0),2),0)","v":0},{"$f":"IFERROR(INDEX(รายการชั้นเรียน[],MATCH(SUMPRODUCT((รายการชั้นเรียน[วัน]=ClassSchedule[[#Headers],[วันพฤหัสบดี]])*(ROUNDDOWN($B53,10)>=ROUNDDOWN(รายการชั้นเรียน[เวลาเริ่มต้น],10))*($B53<=รายการชั้นเรียน[เวลาสิ้นสุด]),รายการชั้นเรียน[โดดเด่น]),รายการชั้นเรียน[โดดเด่น],0),2),0)","v":0},{"$f":"IFERROR(INDEX(รายการชั้นเรียน[],MATCH(SUMPRODUCT((รายการชั้นเรียน[วัน]=ClassSchedule[[#Headers],[วันศุกร์]])*(ROUNDDOWN($B53,10)>=ROUNDDOWN(รายการชั้นเรียน[เวลาเริ่มต้น],10))*($B53<=รายการชั้นเรียน[เวลาสิ้นสุด]),รายการชั้นเรียน[โดดเด่น]),รายการชั้นเรียน[โดดเด่น],0),2),0)","v":0},{"$f":"IFERROR(INDEX(รายการชั้นเรียน[],MATCH(SUMPRODUCT((รายการชั้นเรียน[วัน]=ClassSchedule[[#Headers],[วันเสาร์]])*(ROUNDDOWN($B53,10)>=ROUNDDOWN(รายการชั้นเรียน[เวลาเริ่มต้น],10))*($B53<=รายการชั้นเรียน[เวลาสิ้นสุด]),รายการชั้นเรียน[โดดเด่น]),รายการชั้นเรียน[โดดเด่น],0),2),0)","v":0}]
[null,"20:30:00",{"$f":"IFERROR(INDEX(รายการชั้นเรียน[],MATCH(SUMPRODUCT((รายการชั้นเรียน[วัน]=ClassSchedule[[#Headers],[วันอาทิตย์]])*(ROUNDDOWN($B54,10)>=ROUNDDOWN(รายการชั้นเรียน[เวลาเริ่มต้น],10))*($B54<=รายการชั้นเรียน[เวลาสิ้นสุด]),รายการชั้นเรียน[โดดเด่น]),รายการชั้นเรียน[โดดเด่น],0),2),0)","v":0},{"$f":"IFERROR(INDEX(รายการชั้นเรียน[],MATCH(SUMPRODUCT((รายการชั้นเรียน[วัน]=ClassSchedule[[#Headers],[วันจันทร์]])*(ROUNDDOWN($B54,10)>=ROUNDDOWN(รายการชั้นเรียน[เวลาเริ่มต้น],10))*($B54<=รายการชั้นเรียน[เวลาสิ้นสุด]),รายการชั้นเรียน[โดดเด่น]),รายการชั้นเรียน[โดดเด่น],0),2),0)","v":0},{"$f":"IFERROR(INDEX(รายการชั้นเรียน[],MATCH(SUMPRODUCT((รายการชั้นเรียน[วัน]=ClassSchedule[[#Headers],[อังคาร]])*(ROUNDDOWN($B54,10)>=ROUNDDOWN(รายการชั้นเรียน[เวลาเริ่มต้น],10))*($B54<=รายการชั้นเรียน[เวลาสิ้นสุด]),รายการชั้นเรียน[โดดเด่น]),รายการชั้นเรียน[โดดเด่น],0),2),0)","v":0},{"$f":"IFERROR(INDEX(รายการชั้นเรียน[],MATCH(SUMPRODUCT((รายการชั้นเรียน[วัน]=ClassSchedule[[#Headers],[วันพุธ]])*(ROUNDDOWN($B54,10)>=ROUNDDOWN(รายการชั้นเรียน[เวลาเริ่มต้น],10))*($B54<=รายการชั้นเรียน[เวลาสิ้นสุด]),รายการชั้นเรียน[โดดเด่น]),รายการชั้นเรียน[โดดเด่น],0),2),0)","v":0},{"$f":"IFERROR(INDEX(รายการชั้นเรียน[],MATCH(SUMPRODUCT((รายการชั้นเรียน[วัน]=ClassSchedule[[#Headers],[วันพฤหัสบดี]])*(ROUNDDOWN($B54,10)>=ROUNDDOWN(รายการชั้นเรียน[เวลาเริ่มต้น],10))*($B54<=รายการชั้นเรียน[เวลาสิ้นสุด]),รายการชั้นเรียน[โดดเด่น]),รายการชั้นเรียน[โดดเด่น],0),2),0)","v":0},{"$f":"IFERROR(INDEX(รายการชั้นเรียน[],MATCH(SUMPRODUCT((รายการชั้นเรียน[วัน]=ClassSchedule[[#Headers],[วันศุกร์]])*(ROUNDDOWN($B54,10)>=ROUNDDOWN(รายการชั้นเรียน[เวลาเริ่มต้น],10))*($B54<=รายการชั้นเรียน[เวลาสิ้นสุด]),รายการชั้นเรียน[โดดเด่น]),รายการชั้นเรียน[โดดเด่น],0),2),0)","v":0},{"$f":"IFERROR(INDEX(รายการชั้นเรียน[],MATCH(SUMPRODUCT((รายการชั้นเรียน[วัน]=ClassSchedule[[#Headers],[วันเสาร์]])*(ROUNDDOWN($B54,10)>=ROUNDDOWN(รายการชั้นเรียน[เวลาเริ่มต้น],10))*($B54<=รายการชั้นเรียน[เวลาสิ้นสุด]),รายการชั้นเรียน[โดดเด่น]),รายการชั้นเรียน[โดดเด่น],0),2),0)","v":0}]
[null,"20:45:00",{"$f":"IFERROR(INDEX(รายการชั้นเรียน[],MATCH(SUMPRODUCT((รายการชั้นเรียน[วัน]=ClassSchedule[[#Headers],[วันอาทิตย์]])*(ROUNDDOWN($B55,10)>=ROUNDDOWN(รายการชั้นเรียน[เวลาเริ่มต้น],10))*($B55<=รายการชั้นเรียน[เวลาสิ้นสุด]),รายการชั้นเรียน[โดดเด่น]),รายการชั้นเรียน[โดดเด่น],0),2),0)","v":0},{"$f":"IFERROR(INDEX(รายการชั้นเรียน[],MATCH(SUMPRODUCT((รายการชั้นเรียน[วัน]=ClassSchedule[[#Headers],[วันจันทร์]])*(ROUNDDOWN($B55,10)>=ROUNDDOWN(รายการชั้นเรียน[เวลาเริ่มต้น],10))*($B55<=รายการชั้นเรียน[เวลาสิ้นสุด]),รายการชั้นเรียน[โดดเด่น]),รายการชั้นเรียน[โดดเด่น],0),2),0)","v":0},{"$f":"IFERROR(INDEX(รายการชั้นเรียน[],MATCH(SUMPRODUCT((รายการชั้นเรียน[วัน]=ClassSchedule[[#Headers],[อังคาร]])*(ROUNDDOWN($B55,10)>=ROUNDDOWN(รายการชั้นเรียน[เวลาเริ่มต้น],10))*($B55<=รายการชั้นเรียน[เวลาสิ้นสุด]),รายการชั้นเรียน[โดดเด่น]),รายการชั้นเรียน[โดดเด่น],0),2),0)","v":0},{"$f":"IFERROR(INDEX(รายการชั้นเรียน[],MATCH(SUMPRODUCT((รายการชั้นเรียน[วัน]=ClassSchedule[[#Headers],[วันพุธ]])*(ROUNDDOWN($B55,10)>=ROUNDDOWN(รายการชั้นเรียน[เวลาเริ่มต้น],10))*($B55<=รายการชั้นเรียน[เวลาสิ้นสุด]),รายการชั้นเรียน[โดดเด่น]),รายการชั้นเรียน[โดดเด่น],0),2),0)","v":0},{"$f":"IFERROR(INDEX(รายการชั้นเรียน[],MATCH(SUMPRODUCT((รายการชั้นเรียน[วัน]=ClassSchedule[[#Headers],[วันพฤหัสบดี]])*(ROUNDDOWN($B55,10)>=ROUNDDOWN(รายการชั้นเรียน[เวลาเริ่มต้น],10))*($B55<=รายการชั้นเรียน[เวลาสิ้นสุด]),รายการชั้นเรียน[โดดเด่น]),รายการชั้นเรียน[โดดเด่น],0),2),0)","v":0},{"$f":"IFERROR(INDEX(รายการชั้นเรียน[],MATCH(SUMPRODUCT((รายการชั้นเรียน[วัน]=ClassSchedule[[#Headers],[วันศุกร์]])*(ROUNDDOWN($B55,10)>=ROUNDDOWN(รายการชั้นเรียน[เวลาเริ่มต้น],10))*($B55<=รายการชั้นเรียน[เวลาสิ้นสุด]),รายการชั้นเรียน[โดดเด่น]),รายการชั้นเรียน[โดดเด่น],0),2),0)","v":0},{"$f":"IFERROR(INDEX(รายการชั้นเรียน[],MATCH(SUMPRODUCT((รายการชั้นเรียน[วัน]=ClassSchedule[[#Headers],[วันเสาร์]])*(ROUNDDOWN($B55,10)>=ROUNDDOWN(รายการชั้นเรียน[เวลาเริ่มต้น],10))*($B55<=รายการชั้นเรียน[เวลาสิ้นสุด]),รายการชั้นเรียน[โดดเด่น]),รายการชั้นเรียน[โดดเด่น],0),2),0)","v":0}]
[null,"21:00:00",{"$f":"IFERROR(INDEX(รายการชั้นเรียน[],MATCH(SUMPRODUCT((รายการชั้นเรียน[วัน]=ClassSchedule[[#Headers],[วันอาทิตย์]])*(ROUNDDOWN($B56,10)>=ROUNDDOWN(รายการชั้นเรียน[เวลาเริ่มต้น],10))*($B56<=รายการชั้นเรียน[เวลาสิ้นสุด]),รายการชั้นเรียน[โดดเด่น]),รายการชั้นเรียน[โดดเด่น],0),2),0)","v":0},{"$f":"IFERROR(INDEX(รายการชั้นเรียน[],MATCH(SUMPRODUCT((รายการชั้นเรียน[วัน]=ClassSchedule[[#Headers],[วันจันทร์]])*(ROUNDDOWN($B56,10)>=ROUNDDOWN(รายการชั้นเรียน[เวลาเริ่มต้น],10))*($B56<=รายการชั้นเรียน[เวลาสิ้นสุด]),รายการชั้นเรียน[โดดเด่น]),รายการชั้นเรียน[โดดเด่น],0),2),0)","v":0},{"$f":"IFERROR(INDEX(รายการชั้นเรียน[],MATCH(SUMPRODUCT((รายการชั้นเรียน[วัน]=ClassSchedule[[#Headers],[อังคาร]])*(ROUNDDOWN($B56,10)>=ROUNDDOWN(รายการชั้นเรียน[เวลาเริ่มต้น],10))*($B56<=รายการชั้นเรียน[เวลาสิ้นสุด]),รายการชั้นเรียน[โดดเด่น]),รายการชั้นเรียน[โดดเด่น],0),2),0)","v":0},{"$f":"IFERROR(INDEX(รายการชั้นเรียน[],MATCH(SUMPRODUCT((รายการชั้นเรียน[วัน]=ClassSchedule[[#Headers],[วันพุธ]])*(ROUNDDOWN($B56,10)>=ROUNDDOWN(รายการชั้นเรียน[เวลาเริ่มต้น],10))*($B56<=รายการชั้นเรียน[เวลาสิ้นสุด]),รายการชั้นเรียน[โดดเด่น]),รายการชั้นเรียน[โดดเด่น],0),2),0)","v":0},{"$f":"IFERROR(INDEX(รายการชั้นเรียน[],MATCH(SUMPRODUCT((รายการชั้นเรียน[วัน]=ClassSchedule[[#Headers],[วันพฤหัสบดี]])*(ROUNDDOWN($B56,10)>=ROUNDDOWN(รายการชั้นเรียน[เวลาเริ่มต้น],10))*($B56<=รายการชั้นเรียน[เวลาสิ้นสุด]),รายการชั้นเรียน[โดดเด่น]),รายการชั้นเรียน[โดดเด่น],0),2),0)","v":0},{"$f":"IFERROR(INDEX(รายการชั้นเรียน[],MATCH(SUMPRODUCT((รายการชั้นเรียน[วัน]=ClassSchedule[[#Headers],[วันศุกร์]])*(ROUNDDOWN($B56,10)>=ROUNDDOWN(รายการชั้นเรียน[เวลาเริ่มต้น],10))*($B56<=รายการชั้นเรียน[เวลาสิ้นสุด]),รายการชั้นเรียน[โดดเด่น]),รายการชั้นเรียน[โดดเด่น],0),2),0)","v":0},{"$f":"IFERROR(INDEX(รายการชั้นเรียน[],MATCH(SUMPRODUCT((รายการชั้นเรียน[วัน]=ClassSchedule[[#Headers],[วันเสาร์]])*(ROUNDDOWN($B56,10)>=ROUNDDOWN(รายการชั้นเรียน[เวลาเริ่มต้น],10))*($B56<=รายการชั้นเรียน[เวลาสิ้นสุด]),รายการชั้นเรียน[โดดเด่น]),รายการชั้นเรียน[โดดเด่น],0),2),0)","v":0}]

{"sheet":"รายการชั้นเรียน","index":1,"n_rows":10,"n_cols":8,"rows_kept":10,"merged":[[0,1,0,5],[0,6,0,7]]}
[null,"รายการชั้นเรียน",{"$nulls":4},"กำหนดการของชั้นเรียน"]
[null,"ชั้นเรียน","รหัส","วัน","ตำแหน่งที่ตั้ง","เวลาเริ่มต้น","เวลาสิ้นสุด","โดดเด่น"]
[null,"การเขียนด้านเทคนิค","WR-121","วันจันทร์","อาคาร A","13:00:00","14:00:00",{"$f":"ROW()-ROW(รายการชั้นเรียน[[#Headers],[โดดเด่น]])","v":1}]
[null,"การเขียนด้านเทคนิค","WR-121","วันพุธ","อาคาร A","13:00:00","14:00:00",{"$f":"ROW()-ROW(รายการชั้นเรียน[[#Headers],[โดดเด่น]])","v":2}]
[null,"การพูดในที่สาธารณะ","SP-111","วันจันทร์","อาคาร B","16:00:00","17:00:00",{"$f":"ROW()-ROW(รายการชั้นเรียน[[#Headers],[โดดเด่น]])","v":3}]
[null,"สุขภาพและการออกกำลังกาย","HPE-295","วันอังคาร","อาคาร B","11:00:00","12:00:00",{"$f":"ROW()-ROW(รายการชั้นเรียน[[#Headers],[โดดเด่น]])","v":4}]
[null,"สุขภาพและการออกกำลังกาย","HPE-295","วันพฤหัสบดี","อาคาร B","11:00:00","12:00:00",{"$f":"ROW()-ROW(รายการชั้นเรียน[[#Headers],[โดดเด่น]])","v":5}]
[null,"พีชคณิต","MTH-113","วันจันทร์","อาคาร C","08:10:00","09:15:00",{"$f":"ROW()-ROW(รายการชั้นเรียน[[#Headers],[โดดเด่น]])","v":6}]
[null,"พีชคณิต","MTH-113","วันพุธ","อาคาร C","08:10:00","09:15:00",{"$f":"ROW()-ROW(รายการชั้นเรียน[[#Headers],[โดดเด่น]])","v":7}]
[null,"พีชคณิต","MTH-113","วันศุกร์","อาคาร C","08:10:00","09:15:00",{"$f":"ROW()-ROW(รายการชั้นเรียน[[#Headers],[โดดเด่น]])","v":8}]